{"text_format":"1","workbook":"xlsx","n_sheets":4,"sheets":["Finding the Right Cover Crop","Cover Crop Data","Reference Links","Sheet3"],"not_rendered":{"charts":0,"images":0,"macros":1,"external_links":1,"defined_names":8,"comments":0,"pivot_tables":0},"unopened":[],"bounds":{"document_bytes":16777216,"sheet_cells":100000,"rows_first":2000,"rows_last":500,"rows_between":2000,"halvings":0,"cell_chars":16384,"cell_head_chars":4096},"cells_cut":0,"cells_raw":0,"read":"whole","date_system":"1900"}

{"sheet":"Finding the Right Cover Crop","index":0,"n_rows":71,"n_cols":13,"rows_kept":71,"cut":false,"hidden":false,"merged":[[38,2,38,3],[39,2,39,3],[41,4,41,5],[0,0,0,9],[13,1,13,4],[19,1,19,4],[15,1,15,3],[17,6,17,9],[7,1,7,3],[9,1,9,3],[11,1,11,3],[4,2,4,3],[4,5,4,6],[25,1,25,4],[33,7,33,10],[21,5,21,6],[23,5,23,6],[21,7,21,10],[23,7,23,10],[37,2,37,3],[33,1,33,3],[29,5,29,6],[31,1,31,3],[31,5,31,6],[25,5,25,6],[27,1,27,3],[27,5,27,6],[25,7,25,10],[33,5,33,6],[44,1,44,2],[44,3,44,9],[45,3,45,9],[50,1,51,1],[49,4,49,5],[51,9,51,10],[49,9,49,10],[50,9,50,10],[50,6,51,6],[45,1,45,2],[50,4,50,5],[49,2,49,3],[50,2,50,3],[48,1,48,10],[46,1,47,10],[35,12,37,14],[4,0,4,1],[6,5,7,5],[50,8,51,8],[49,7,51,7],[41,6,41,10],[37,4,37,5],[37,7,37,8],[38,4,38,5],[39,4,39,5],[38,7,38,8],[40,4,40,5],[13,6,13,10],[35,0,35,10],[23,1,23,4],[21,1,21,4]]}
["Finding the Right Cover Crop for Your Row Crop Landowner"]
[]
["Instructions:  Cream color cells require you to fill in.  Blue cells are drop down menus.  Select the best answer to the question for your operation."]
[]
["Landowner Name:",null,"Gaskin",null,"Farm:","WUC",null,"Field No.:",3]
[]
[null,null,null,null,null,"corn"]
[1,"What is your cash crop now?"]
[]
[2,"What is your normal planting date?",null,null,null,"Apr"]
[]
[3,"What is your normal harvest date?",null,null,null,"Aug"]
[]
[4,"What is the next cash crop you anticipate planting (i.e., what is your rotation?)",null,null,null,"corn",{"$f":"IF(AND(F7=\"rice\",F14=\"rice\"),\"No cover crop recommended for a rice/rice rotation.\",IF(AND(NOT(F7=\"small grains (wheat, oats, rye)\"),OR(F14=\"soybeans\",F14=\"peanuts\")),\"Because your next crop is a legume, a legume CC will not be recommended unless you answer YES to question 11 below.\",IF(AND(F7=\"small grains (wheat, oats, rye)\",F14=\"\"),\"\",IF(AND(NOT(F7=\"small grains (wheat, oats, rye)\"),F14=\"\"),\"\",IF(AND(NOT(F7=\"small grains (wheat, oats, rye)\"),F14=\"small grains (wheat, oats, rye)\"),\"No full season cover crop possible with this combination. A warm season cover crop with a short maturity window should be considered.\",IF(AND(F7=\"small grains (wheat, oats, rye)\",NOT(F14=\"small grains (wheat, oats, rye)\")),\"No full season cover crop possible with this combination. A warm season cover crop with a short maturity window should be considered.\",\"\"))))))","v":""}]
[null," "]
[5,"When will you plant the next cash crop in your rotation?",null,null,null,"Apr"]
[]
[6,"What is your tillage regime?",null,null,null,"no-till/strip till",{"$f":"IF(D46=\"Cover crop not recommended with no-till/strip till planting of sweet potatoes\",\"Planting sweet potatoes no-till or strip till into cover crop not recommended due to diseases and nematodes\",\"\")","v":""}]
[]
[7,"When do you prepare cash crop seedbed for planting (if limited-till when do you burndown before planting)?",null,null,null,"Mar"]
[]
[8,"What is your most serious problem you think cover crops will help with?",null,null,null,"Low N",null,{"$f":"IF(F22=\"\",\"\",IF(AND(F$22=\"Low N\",OR(F$14=\"soybeans\",F$14=\"peanuts\")),\"A legume cover crop is not recommended prior to a soybean or peanut cash crop.  If you want to see what legumes could be used, answer YES to question 11 below.\",IF(AND(F22=\"Low N\",OR(F14=\"corn\",F14=\"cotton\",F14=\"sweet corn\",F14=\"sweet potatos\",F14=\"small grains (wheat, oats, rye)\",NOT(AND(F7=\"rice\",F14=\"rice\")))),\"The problem you selected will only give you a choice of legumes.  Answer YES to question 11 below to get recommendations on other cover crop types.\",IF(AND(F7=\"rice\",F14=\"rice\",NOT(F22=\"\")),\"No cover crop recommended for a rice/rice rotation.\", \"\"))))","v":"The problem you selected will only give you a choice of legumes.  Answer YES to question 11 below to get recommendations on other cover crop types."}]
[]
[9,"What is your second most serious problem you think cover crops will help with?",null,null,null,"Low soil organic matter/moisture and nutrient retention/herbicide efficacy",null,{"$f":"IF(AND(F$24=\"Low N\",OR(F$14=\"soybeans\",F$14=\"peanuts\")),\"A legume cover crop is not recommended prior to a soybean or peanut cash crop.  If you want to see what legumes could be used, answer YES to question 11 below.\",IF(AND(F24=\"Low N\",OR(F14=\"corn\",F14=\"cotton\",F14=\"sweet corn\",F14=\"sweet potatos\",F14=\"small grains (wheat, oats, rye)\",NOT(AND(F7=\"rice\",F14=\"rice\")))),\"The benefit you selected will only give you a choice of legumes.  Answer YES to question 11 below to get recommendations on other cover crop types.\",IF(AND(F7=\"rice\",F14=\"rice\",NOT(AND(F22=\"\",F24=\"\"))),\"No cover crop recommended for a rice/rice rotation.\",IF(NOT(F22=\"\"),\"If there are no additional problems, leave blank or select None.\",\"\"))))","v":"If there are no additional problems, leave blank or select None."}]
[]
[10,"What is the most important benefit you would like to see a cover crop provide to your cropping system?",null,null,null,"Provide N",null,{"$f":"IF(AND(F26=\"Provide N\",OR(F14=\"peanuts\",F14=\"soybeans\")),\"A legume cover crop is not recommended prior to a soybean or peanut cash crop.  If you want to see what legumes could be used, answer YES to question 11 below\",IF(AND(F26=\"Provide N\",OR(F14=\"corn\",F14=\"cotton\",F14=\"sweet corn\",F14=\"sweet potatos\",F14=\"wheat\",NOT(AND(F7=\"rice\",F14=\"rice\")))),\"The benefit you selected will only give you a choice of legumes.  Answer YES to question 11 below to get recommendations on other cover crop types.\",IF(AND(F7=\"rice\",F14=\"rice\",NOT(AND(F22=\"\",F26=\"\"))),\"No cover crop recommended for a rice/rice rotation.\",IF(NOT(F22=\"\"),\"If there is no specific benefit, leave blank or select None.\",\"\"))))","v":"The benefit you selected will only give you a choice of legumes.  Answer YES to question 11 below to get recommendations on other cover crop types."}]
[]
[11,"Would you like to plant a cover crop mix?",null,null,null,"Yes"]
[]
[12,"What is your pH?",null,null,null,"5 to 6"]
[]
[13,"Does your field have poor drainage?",null,null,null,"No"]
[]
[14,"Have you applied any soil residual herbicides?",null,null,null,"Yes",null,{"$f":"IF(F34=\"yes\",\"Consult cooperative extension for appropriate rotation interval restrictions before discussing cover crop planting.\",\"\")","v":"Consult cooperative extension for appropriate rotation interval restrictions before discussing cover crop planting."}]
[]
["Finding the Right Cover Crop",null,null,null,null,null,null,null,null,null,null,null,"To print, use standard Excel print option or Save As PDF and then print."]
[]
[null,"Producer Name:",{"$f":"IF(C5=\"\",\"\",C5)","v":"Gaskin"},null,"Current Cash Crop:",null,{"$f":"IF(F7=\"\",\"\",F7)","v":"corn"},"Next Planned Crop:",null,{"$f":"IF(F14=\"\",\"\",F14)","v":"corn"}]
[null,"Farm:",{"$f":"IF(F5=\"\",\"\",F5)","v":"WUC"},null,"Current Crop Planting Date:",null,{"$f":"IF(F10=\"\",\"\",F10)","v":"Apr"},"Planting Date for Next Crop:",null,{"$f":"IF(F16=\"\",\"\",F16)","v":"Apr"}]
[null,"Field No:",{"$f":"IF(I5=\"\",\"\",I5)","v":3},null,"Current Crop Harvest Date:",null,{"$f":"IF(F12=\"\",\"\",F12)","v":"Aug"},null,"pH:",{"$f":"IF(F30=\"\",\"\",F30)","v":"5 to 6"}]
[null,null,null,null,"Normal Seedbed Preparation Date or CC Burn Down:",null,{"$f":"IF(F20=\"\",\"\",F20)","v":"Mar"}]
[null,null,null,null,"Potential Residule Herbicide Problem:",null,{"$f":"IF(F34=\"yes\",\"Consult with cooperative extension for appropriate rotation interval before selecting a cover crop.\",IF(F34=\"no\",\"None expected based on previous cropping history.\",\"\"))","v":"Consult with cooperative extension for appropriate rotation interval before selecting a cover crop."}]
[]
[]
[null,"Potential growing season:",null,{"$f":"IF(F22=\"\",\"\",IF(AND(F7=\"small grains (wheat, oats, rye)\",F14=\"small grains (wheat, oats, rye)\"),\"Warm Season\",IF(NOT(OR(F7=\"small grains (wheat, oats, rye)\",F14=\"small grains (wheat, oats, rye)\")),\"Cool Season\",IF(OR(AND(F7=\"small grains (wheat, oats, rye)\",F14<>\"small grains (wheat, oats, rye)\"),AND(F14=\"small grains (wheat, oats, rye)\",F7<>\"small grains (wheat, oats, rye\")),\"No full season cover crop possible with this combination.  It may be possible to use a warm season cover crop species or variety with a short maturity window.\",\"error\"))))","v":"Cool Season"}]
[null,"What CC to use based on next cash crop:",null,{"$f":"IF(F22=\"\",\"\",IF(AND(OR(F14=\"peanuts\",F14=\"soybeans\"),OR(F28=\"no\",F28=\"\"),NOT(OR(F22=\"low N\",F24=\"low N\",F26=\"provide N\"))),\"Because next cash crop is a legume and you did not specify you wanted to plant a CC mixture, a legume CC is not recommended.\",IF(AND(F7=\"rice\",F14=\"rice\"),\"At this time, there are no CC recommended for a rice/rice rotation.\",IF(AND(F14=\"sweet potatoes\",F18=\"no-till/strip till\"),\"Cover crop not recommended with no-till/strip till planting of sweet potatoes\",IF(AND(OR(F22=\"low N\",F24=\"low N\",F26=\"provide N\"),OR(F28=\"no\",F28=\"\"),NOT(OR(F14=\"soybeans\",F14=\"peanuts\"))),\"Only information on legumes provided because you indicated Low N was an issue or you wanted the benefit of added N and did not want to plant a mixture.\",IF(AND(OR(F22=\"low N\",F24=\"low N\",F26=\"provide N\"),OR(F28=\"no\",F28=\"\"),NOT(OR(F14=\"corn\",F14=\"cotton\",F14=\"rice\",F14=\"sweet corn\",F14=\"sweet potatoes\",F14=\"wheat\"))),\"Even though you indicated Low N was an issue or you wanted the benefit of added N, only non legume CC are shown because your next cash crop is a legume and you did not want to plant a mixture.\",\"All types (functional groups) can be used.\"))))))","v":"All types (functional groups) can be used."}]
[null,{"$f":"IF(F28=\"yes\",\"Note:  For mixtures, plant at least one species from each of the cover crop color groups shown below.\",\"\")","v":"Note:  For mixtures, plant at least one species from each of the cover crop color groups shown below."}]
[]
[null,"How does each recommended cover crop rank for your specific issues?"]
[null,null,"Most Serious Issue or Problem",null,"2nd most Serious Issue",null,"Most Important Benefit","Relative seed cost","Drainage"]
[null,"Possible cover crop",{"$f":"IF(OR($F22=\"none\",$F22=\"\"),\"None Specified\",$F22)","v":"Low N"},null,{"$f":"IF(OR($F24=\"none\",$F24=\"\"),\"None Specified\",$F24)","v":"Low soil organic matter/moisture and nutrient retention/herbicide efficacy"},null,{"$f":"IF(OR($F26=\"none\",$F26=\"\"),\"None Specified\",$F26)","v":"Provide N"},null,{"$f":"IF(OR($F$32=\"\",$F$32=\"no\"),\"The field has no drainage issues\",IF($F$32=\"yes\",\"Tolerance to poor drainage\",\"\"))","v":"The field has no drainage issues"}]
[null,null,{"$f":"IF($C$51=\"\",\"\",IF(OR($C$51=\"soil compaction/lack of quick water infiltration\",$C$51=\"Low soil organic matter/moisture and nutrient retention/herbicide efficacy\"),'Cover Crop Data'!$M$25,IF($C$51=\"weeds\", 'Cover Crop Data'!$N$25,IF($C$51=\"Nematodes\",'Cover Crop Data'!$Q$25,IF($C$51=\"runoff/erosion\",'Cover Crop Data'!$N$25,IF($C$51=\"Low N\",'Cover Crop Data'!$S$25,\"\"))))))","v":"Provide N"},{"$f":"IF($C$51=\"\",\"\",IF(OR($C$51=\"soil compaction/lack of quick water infiltration\",$C$51=\"Low soil organic matter/moisture and nutrient retention/herbicide efficacy\"),'Cover Crop Data'!$N$25,IF($C$51=\"weeds\", 'Cover Crop Data'!$P$25,IF($C$51=\"Nematodes\",\"\",IF($C$51=\"runoff/erosion\",'Cover Crop Data'!$O$25,IF($C$51=\"Low N\",\"\",\"\"))))))","v":""},{"$f":"IF($E$51=\"\",\"\",IF(OR($E$51=\"soil compaction/lack of quick water infiltration\",$E$51=\"Low soil organic matter/moisture and nutrient retention/herbicide efficacy\"),'Cover Crop Data'!$M$25,IF($E$51=\"weeds\", 'Cover Crop Data'!$N$25,IF($E$51=\"Nematodes\",'Cover Crop Data'!$Q$25,IF($E$51=\"runoff/erosion\",'Cover Crop Data'!$N$25,IF($E$51=\"Low N\",'Cover Crop Data'!$S$25,\"\"))))))","v":"Reduce Compaction"},{"$f":"IF($E$51=\"\",\"\",IF(OR($E$51=\"soil compaction/lack of quick water infiltration\",$E$51=\"Low soil organic matter/moisture and nutrient retention/herbicide efficacy\"),'Cover Crop Data'!$N$25,IF($E$51=\"weeds\", 'Cover Crop Data'!$P$25,IF($E$51=\"Nematodes\",\"\",IF($E$51=\"runoff/erosion\",'Cover Crop Data'!$O$25,IF($E$51=\"Low N\",\"\",\"\"))))))","v":"Residue Persistence"},null,null,null,"Links to Information:"]
[null,{"$f":"IF('Cover Crop Data'!$K2=\"\",\"\",IF(OR($D$46=\"No cover crop recommended\",$D$46=\"Cover crop not recommended with no-till/strip till planting of sweet potatoes\",$D$46=\"At this time, there are no CC recommended for a rice/rice rotation.\"),\"\",IF(AND(OR($D$46=\"Because next cash crop is a legume and you did not specify you wanted to plant a CC mixture, a legume CC is not recommended.\",$D$46=\"Even though you indicated Low N was an issue or you wanted the benefit of added N, only non legume CC are shown because your next cash crop is a legume and you did not want to plant a mixture.\"),OR($F$28=\"no\",$F$28=\"\"),'Cover Crop Data'!K2>='Cover Crop Data'!$K$20),'Cover Crop Data'!L2,IF(AND($D$46=\"All types (functional groups) can be used.\",$F$28=\"yes\",'Cover Crop Data'!$K2>='Cover Crop Data'!$K$20),'Cover Crop Data'!$L2,IF(AND($D$46=\"All types (functional groups) can be used.\",OR($F$28=\"no\",$F$28=\"\"),'Cover Crop Data'!$K2>='Cover Crop Data'!$K$23),'Cover Crop Data'!$L2,\"\")))))","v":""},{"$f":"IF(AND(NOT($B53=\"\"),$C$52=\"Reduce Compaction\"),'Cover Crop Data'!$M26,IF(AND(NOT($B53=\"\"),$C$52=\"residue persistence\"),'Cover Crop Data'!$N26,IF(AND(NOT($B53=\"\"),$C$52=\"nematode control\"),'Cover Crop Data'!$Q26,IF(AND(NOT($B53=\"\"),$C$52=\"residue persistence\"),'Cover Crop Data'!$N26,IF(AND(NOT($B53=\"\"),$C$52=\"Provide N\"),'Cover Crop Data'!$S26,\"\")))))","v":""},{"$f":"IF(AND(NOT($B53=\"\"),$D$52=\"Reduce Compaction\"),'Cover Crop Data'!$M26,IF(AND(NOT($B53=\"\"),$D$52=\"residue persistence\"),'Cover Crop Data'!$N26,IF(AND(NOT($B53=\"\"),$D$52=\"Weed supression\"),'Cover Crop Data'!$P26,IF(AND(NOT($B53=\"\"),$D$52=\"nematode control\"),\"\",IF(AND(NOT($B53=\"\"),$D$52=\"erosion control\"),'Cover Crop Data'!$O26,\"\")))))","v":""},{"$f":"IF(AND(NOT($B53=\"\"),$E$52=\"Reduce Compaction\"),'Cover Crop Data'!$M26,IF(AND(NOT($B53=\"\"),$E$52=\"residue persistence\"),'Cover Crop Data'!$N26,IF(AND(NOT($B53=\"\"),$E$52=\"nematode control\"),'Cover Crop Data'!$Q26,IF(AND(NOT($B53=\"\"),$E$52=\"residue persistence\"),'Cover Crop Data'!$N26,IF(AND(NOT($B53=\"\"),$E$52=\"Provide N\"),'Cover Crop Data'!$S26,\"\")))))","v":""},{"$f":"IF(AND(NOT($B53=\"\"),$F$52=\"Reduce Compaction\"),'Cover Crop Data'!$M26,IF(AND(NOT($B53=\"\"),$F$52=\"residue persistence\"),'Cover Crop Data'!$N26,IF(AND(NOT($B53=\"\"),$F$52=\"Weed supression\"),'Cover Crop Data'!$P26,IF(AND(NOT($B53=\"\"),$F$52=\"nematode control\"),\"\",IF(AND(NOT($B53=\"\"),$F$52=\"erosion control\"),'Cover Crop Data'!$O26,\"\")))))","v":""},{"$f":"IF(AND(NOT(B53=\"\"),$G$51=\"Provide N\",OR(F$28=\"yes\",F$28=\"no\")),'Cover Crop Data'!S26,IF(AND(NOT(B53=\"\"),$G$51=\"Scavenge N\"),'Cover Crop Data'!T26,IF(AND(NOT(B53=\"\"),$G$51=\"Scavenge P and K\"),'Cover Crop Data'!U26,IF(AND(NOT(B53=\"\"),$G$51=\"attract beneficials\"),'Cover Crop Data'!R26,IF(AND(NOT(B53=\"\"),$G$51=\"high forage quality\"),'Cover Crop Data'!X26,\"\")))))","v":""},{"$f":"IF(B53=\"\",\"\",'Cover Crop Data'!Y26)","v":""},{"$f":"IF(AND(NOT($B53=\"\"),$F$32=\"yes\"),'Cover Crop Data'!$V26,\"\")","v":""},{"$f":"IF(B53=\"\",\"\",HYPERLINK('Reference Links'!J20,'Reference Links'!G20))","v":""}]
[null,{"$f":"IF('Cover Crop Data'!$K3=\"\",\"\",IF(OR($D$46=\"No cover crop recommended\",$D$46=\"Cover crop not recommended with no-till/strip till planting of sweet potatoes\",$D$46=\"At this time, there are no CC recommended for a rice/rice rotation.\"),\"\",IF(AND(OR($D$46=\"Because next cash crop is a legume and you did not specify you wanted to plant a CC mixture, a legume CC is not recommended.\",$D$46=\"Even though you indicated Low N was an issue or you wanted the benefit of added N, only non legume CC are shown because your next cash crop is a legume and you did not want to plant a mixture.\"),OR($F$28=\"no\",$F$28=\"\"),'Cover Crop Data'!K3>='Cover Crop Data'!$K$20),'Cover Crop Data'!L3,IF(AND($D$46=\"All types (functional groups) can be used.\",$F$28=\"yes\",'Cover Crop Data'!$K3>='Cover Crop Data'!$K$20),'Cover Crop Data'!$L3,IF(AND($D$46=\"All types (functional groups) can be used.\",OR($F$28=\"no\",$F$28=\"\"),'Cover Crop Data'!$K3>='Cover Crop Data'!$K$23),'Cover Crop Data'!$L3,\"\")))))","v":"Mustards"},{"$f":"IF(AND(NOT(B54=\"\"),$C$52=\"Reduce Compaction\"),'Cover Crop Data'!M27,IF(AND(NOT(B54=\"\"),$C$52=\"residue persistence\"),'Cover Crop Data'!N27,IF(AND(NOT(B54=\"\"),$C$52=\"nematode control\"),'Cover Crop Data'!Q27,IF(AND(NOT(B54=\"\"),$C$52=\"residue persistence\"),'Cover Crop Data'!N27,IF(AND(NOT(B54=\"\"),$C$52=\"Provide N\"),'Cover Crop Data'!S27,\"\")))))","v":""},{"$f":"IF(AND(NOT($B54=\"\"),$D$52=\"Reduce Compaction\"),'Cover Crop Data'!$N27,IF(AND(NOT($B54=\"\"),$D$52=\"residue persistence\"),'Cover Crop Data'!$N27,IF(AND(NOT($B54=\"\"),$D$52=\"Weed supression\"),'Cover Crop Data'!$P27,IF(AND(NOT($B54=\"\"),$D$52=\"nematode control\"),\"\",IF(AND(NOT($B54=\"\"),$D$52=\"erosion control\"),'Cover Crop Data'!$O27,\"\")))))","v":""},{"$f":"IF(AND(NOT($B54=\"\"),$E$52=\"Reduce Compaction\"),'Cover Crop Data'!$M27,IF(AND(NOT($B54=\"\"),$E$52=\"residue persistence\"),'Cover Crop Data'!$N27,IF(AND(NOT($B54=\"\"),$E$52=\"nematode control\"),'Cover Crop Data'!$Q27,IF(AND(NOT($B54=\"\"),$E$52=\"residue persistence\"),'Cover Crop Data'!$N27,IF(AND(NOT($B54=\"\"),$E$52=\"Provide N\"),'Cover Crop Data'!$S27,\"\")))))","v":"Good"},{"$f":"IF(AND(NOT($B54=\"\"),$F$52=\"Reduce Compaction\"),'Cover Crop Data'!$M27,IF(AND(NOT($B54=\"\"),$F$52=\"residue persistence\"),'Cover Crop Data'!$N27,IF(AND(NOT($B54=\"\"),$F$52=\"Weed supression\"),'Cover Crop Data'!$P27,IF(AND(NOT($B54=\"\"),$F$52=\"nematode control\"),\"\",IF(AND(NOT($B54=\"\"),$F$52=\"erosion control\"),'Cover Crop Data'!$O27,\"\")))))","v":"Fair"},{"$f":"IF(AND(NOT(B54=\"\"),$G$51=\"Provide N\",OR(F$28=\"yes\",F$28=\"no\")),'Cover Crop Data'!S27,IF(AND(NOT(B54=\"\"),$G$51=\"Scavenge N\"),'Cover Crop Data'!T27,IF(AND(NOT(B54=\"\"),$G$51=\"Scavenge P and K\"),'Cover Crop Data'!U27,IF(AND(NOT(B54=\"\"),$G$51=\"attract beneficials\"),'Cover Crop Data'!R27,IF(AND(NOT(B54=\"\"),$G$51=\"high forage quality\"),'Cover Crop Data'!X27,\"\")))))","v":""},{"$f":"IF(B54=\"\",\"\",'Cover Crop Data'!Y27)","v":"$"},{"$f":"IF(AND(NOT($B54=\"\"),$F$32=\"yes\"),'Cover Crop Data'!$V27,\"\")","v":""},{"$f":"IF(B54=\"\",\"\",HYPERLINK('Reference Links'!J22,'Reference Links'!G22))","v":"SARE"},{"$f":"IF(B54=\"\",\"\",HYPERLINK('Reference Links'!J23,'Reference Links'!G23))","v":"Plant Materials"}]
[null,{"$f":"IF('Cover Crop Data'!$K4=\"\",\"\",IF(OR($D$46=\"No cover crop recommended\",$D$46=\"Cover crop not recommended with no-till/strip till planting of sweet potatoes\",$D$46=\"At this time, there are no CC recommended for a rice/rice rotation.\"),\"\",IF(AND(OR($D$46=\"Because next cash crop is a legume and you did not specify you wanted to plant a CC mixture, a legume CC is not recommended.\",$D$46=\"Even though you indicated Low N was an issue or you wanted the benefit of added N, only non legume CC are shown because your next cash crop is a legume and you did not want to plant a mixture.\"),OR($F$28=\"no\",$F$28=\"\"),'Cover Crop Data'!K4>='Cover Crop Data'!$K$20),'Cover Crop Data'!L4,IF(AND($D$46=\"All types (functional groups) can be used.\",$F$28=\"yes\",'Cover Crop Data'!$K4>='Cover Crop Data'!$K$20),'Cover Crop Data'!$L4,IF(AND($D$46=\"All types (functional groups) can be used.\",OR($F$28=\"no\",$F$28=\"\"),'Cover Crop Data'!$K4>='Cover Crop Data'!$K$23),'Cover Crop Data'!$L4,\"\")))))","v":"Radish"},{"$f":"IF(AND(NOT(B55=\"\"),$C$52=\"Reduce Compaction\"),'Cover Crop Data'!M28,IF(AND(NOT(B55=\"\"),$C$52=\"residue persistence\"),'Cover Crop Data'!N28,IF(AND(NOT(B55=\"\"),$C$52=\"nematode control\"),'Cover Crop Data'!Q28,IF(AND(NOT(B55=\"\"),$C$52=\"residue persistence\"),'Cover Crop Data'!N28,IF(AND(NOT(B55=\"\"),$C$52=\"Provide N\"),'Cover Crop Data'!S28,\"\")))))","v":""},{"$f":"IF(AND(NOT($B55=\"\"),$D$52=\"Reduce Compaction\"),'Cover Crop Data'!$N28,IF(AND(NOT($B55=\"\"),$D$52=\"residue persistence\"),'Cover Crop Data'!$N28,IF(AND(NOT($B55=\"\"),$D$52=\"Weed supression\"),'Cover Crop Data'!$P28,IF(AND(NOT($B55=\"\"),$D$52=\"nematode control\"),\"\",IF(AND(NOT($B55=\"\"),$D$52=\"erosion control\"),'Cover Crop Data'!$O28,\"\")))))","v":""},{"$f":"IF(AND(NOT($B55=\"\"),$E$52=\"Reduce Compaction\"),'Cover Crop Data'!$M28,IF(AND(NOT($B55=\"\"),$E$52=\"residue persistence\"),'Cover Crop Data'!$N28,IF(AND(NOT($B55=\"\"),$E$52=\"nematode control\"),'Cover Crop Data'!$Q28,IF(AND(NOT($B55=\"\"),$E$52=\"residue persistence\"),'Cover Crop Data'!$N28,IF(AND(NOT($B55=\"\"),$E$52=\"Provide N\"),'Cover Crop Data'!$S28,\"\")))))","v":"Very Good"},{"$f":"IF(AND(NOT($B55=\"\"),$F$52=\"Reduce Compaction\"),'Cover Crop Data'!$M28,IF(AND(NOT($B55=\"\"),$F$52=\"residue persistence\"),'Cover Crop Data'!$N28,IF(AND(NOT($B55=\"\"),$F$52=\"Weed supression\"),'Cover Crop Data'!$P28,IF(AND(NOT($B55=\"\"),$F$52=\"nematode control\"),\"\",IF(AND(NOT($B55=\"\"),$F$52=\"erosion control\"),'Cover Crop Data'!$O28,\"\")))))","v":"Fair"},{"$f":"IF(AND(NOT(B55=\"\"),$G$51=\"Provide N\",OR(F$28=\"yes\",F$28=\"no\")),'Cover Crop Data'!S28,IF(AND(NOT(B55=\"\"),$G$51=\"Scavenge N\"),'Cover Crop Data'!T28,IF(AND(NOT(B55=\"\"),$G$51=\"Scavenge P and K\"),'Cover Crop Data'!U28,IF(AND(NOT(B55=\"\"),$G$51=\"attract beneficials\"),'Cover Crop Data'!R28,IF(AND(NOT(B55=\"\"),$G$51=\"high forage quality\"),'Cover Crop Data'!X28,\"\")))))","v":""},{"$f":"IF(B55=\"\",\"\",'Cover Crop Data'!Y28)","v":"$$"},{"$f":"IF(AND(NOT($B55=\"\"),$F$32=\"yes\"),'Cover Crop Data'!$V28,\"\")","v":""},{"$f":"IF(B55=\"\",\"\",HYPERLINK('Reference Links'!J24,'Reference Links'!G24))","v":"SARE"},{"$f":"IF(B55=\"\",\"\",HYPERLINK('Reference Links'!J25,'Reference Links'!G25))","v":"Plant Materials"}]
[null,{"$f":"IF('Cover Crop Data'!$K5=\"\",\"\",IF(OR($D$46=\"No cover crop recommended\",$D$46=\"Cover crop not recommended with no-till/strip till planting of sweet potatoes\",$D$46=\"At this time, there are no CC recommended for a rice/rice rotation.\"),\"\",IF(AND(OR($D$46=\"Because next cash crop is a legume and you did not specify you wanted to plant a CC mixture, a legume CC is not recommended.\",$D$46=\"Even though you indicated Low N was an issue or you wanted the benefit of added N, only non legume CC are shown because your next cash crop is a legume and you did not want to plant a mixture.\"),OR($F$28=\"no\",$F$28=\"\"),'Cover Crop Data'!K5>='Cover Crop Data'!$K$20),'Cover Crop Data'!L5,IF(AND($D$46=\"All types (functional groups) can be used.\",$F$28=\"yes\",'Cover Crop Data'!$K5>='Cover Crop Data'!$K$20),'Cover Crop Data'!$L5,IF(AND($D$46=\"All types (functional groups) can be used.\",OR($F$28=\"no\",$F$28=\"\"),'Cover Crop Data'!$K5>='Cover Crop Data'!$K$23),'Cover Crop Data'!$L5,\"\")))))","v":"Rapeseed"},{"$f":"IF(AND(NOT(B56=\"\"),$C$52=\"Reduce Compaction\"),'Cover Crop Data'!M29,IF(AND(NOT(B56=\"\"),$C$52=\"residue persistence\"),'Cover Crop Data'!N29,IF(AND(NOT(B56=\"\"),$C$52=\"nematode control\"),'Cover Crop Data'!Q29,IF(AND(NOT(B56=\"\"),$C$52=\"residue persistence\"),'Cover Crop Data'!N29,IF(AND(NOT(B56=\"\"),$C$52=\"Provide N\"),'Cover Crop Data'!S29,\"\")))))","v":""},{"$f":"IF(AND(NOT($B56=\"\"),$D$52=\"Reduce Compaction\"),'Cover Crop Data'!$N29,IF(AND(NOT($B56=\"\"),$D$52=\"residue persistence\"),'Cover Crop Data'!$N29,IF(AND(NOT($B56=\"\"),$D$52=\"Weed supression\"),'Cover Crop Data'!$P29,IF(AND(NOT($B56=\"\"),$D$52=\"nematode control\"),\"\",IF(AND(NOT($B56=\"\"),$D$52=\"erosion control\"),'Cover Crop Data'!$O29,\"\")))))","v":""},{"$f":"IF(AND(NOT($B56=\"\"),$E$52=\"Reduce Compaction\"),'Cover Crop Data'!$M29,IF(AND(NOT($B56=\"\"),$E$52=\"residue persistence\"),'Cover Crop Data'!$N29,IF(AND(NOT($B56=\"\"),$E$52=\"nematode control\"),'Cover Crop Data'!$Q29,IF(AND(NOT($B56=\"\"),$E$52=\"residue persistence\"),'Cover Crop Data'!$N29,IF(AND(NOT($B56=\"\"),$E$52=\"Provide N\"),'Cover Crop Data'!$S29,\"\")))))","v":"Good"},{"$f":"IF(AND(NOT($B56=\"\"),$F$52=\"Reduce Compaction\"),'Cover Crop Data'!$M29,IF(AND(NOT($B56=\"\"),$F$52=\"residue persistence\"),'Cover Crop Data'!$N29,IF(AND(NOT($B56=\"\"),$F$52=\"Weed supression\"),'Cover Crop Data'!$P29,IF(AND(NOT($B56=\"\"),$F$52=\"nematode control\"),\"\",IF(AND(NOT($B56=\"\"),$F$52=\"erosion control\"),'Cover Crop Data'!$O29,\"\")))))","v":"Good"},{"$f":"IF(AND(NOT(B56=\"\"),$G$51=\"Provide N\",OR(F$28=\"yes\",F$28=\"no\")),'Cover Crop Data'!S29,IF(AND(NOT(B56=\"\"),$G$51=\"Scavenge N\"),'Cover Crop Data'!T29,IF(AND(NOT(B56=\"\"),$G$51=\"Scavenge P and K\"),'Cover Crop Data'!U29,IF(AND(NOT(B56=\"\"),$G$51=\"attract beneficials\"),'Cover Crop Data'!R29,IF(AND(NOT(B56=\"\"),$G$51=\"high forage quality\"),'Cover Crop Data'!X29,\"\")))))","v":""},{"$f":"IF(B56=\"\",\"\",'Cover Crop Data'!Y29)","v":"$"},{"$f":"IF(AND(NOT($B56=\"\"),$F$32=\"yes\"),'Cover Crop Data'!$V29,\"\")","v":""},{"$f":"IF(B56=\"\",\"\",HYPERLINK('Reference Links'!J26,'Reference Links'!G26))","v":"SARE"}]
[null,{"$f":"IF('Cover Crop Data'!$K6=\"\",\"\",IF(OR($D$46=\"No cover crop recommended\",$D$46=\"Cover crop not recommended with no-till/strip till planting of sweet potatoes\",$D$46=\"At this time, there are no CC recommended for a rice/rice rotation.\"),\"\",IF(AND(OR($D$46=\"Because next cash crop is a legume and you did not specify you wanted to plant a CC mixture, a legume CC is not recommended.\",$D$46=\"Even though you indicated Low N was an issue or you wanted the benefit of added N, only non legume CC are shown because your next cash crop is a legume and you did not want to plant a mixture.\"),OR($F$28=\"no\",$F$28=\"\"),'Cover Crop Data'!K6>='Cover Crop Data'!$K$23),'Cover Crop Data'!L6,IF(AND($D$46=\"All types (functional groups) can be used.\",$F$28=\"yes\",'Cover Crop Data'!$K6>='Cover Crop Data'!$K$21),'Cover Crop Data'!$L6,IF(AND($D$46=\"All types (functional groups) can be used.\",OR($F$28=\"no\",$F$28=\"\"),'Cover Crop Data'!$K6>='Cover Crop Data'!$K$23),'Cover Crop Data'!$L6,\"\")))))","v":""},{"$f":"IF(AND(NOT(B57=\"\"),$C$52=\"Reduce Compaction\"),'Cover Crop Data'!M30,IF(AND(NOT(B57=\"\"),$C$52=\"residue persistence\"),'Cover Crop Data'!N30,IF(AND(NOT(B57=\"\"),$C$52=\"nematode control\"),'Cover Crop Data'!Q30,IF(AND(NOT(B57=\"\"),$C$52=\"residue persistence\"),'Cover Crop Data'!N30,IF(AND(NOT(B57=\"\"),$C$52=\"Provide N\"),'Cover Crop Data'!S30,\"\")))))","v":""},{"$f":"IF(AND(NOT($B57=\"\"),$D$52=\"Reduce Compaction\"),'Cover Crop Data'!$N30,IF(AND(NOT($B57=\"\"),$D$52=\"residue persistence\"),'Cover Crop Data'!$N30,IF(AND(NOT($B57=\"\"),$D$52=\"Weed supression\"),'Cover Crop Data'!$P30,IF(AND(NOT($B57=\"\"),$D$52=\"nematode control\"),\"\",IF(AND(NOT($B57=\"\"),$D$52=\"erosion control\"),'Cover Crop Data'!$O30,\"\")))))","v":""},{"$f":"IF(AND(NOT($B57=\"\"),$E$52=\"Reduce Compaction\"),'Cover Crop Data'!$M30,IF(AND(NOT($B57=\"\"),$E$52=\"residue persistence\"),'Cover Crop Data'!$N30,IF(AND(NOT($B57=\"\"),$E$52=\"nematode control\"),'Cover Crop Data'!$Q30,IF(AND(NOT($B57=\"\"),$E$52=\"residue persistence\"),'Cover Crop Data'!$N30,IF(AND(NOT($B57=\"\"),$E$52=\"Provide N\"),'Cover Crop Data'!$S30,\"\")))))","v":""},{"$f":"IF(AND(NOT($B57=\"\"),$F$52=\"Reduce Compaction\"),'Cover Crop Data'!$M30,IF(AND(NOT($B57=\"\"),$F$52=\"residue persistence\"),'Cover Crop Data'!$N30,IF(AND(NOT($B57=\"\"),$F$52=\"Weed supression\"),'Cover Crop Data'!$P30,IF(AND(NOT($B57=\"\"),$F$52=\"nematode control\"),\"\",IF(AND(NOT($B57=\"\"),$F$52=\"erosion control\"),'Cover Crop Data'!$O30,\"\")))))","v":""},{"$f":"IF(AND(NOT(B57=\"\"),$G$51=\"Provide N\",OR(F$28=\"yes\",F$28=\"no\")),'Cover Crop Data'!S30,IF(AND(NOT(B57=\"\"),$G$51=\"Scavenge N\"),'Cover Crop Data'!T30,IF(AND(NOT(B57=\"\"),$G$51=\"Scavenge P and K\"),'Cover Crop Data'!U30,IF(AND(NOT(B57=\"\"),$G$51=\"attract beneficials\"),'Cover Crop Data'!R30,IF(AND(NOT(B57=\"\"),$G$51=\"high forage quality\"),'Cover Crop Data'!X30,\"\")))))","v":""},{"$f":"IF(B57=\"\",\"\",'Cover Crop Data'!Y30)","v":""},{"$f":"IF(AND(NOT($B57=\"\"),$F$32=\"yes\"),'Cover Crop Data'!$V30,\"\")","v":""},{"$f":"IF(B57=\"\",\"\",HYPERLINK('Reference Links'!J28,'Reference Links'!G28))","v":""},{"$f":"IF(B57=\"\",\"\",HYPERLINK('Reference Links'!J29,'Reference Links'!G29))","v":""}]
[null,{"$f":"IF('Cover Crop Data'!$K7=\"\",\"\",IF(OR($D$46=\"No cover crop recommended\",$D$46=\"Cover crop not recommended with no-till/strip till planting of sweet potatoes\",$D$46=\"At this time, there are no CC recommended for a rice/rice rotation.\"),\"\",IF(AND(OR($D$46=\"Because next cash crop is a legume and you did not specify you wanted to plant a CC mixture, a legume CC is not recommended.\",$D$46=\"Even though you indicated Low N was an issue or you wanted the benefit of added N, only non legume CC are shown because your next cash crop is a legume and you did not want to plant a mixture.\"),OR($F$28=\"no\",$F$28=\"\"),'Cover Crop Data'!K7>='Cover Crop Data'!$K$23),'Cover Crop Data'!L7,IF(AND($D$46=\"All types (functional groups) can be used.\",$F$28=\"yes\",'Cover Crop Data'!$K7>='Cover Crop Data'!$K$21),'Cover Crop Data'!$L7,IF(AND($D$46=\"All types (functional groups) can be used.\",OR($F$28=\"no\",$F$28=\"\"),'Cover Crop Data'!$K7>='Cover Crop Data'!$K$23),'Cover Crop Data'!$L7,\"\")))))","v":""},{"$f":"IF(AND(NOT(B58=\"\"),$C$52=\"Reduce Compaction\"),'Cover Crop Data'!M31,IF(AND(NOT(B58=\"\"),$C$52=\"residue persistence\"),'Cover Crop Data'!N31,IF(AND(NOT(B58=\"\"),$C$52=\"nematode control\"),'Cover Crop Data'!Q31,IF(AND(NOT(B58=\"\"),$C$52=\"residue persistence\"),'Cover Crop Data'!N31,IF(AND(NOT(B58=\"\"),$C$52=\"Provide N\"),'Cover Crop Data'!S31,\"\")))))","v":""},{"$f":"IF(AND(NOT($B58=\"\"),$D$52=\"Reduce Compaction\"),'Cover Crop Data'!$N31,IF(AND(NOT($B58=\"\"),$D$52=\"residue persistence\"),'Cover Crop Data'!$N31,IF(AND(NOT($B58=\"\"),$D$52=\"Weed supression\"),'Cover Crop Data'!$P31,IF(AND(NOT($B58=\"\"),$D$52=\"nematode control\"),\"\",IF(AND(NOT($B58=\"\"),$D$52=\"erosion control\"),'Cover Crop Data'!$O31,\"\")))))","v":""},{"$f":"IF(AND(NOT($B58=\"\"),$E$52=\"Reduce Compaction\"),'Cover Crop Data'!$M31,IF(AND(NOT($B58=\"\"),$E$52=\"residue persistence\"),'Cover Crop Data'!$N31,IF(AND(NOT($B58=\"\"),$E$52=\"nematode control\"),'Cover Crop Data'!$Q31,IF(AND(NOT($B58=\"\"),$E$52=\"residue persistence\"),'Cover Crop Data'!$N31,IF(AND(NOT($B58=\"\"),$E$52=\"Provide N\"),'Cover Crop Data'!$S31,\"\")))))","v":""},{"$f":"IF(AND(NOT($B58=\"\"),$F$52=\"Reduce Compaction\"),'Cover Crop Data'!$M31,IF(AND(NOT($B58=\"\"),$F$52=\"residue persistence\"),'Cover Crop Data'!$N31,IF(AND(NOT($B58=\"\"),$F$52=\"Weed supression\"),'Cover Crop Data'!$P31,IF(AND(NOT($B58=\"\"),$F$52=\"nematode control\"),\"\",IF(AND(NOT($B58=\"\"),$F$52=\"erosion control\"),'Cover Crop Data'!$O31,\"\")))))","v":""},{"$f":"IF(AND(NOT(B58=\"\"),$G$51=\"Provide N\",OR(F$28=\"yes\",F$28=\"no\")),'Cover Crop Data'!S31,IF(AND(NOT(B58=\"\"),$G$51=\"Scavenge N\"),'Cover Crop Data'!T31,IF(AND(NOT(B58=\"\"),$G$51=\"Scavenge P and K\"),'Cover Crop Data'!U31,IF(AND(NOT(B58=\"\"),$G$51=\"attract beneficials\"),'Cover Crop Data'!R31,IF(AND(NOT(B58=\"\"),$G$51=\"high forage quality\"),'Cover Crop Data'!X31,\"\")))))","v":""},{"$f":"IF(B58=\"\",\"\",'Cover Crop Data'!Y31)","v":""},{"$f":"IF(AND(NOT($B58=\"\"),$F$32=\"yes\"),'Cover Crop Data'!$V31,\"\")","v":""},{"$f":"IF(B58=\"\",\"\",HYPERLINK('Reference Links'!J30,'Reference Links'!G30))","v":""}]
[null,{"$f":"IF('Cover Crop Data'!$K8=\"\",\"\",IF(OR($D$46=\"No cover crop recommended\",$D$46=\"Cover crop not recommended with no-till/strip till planting of sweet potatoes\",$D$46=\"At this time, there are no CC recommended for a rice/rice rotation.\"),\"\",IF(AND(OR($D$46=\"Because next cash crop is a legume and you did not specify you wanted to plant a CC mixture, a legume CC is not recommended.\",$D$46=\"Even though you indicated Low N was an issue or you wanted the benefit of added N, only non legume CC are shown because your next cash crop is a legume and you did not want to plant a mixture.\"),OR($F$28=\"no\",$F$28=\"\"),'Cover Crop Data'!K8>='Cover Crop Data'!$K$23),'Cover Crop Data'!L8,IF(AND($D$46=\"All types (functional groups) can be used.\",$F$28=\"yes\",'Cover Crop Data'!$K8>='Cover Crop Data'!$K$21),'Cover Crop Data'!$L8,IF(AND($D$46=\"All types (functional groups) can be used.\",OR($F$28=\"no\",$F$28=\"\"),'Cover Crop Data'!$K8>='Cover Crop Data'!$K$23),'Cover Crop Data'!$L8,\"\")))))","v":"Rye/Triticale"},{"$f":"IF(AND(NOT(B59=\"\"),$C$52=\"Reduce Compaction\"),'Cover Crop Data'!M32,IF(AND(NOT(B59=\"\"),$C$52=\"residue persistence\"),'Cover Crop Data'!N32,IF(AND(NOT(B59=\"\"),$C$52=\"nematode control\"),'Cover Crop Data'!Q32,IF(AND(NOT(B59=\"\"),$C$52=\"residue persistence\"),'Cover Crop Data'!N32,IF(AND(NOT(B59=\"\"),$C$52=\"Provide N\"),'Cover Crop Data'!S32,\"\")))))","v":""},{"$f":"IF(AND(NOT($B59=\"\"),$D$52=\"Reduce Compaction\"),'Cover Crop Data'!$N32,IF(AND(NOT($B59=\"\"),$D$52=\"residue persistence\"),'Cover Crop Data'!$N32,IF(AND(NOT($B59=\"\"),$D$52=\"Weed supression\"),'Cover Crop Data'!$P32,IF(AND(NOT($B59=\"\"),$D$52=\"nematode control\"),\"\",IF(AND(NOT($B59=\"\"),$D$52=\"erosion control\"),'Cover Crop Data'!$O32,\"\")))))","v":""},{"$f":"IF(AND(NOT($B59=\"\"),$E$52=\"Reduce Compaction\"),'Cover Crop Data'!$M32,IF(AND(NOT($B59=\"\"),$E$52=\"residue persistence\"),'Cover Crop Data'!$N32,IF(AND(NOT($B59=\"\"),$E$52=\"nematode control\"),'Cover Crop Data'!$Q32,IF(AND(NOT($B59=\"\"),$E$52=\"residue persistence\"),'Cover Crop Data'!$N32,IF(AND(NOT($B59=\"\"),$E$52=\"Provide N\"),'Cover Crop Data'!$S32,\"\")))))","v":"Good"},{"$f":"IF(AND(NOT($B59=\"\"),$F$52=\"Reduce Compaction\"),'Cover Crop Data'!$M32,IF(AND(NOT($B59=\"\"),$F$52=\"residue persistence\"),'Cover Crop Data'!$N32,IF(AND(NOT($B59=\"\"),$F$52=\"Weed supression\"),'Cover Crop Data'!$P32,IF(AND(NOT($B59=\"\"),$F$52=\"nematode control\"),\"\",IF(AND(NOT($B59=\"\"),$F$52=\"erosion control\"),'Cover Crop Data'!$O32,\"\")))))","v":"Excellent"},{"$f":"IF(AND(NOT(B59=\"\"),$G$51=\"Provide N\",OR(F$28=\"yes\",F$28=\"no\")),'Cover Crop Data'!S32,IF(AND(NOT(B59=\"\"),$G$51=\"Scavenge N\"),'Cover Crop Data'!T32,IF(AND(NOT(B59=\"\"),$G$51=\"Scavenge P and K\"),'Cover Crop Data'!U32,IF(AND(NOT(B59=\"\"),$G$51=\"attract beneficials\"),'Cover Crop Data'!R32,IF(AND(NOT(B59=\"\"),$G$51=\"high forage quality\"),'Cover Crop Data'!X32,\"\")))))","v":""},{"$f":"IF(B59=\"\",\"\",'Cover Crop Data'!Y32)","v":"$$"},{"$f":"IF(AND(NOT($B59=\"\"),$F$32=\"yes\"),'Cover Crop Data'!$V32,\"\")","v":""},{"$f":"IF(B59=\"\",\"\",HYPERLINK('Reference Links'!J32,'Reference Links'!G32))","v":"SARE"},{"$f":"IF(B59=\"\",\"\",HYPERLINK('Reference Links'!J33,'Reference Links'!G33))","v":"Plant Materials"}]
[null,{"$f":"IF('Cover Crop Data'!$K9=\"\",\"\",IF(OR($D$46=\"No cover crop recommended\",$D$46=\"Cover crop not recommended with no-till/strip till planting of sweet potatoes\",$D$46=\"At this time, there are no CC recommended for a rice/rice rotation.\"),\"\",IF(AND(OR($D$46=\"Because next cash crop is a legume and you did not specify you wanted to plant a CC mixture, a legume CC is not recommended.\",$D$46=\"Even though you indicated Low N was an issue or you wanted the benefit of added N, only non legume CC are shown because your next cash crop is a legume and you did not want to plant a mixture.\"),OR($F$28=\"no\",$F$28=\"\"),'Cover Crop Data'!K9>='Cover Crop Data'!$K$23),'Cover Crop Data'!L9,IF(AND($D$46=\"All types (functional groups) can be used.\",$F$28=\"yes\",'Cover Crop Data'!$K9>='Cover Crop Data'!$K$21),'Cover Crop Data'!$L9,IF(AND($D$46=\"All types (functional groups) can be used.\",OR($F$28=\"no\",$F$28=\"\"),'Cover Crop Data'!$K9>='Cover Crop Data'!$K$23),'Cover Crop Data'!$L9,\"\")))))","v":"Wheat"},{"$f":"IF(AND(NOT(B60=\"\"),$C$52=\"Reduce Compaction\"),'Cover Crop Data'!M33,IF(AND(NOT(B60=\"\"),$C$52=\"residue persistence\"),'Cover Crop Data'!N33,IF(AND(NOT(B60=\"\"),$C$52=\"nematode control\"),'Cover Crop Data'!Q33,IF(AND(NOT(B60=\"\"),$C$52=\"residue persistence\"),'Cover Crop Data'!N33,IF(AND(NOT(B60=\"\"),$C$52=\"Provide N\"),'Cover Crop Data'!S33,\"\")))))","v":""},{"$f":"IF(AND(NOT($B60=\"\"),$D$52=\"Reduce Compaction\"),'Cover Crop Data'!$N33,IF(AND(NOT($B60=\"\"),$D$52=\"residue persistence\"),'Cover Crop Data'!$N33,IF(AND(NOT($B60=\"\"),$D$52=\"Weed supression\"),'Cover Crop Data'!$P33,IF(AND(NOT($B60=\"\"),$D$52=\"nematode control\"),\"\",IF(AND(NOT($B60=\"\"),$D$52=\"erosion control\"),'Cover Crop Data'!$O33,\"\")))))","v":""},{"$f":"IF(AND(NOT($B60=\"\"),$E$52=\"Reduce Compaction\"),'Cover Crop Data'!$M33,IF(AND(NOT($B60=\"\"),$E$52=\"residue persistence\"),'Cover Crop Data'!$N33,IF(AND(NOT($B60=\"\"),$E$52=\"nematode control\"),'Cover Crop Data'!$Q33,IF(AND(NOT($B60=\"\"),$E$52=\"residue persistence\"),'Cover Crop Data'!$N33,IF(AND(NOT($B60=\"\"),$E$52=\"Provide N\"),'Cover Crop Data'!$S33,\"\")))))","v":"Good"},{"$f":"IF(AND(NOT($B60=\"\"),$F$52=\"Reduce Compaction\"),'Cover Crop Data'!$M33,IF(AND(NOT($B60=\"\"),$F$52=\"residue persistence\"),'Cover Crop Data'!$N33,IF(AND(NOT($B60=\"\"),$F$52=\"Weed supression\"),'Cover Crop Data'!$P33,IF(AND(NOT($B60=\"\"),$F$52=\"nematode control\"),\"\",IF(AND(NOT($B60=\"\"),$F$52=\"erosion control\"),'Cover Crop Data'!$O33,\"\")))))","v":"Very Good"},{"$f":"IF(AND(NOT(B60=\"\"),$G$51=\"Provide N\",OR(F$28=\"yes\",F$28=\"no\")),'Cover Crop Data'!S33,IF(AND(NOT(B60=\"\"),$G$51=\"Scavenge N\"),'Cover Crop Data'!T33,IF(AND(NOT(B60=\"\"),$G$51=\"Scavenge P and K\"),'Cover Crop Data'!U33,IF(AND(NOT(B60=\"\"),$G$51=\"attract beneficials\"),'Cover Crop Data'!R33,IF(AND(NOT(B60=\"\"),$G$51=\"high forage quality\"),'Cover Crop Data'!X33,\"\")))))","v":""},{"$f":"IF(B60=\"\",\"\",'Cover Crop Data'!Y33)","v":"$"},{"$f":"IF(AND(NOT($B60=\"\"),$F$32=\"yes\"),'Cover Crop Data'!$V33,\"\")","v":""},{"$f":"IF(B60=\"\",\"\",HYPERLINK('Reference Links'!J34,'Reference Links'!G34))","v":"SARE"}]
[null,{"$f":"IF('Cover Crop Data'!$K10=\"\",\"\",IF(OR($D$46=\"No cover crop recommended\",$D$46=\"Cover crop not recommended with no-till/strip till planting of sweet potatoes\",$D$46=\"At this time, there are no CC recommended for a rice/rice rotation.\"),\"\",IF(AND(OR($D$46=\"Because next cash crop is a legume and you did not specify you wanted to plant a CC mixture, a legume CC is not recommended.\",$D$46=\"Even though you indicated Low N was an issue or you wanted the benefit of added N, only non legume CC are shown because your next cash crop is a legume and you did not want to plant a mixture.\"),OR($F$28=\"no\",$F$28=\"\"),'Cover Crop Data'!K10>='Cover Crop Data'!$K$23),'Cover Crop Data'!L10,IF(AND($D$46=\"All types (functional groups) can be used.\",$F$28=\"yes\",'Cover Crop Data'!$K10>='Cover Crop Data'!$K$21),'Cover Crop Data'!$L10,IF(AND($D$46=\"All types (functional groups) can be used.\",OR($F$28=\"no\",$F$28=\"\"),'Cover Crop Data'!$K10>='Cover Crop Data'!$K$23),'Cover Crop Data'!$L10,\"\")))))","v":""},{"$f":"IF(AND(NOT(B61=\"\"),$C$52=\"Reduce Compaction\"),'Cover Crop Data'!M34,IF(AND(NOT(B61=\"\"),$C$52=\"residue persistence\"),'Cover Crop Data'!N34,IF(AND(NOT(B61=\"\"),$C$52=\"nematode control\"),'Cover Crop Data'!Q34,IF(AND(NOT(B61=\"\"),$C$52=\"residue persistence\"),'Cover Crop Data'!N34,IF(AND(NOT(B61=\"\"),$C$52=\"Provide N\"),'Cover Crop Data'!S34,\"\")))))","v":""},{"$f":"IF(AND(NOT($B61=\"\"),$D$52=\"Reduce Compaction\"),'Cover Crop Data'!$N34,IF(AND(NOT($B61=\"\"),$D$52=\"residue persistence\"),'Cover Crop Data'!$N34,IF(AND(NOT($B61=\"\"),$D$52=\"Weed supression\"),'Cover Crop Data'!$P34,IF(AND(NOT($B61=\"\"),$D$52=\"nematode control\"),\"\",IF(AND(NOT($B61=\"\"),$D$52=\"erosion control\"),'Cover Crop Data'!$O34,\"\")))))","v":""},{"$f":"IF(AND(NOT($B61=\"\"),$E$52=\"Reduce Compaction\"),'Cover Crop Data'!$M34,IF(AND(NOT($B61=\"\"),$E$52=\"residue persistence\"),'Cover Crop Data'!$N34,IF(AND(NOT($B61=\"\"),$E$52=\"nematode control\"),'Cover Crop Data'!$Q34,IF(AND(NOT($B61=\"\"),$E$52=\"residue persistence\"),'Cover Crop Data'!$N34,IF(AND(NOT($B61=\"\"),$E$52=\"Provide N\"),'Cover Crop Data'!$S34,\"\")))))","v":""},{"$f":"IF(AND(NOT($B61=\"\"),$F$52=\"Reduce Compaction\"),'Cover Crop Data'!$M34,IF(AND(NOT($B61=\"\"),$F$52=\"residue persistence\"),'Cover Crop Data'!$N34,IF(AND(NOT($B61=\"\"),$F$52=\"Weed supression\"),'Cover Crop Data'!$P34,IF(AND(NOT($B61=\"\"),$F$52=\"nematode control\"),\"\",IF(AND(NOT($B61=\"\"),$F$52=\"erosion control\"),'Cover Crop Data'!$O34,\"\")))))","v":""},{"$f":"IF(AND(NOT(B61=\"\"),$G$51=\"Provide N\",OR(F$28=\"yes\",F$28=\"no\")),'Cover Crop Data'!S34,IF(AND(NOT(B61=\"\"),$G$51=\"Scavenge N\"),'Cover Crop Data'!T34,IF(AND(NOT(B61=\"\"),$G$51=\"Scavenge P and K\"),'Cover Crop Data'!U34,IF(AND(NOT(B61=\"\"),$G$51=\"attract beneficials\"),'Cover Crop Data'!R34,IF(AND(NOT(B61=\"\"),$G$51=\"high forage quality\"),'Cover Crop Data'!X34,\"\")))))","v":""},{"$f":"IF(B61=\"\",\"\",'Cover Crop Data'!Y34)","v":""},{"$f":"IF(AND(NOT($B61=\"\"),$F$32=\"yes\"),'Cover Crop Data'!$V34,\"\")","v":""},{"$f":"IF(B61=\"\",\"\",HYPERLINK('Reference Links'!J36,'Reference Links'!G36))","v":""},{"$f":"IF(B61=\"\",\"\",HYPERLINK('Reference Links'!J37,'Reference Links'!G37))","v":""}]
[null,{"$f":"IF('Cover Crop Data'!$K11=\"\",\"\",IF(OR($D$46=\"No cover crop recommended\",$D$46=\"Cover crop not recommended with no-till/strip till planting of sweet potatoes\",$D$46=\"At this time, there are no CC recommended for a rice/rice rotation.\"),\"\",IF(AND(OR($D$46=\"Because next cash crop is a legume and you did not specify you wanted to plant a CC mixture, a legume CC is not recommended.\",$D$46=\"Even though you indicated Low N was an issue or you wanted the benefit of added N, only non legume CC are shown because your next cash crop is a legume and you did not want to plant a mixture.\"),OR($F$28=\"no\",$F$28=\"\"),'Cover Crop Data'!K11>='Cover Crop Data'!$K$23),'Cover Crop Data'!L11,IF(AND($D$46=\"All types (functional groups) can be used.\",$F$28=\"yes\",'Cover Crop Data'!$K11>='Cover Crop Data'!$K$21),'Cover Crop Data'!$L11,IF(AND($D$46=\"All types (functional groups) can be used.\",OR($F$28=\"no\",$F$28=\"\"),'Cover Crop Data'!$K11>='Cover Crop Data'!$K$23),'Cover Crop Data'!$L11,\"\")))))","v":""},{"$f":"IF(AND(NOT(B62=\"\"),$C$52=\"Reduce Compaction\"),'Cover Crop Data'!M35,IF(AND(NOT(B62=\"\"),$C$52=\"residue persistence\"),'Cover Crop Data'!N35,IF(AND(NOT(B62=\"\"),$C$52=\"nematode control\"),'Cover Crop Data'!Q35,IF(AND(NOT(B62=\"\"),$C$52=\"residue persistence\"),'Cover Crop Data'!N35,IF(AND(NOT(B62=\"\"),$C$52=\"Provide N\"),'Cover Crop Data'!S35,\"\")))))","v":""},{"$f":"IF(AND(NOT($B62=\"\"),$D$52=\"Reduce Compaction\"),'Cover Crop Data'!$N35,IF(AND(NOT($B62=\"\"),$D$52=\"residue persistence\"),'Cover Crop Data'!$N35,IF(AND(NOT($B62=\"\"),$D$52=\"Weed supression\"),'Cover Crop Data'!$P35,IF(AND(NOT($B62=\"\"),$D$52=\"nematode control\"),\"\",IF(AND(NOT($B62=\"\"),$D$52=\"erosion control\"),'Cover Crop Data'!$O35,\"\")))))","v":""},{"$f":"IF(AND(NOT($B62=\"\"),$E$52=\"Reduce Compaction\"),'Cover Crop Data'!$M35,IF(AND(NOT($B62=\"\"),$E$52=\"residue persistence\"),'Cover Crop Data'!$N35,IF(AND(NOT($B62=\"\"),$E$52=\"nematode control\"),'Cover Crop Data'!$Q35,IF(AND(NOT($B62=\"\"),$E$52=\"residue persistence\"),'Cover Crop Data'!$N35,IF(AND(NOT($B62=\"\"),$E$52=\"Provide N\"),'Cover Crop Data'!$S35,\"\")))))","v":""},{"$f":"IF(AND(NOT($B62=\"\"),$F$52=\"Reduce Compaction\"),'Cover Crop Data'!$M35,IF(AND(NOT($B62=\"\"),$F$52=\"residue persistence\"),'Cover Crop Data'!$N35,IF(AND(NOT($B62=\"\"),$F$52=\"Weed supression\"),'Cover Crop Data'!$P35,IF(AND(NOT($B62=\"\"),$F$52=\"nematode control\"),\"\",IF(AND(NOT($B62=\"\"),$F$52=\"erosion control\"),'Cover Crop Data'!$O35,\"\")))))","v":""},{"$f":"IF(AND(NOT(B62=\"\"),$G$51=\"Provide N\",OR(F$28=\"yes\",F$28=\"no\")),'Cover Crop Data'!S35,IF(AND(NOT(B62=\"\"),$G$51=\"Scavenge N\"),'Cover Crop Data'!T35,IF(AND(NOT(B62=\"\"),$G$51=\"Scavenge P and K\"),'Cover Crop Data'!U35,IF(AND(NOT(B62=\"\"),$G$51=\"attract beneficials\"),'Cover Crop Data'!R35,IF(AND(NOT(B62=\"\"),$G$51=\"high forage quality\"),'Cover Crop Data'!X35,\"\")))))","v":""},{"$f":"IF(B62=\"\",\"\",'Cover Crop Data'!Y35)","v":""},{"$f":"IF(AND(NOT($B62=\"\"),$F$32=\"yes\"),'Cover Crop Data'!$V35,\"\")","v":""},{"$f":"IF(B62=\"\",\"\",HYPERLINK('Reference Links'!J38,'Reference Links'!G38))","v":""}]
[null,{"$f":"IF('Cover Crop Data'!$K12=\"\",\"\",IF(OR($D$46=\"No cover crop recommended\",$D$46=\"Cover crop not recommended with no-till/strip till planting of sweet potatoes\",$D$46=\"At this time, there are no CC recommended for a rice/rice rotation.\",$D$46=\"Because next cash crop is a legume and you did not specify you wanted to plant a CC mixture, a legume CC is not recommended.\"),\"\",IF(AND($D$46=\"Only information on legumes provided because you indicated Low N was an issue or you wanted the benefit of added N and did not want to plant a mixture.\",OR($F$28=\"no\",$F$28=\"\"),'Cover Crop Data'!K12>='Cover Crop Data'!$K$22),'Cover Crop Data'!L12,IF(AND($D$46=\"all types (functional groups) can be used.\",$F$28=\"yes\",'Cover Crop Data'!$K12>='Cover Crop Data'!$K$23),'Cover Crop Data'!$L12,IF(AND($D$46=\"all types (functional groups) can be used.\",OR($F$28=\"no\",$F$28=\"\"),'Cover Crop Data'!$K12>='Cover Crop Data'!$K$22),'Cover Crop Data'!$L12,\"\")))))","v":"Crimson Clover"},{"$f":"IF(AND(NOT(B63=\"\"),$C$52=\"Reduce Compaction\"),'Cover Crop Data'!M36,IF(AND(NOT(B63=\"\"),$C$52=\"residue persistence\"),'Cover Crop Data'!N36,IF(AND(NOT(B63=\"\"),$C$52=\"nematode control\"),'Cover Crop Data'!Q36,IF(AND(NOT(B63=\"\"),$C$52=\"residue persistence\"),'Cover Crop Data'!N36,IF(AND(NOT(B63=\"\"),$C$52=\"Provide N\"),'Cover Crop Data'!S36,\"\")))))","v":"Good/Very Good"},{"$f":"IF(AND(NOT($B63=\"\"),$D$52=\"Reduce Compaction\"),'Cover Crop Data'!$N36,IF(AND(NOT($B63=\"\"),$D$52=\"residue persistence\"),'Cover Crop Data'!$N36,IF(AND(NOT($B63=\"\"),$D$52=\"Weed supression\"),'Cover Crop Data'!$P36,IF(AND(NOT($B63=\"\"),$D$52=\"nematode control\"),\"\",IF(AND(NOT($B63=\"\"),$D$52=\"erosion control\"),'Cover Crop Data'!$O36,\"\")))))","v":""},{"$f":"IF(AND(NOT($B63=\"\"),$E$52=\"Reduce Compaction\"),'Cover Crop Data'!$M36,IF(AND(NOT($B63=\"\"),$E$52=\"residue persistence\"),'Cover Crop Data'!$N36,IF(AND(NOT($B63=\"\"),$E$52=\"nematode control\"),'Cover Crop Data'!$Q36,IF(AND(NOT($B63=\"\"),$E$52=\"residue persistence\"),'Cover Crop Data'!$N36,IF(AND(NOT($B63=\"\"),$E$52=\"Provide N\"),'Cover Crop Data'!$S36,\"\")))))","v":"Fair"},{"$f":"IF(AND(NOT($B63=\"\"),$F$52=\"Reduce Compaction\"),'Cover Crop Data'!$M36,IF(AND(NOT($B63=\"\"),$F$52=\"residue persistence\"),'Cover Crop Data'!$N36,IF(AND(NOT($B63=\"\"),$F$52=\"Weed supression\"),'Cover Crop Data'!$P36,IF(AND(NOT($B63=\"\"),$F$52=\"nematode control\"),\"\",IF(AND(NOT($B63=\"\"),$F$52=\"erosion control\"),'Cover Crop Data'!$O36,\"\")))))","v":"Good"},{"$f":"IF(AND(NOT(B63=\"\"),$G$51=\"Provide N\",OR(F$28=\"yes\",F$28=\"no\",F$28=\"\")),'Cover Crop Data'!S36,IF(AND(NOT(B63=\"\"),$G$51=\"Scavenge N\"),'Cover Crop Data'!T36,IF(AND(NOT(B63=\"\"),$G$51=\"Scavenge P and K\"),'Cover Crop Data'!U36,IF(AND(NOT(B63=\"\"),$G$51=\"attract beneficials\"),'Cover Crop Data'!R36,IF(AND(NOT(B63=\"\"),$G$51=\"high forage quality\"),'Cover Crop Data'!X36,\"\")))))","v":"Good/Very Good"},{"$f":"IF(B63=\"\",\"\",'Cover Crop Data'!Y36)","v":"$$"},{"$f":"IF(AND(NOT($B63=\"\"),$F$32=\"yes\"),'Cover Crop Data'!$V36,\"\")","v":""},{"$f":"IF(B63=\"\",\"\",HYPERLINK('Reference Links'!J40,'Reference Links'!G40))","v":"SARE"},{"$f":"IF(B63=\"\",\"\",HYPERLINK('Reference Links'!J41,'Reference Links'!G41))","v":"Plant Materials"}]
[null,{"$f":"IF('Cover Crop Data'!$K13=\"\",\"\",IF(OR($D$46=\"No cover crop recommended\",$D$46=\"Cover crop not recommended with no-till/strip till planting of sweet potatoes\",$D$46=\"At this time, there are no CC recommended for a rice/rice rotation.\",$D$46=\"Because next cash crop is a legume and you did not specify you wanted to plant a CC mixture, a legume CC is not recommended.\"),\"\",IF(AND($D$46=\"Only information on legumes provided because you indicated Low N was an issue or you wanted the benefit of added N and did not want to plant a mixture.\",OR($F$28=\"no\",$F$28=\"\"),'Cover Crop Data'!K13>='Cover Crop Data'!$K$22),'Cover Crop Data'!L13,IF(AND($D$46=\"all types (functional groups) can be used.\",$F$28=\"yes\",'Cover Crop Data'!$K13>='Cover Crop Data'!$K$23),'Cover Crop Data'!$L13,IF(AND($D$46=\"all types (functional groups) can be used.\",OR($F$28=\"no\",$F$28=\"\"),'Cover Crop Data'!$K13>='Cover Crop Data'!$K$22),'Cover Crop Data'!$L13,\"\")))))","v":"Hairy Vetch"},{"$f":"IF(AND(NOT(B64=\"\"),$C$52=\"Reduce Compaction\"),'Cover Crop Data'!M37,IF(AND(NOT(B64=\"\"),$C$52=\"residue persistence\"),'Cover Crop Data'!N37,IF(AND(NOT(B64=\"\"),$C$52=\"nematode control\"),'Cover Crop Data'!Q37,IF(AND(NOT(B64=\"\"),$C$52=\"residue persistence\"),'Cover Crop Data'!N37,IF(AND(NOT(B64=\"\"),$C$52=\"Provide N\"),'Cover Crop Data'!S37,\"\")))))","v":"Good/Very Good"},{"$f":"IF(AND(NOT($B64=\"\"),$D$52=\"Reduce Compaction\"),'Cover Crop Data'!$N37,IF(AND(NOT($B64=\"\"),$D$52=\"residue persistence\"),'Cover Crop Data'!$N37,IF(AND(NOT($B64=\"\"),$D$52=\"Weed supression\"),'Cover Crop Data'!$P37,IF(AND(NOT($B64=\"\"),$D$52=\"nematode control\"),\"\",IF(AND(NOT($B64=\"\"),$D$52=\"erosion control\"),'Cover Crop Data'!$O37,\"\")))))","v":""},{"$f":"IF(AND(NOT($B64=\"\"),$E$52=\"Reduce Compaction\"),'Cover Crop Data'!$M37,IF(AND(NOT($B64=\"\"),$E$52=\"residue persistence\"),'Cover Crop Data'!$N37,IF(AND(NOT($B64=\"\"),$E$52=\"nematode control\"),'Cover Crop Data'!$Q37,IF(AND(NOT($B64=\"\"),$E$52=\"residue persistence\"),'Cover Crop Data'!$N37,IF(AND(NOT($B64=\"\"),$E$52=\"Provide N\"),'Cover Crop Data'!$S37,\"\")))))","v":"Fair"},{"$f":"IF(AND(NOT($B64=\"\"),$F$52=\"Reduce Compaction\"),'Cover Crop Data'!$M37,IF(AND(NOT($B64=\"\"),$F$52=\"residue persistence\"),'Cover Crop Data'!$N37,IF(AND(NOT($B64=\"\"),$F$52=\"Weed supression\"),'Cover Crop Data'!$P37,IF(AND(NOT($B64=\"\"),$F$52=\"nematode control\"),\"\",IF(AND(NOT($B64=\"\"),$F$52=\"erosion control\"),'Cover Crop Data'!$O37,\"\")))))","v":"Fair"},{"$f":"IF(AND(NOT(B64=\"\"),$G$51=\"Provide N\",OR(F$28=\"yes\",F$28=\"no\",F$28=\"\")),'Cover Crop Data'!S37,IF(AND(NOT(B64=\"\"),$G$51=\"Scavenge N\"),'Cover Crop Data'!T37,IF(AND(NOT(B64=\"\"),$G$51=\"Scavenge P and K\"),'Cover Crop Data'!U37,IF(AND(NOT(B64=\"\"),$G$51=\"attract beneficials\"),'Cover Crop Data'!R37,IF(AND(NOT(B64=\"\"),$G$51=\"high forage quality\"),'Cover Crop Data'!X37,\"\")))))","v":"Good/Very Good"},{"$f":"IF(B64=\"\",\"\",'Cover Crop Data'!Y37)","v":"$$"},{"$f":"IF(AND(NOT($B64=\"\"),$F$32=\"yes\"),'Cover Crop Data'!$V37,\"\")","v":""},{"$f":"IF(B64=\"\",\"\",HYPERLINK('Reference Links'!J42,'Reference Links'!G42))","v":"SARE"}]
[null,{"$f":"IF('Cover Crop Data'!$K14=\"\",\"\",IF(OR($D$46=\"No cover crop recommended\",$D$46=\"Cover crop not recommended with no-till/strip till planting of sweet potatoes\",$D$46=\"At this time, there are no CC recommended for a rice/rice rotation.\",$D$46=\"Because next cash crop is a legume and you did not specify you wanted to plant a CC mixture, a legume CC is not recommended.\"),\"\",IF(AND($D$46=\"Only information on legumes provided because you indicated Low N was an issue or you wanted the benefit of added N and did not want to plant a mixture.\",OR($F$28=\"no\",$F$28=\"\"),'Cover Crop Data'!K14>='Cover Crop Data'!$K$22),'Cover Crop Data'!L14,IF(AND($D$46=\"all types (functional groups) can be used.\",$F$28=\"yes\",'Cover Crop Data'!$K14>='Cover Crop Data'!$K$23),'Cover Crop Data'!$L14,IF(AND($D$46=\"all types (functional groups) can be used.\",OR($F$28=\"no\",$F$28=\"\"),'Cover Crop Data'!$K14>='Cover Crop Data'!$K$22),'Cover Crop Data'!$L14,\"\")))))","v":"Lupine"},{"$f":"IF(AND(NOT(B65=\"\"),$C$52=\"Reduce Compaction\"),'Cover Crop Data'!M38,IF(AND(NOT(B65=\"\"),$C$52=\"residue persistence\"),'Cover Crop Data'!N38,IF(AND(NOT(B65=\"\"),$C$52=\"nematode control\"),'Cover Crop Data'!Q38,IF(AND(NOT(B65=\"\"),$C$52=\"residue persistence\"),'Cover Crop Data'!N38,IF(AND(NOT(B65=\"\"),$C$52=\"Provide N\"),'Cover Crop Data'!S38,\"\")))))","v":"Good/Very Good"},{"$f":"IF(AND(NOT($B65=\"\"),$D$52=\"Reduce Compaction\"),'Cover Crop Data'!$N38,IF(AND(NOT($B65=\"\"),$D$52=\"residue persistence\"),'Cover Crop Data'!$N38,IF(AND(NOT($B65=\"\"),$D$52=\"Weed supression\"),'Cover Crop Data'!$P38,IF(AND(NOT($B65=\"\"),$D$52=\"nematode control\"),\"\",IF(AND(NOT($B65=\"\"),$D$52=\"erosion control\"),'Cover Crop Data'!$O38,\"\")))))","v":""},{"$f":"IF(AND(NOT($B65=\"\"),$E$52=\"Reduce Compaction\"),'Cover Crop Data'!$M38,IF(AND(NOT($B65=\"\"),$E$52=\"residue persistence\"),'Cover Crop Data'!$N38,IF(AND(NOT($B65=\"\"),$E$52=\"nematode control\"),'Cover Crop Data'!$Q38,IF(AND(NOT($B65=\"\"),$E$52=\"residue persistence\"),'Cover Crop Data'!$N38,IF(AND(NOT($B65=\"\"),$E$52=\"Provide N\"),'Cover Crop Data'!$S38,\"\")))))","v":"Good"},{"$f":"IF(AND(NOT($B65=\"\"),$F$52=\"Reduce Compaction\"),'Cover Crop Data'!$M38,IF(AND(NOT($B65=\"\"),$F$52=\"residue persistence\"),'Cover Crop Data'!$N38,IF(AND(NOT($B65=\"\"),$F$52=\"Weed supression\"),'Cover Crop Data'!$P38,IF(AND(NOT($B65=\"\"),$F$52=\"nematode control\"),\"\",IF(AND(NOT($B65=\"\"),$F$52=\"erosion control\"),'Cover Crop Data'!$O38,\"\")))))","v":"Fair"},{"$f":"IF(AND(NOT(B65=\"\"),$G$51=\"Provide N\",OR(F$28=\"yes\",F$28=\"no\",F$28=\"\")),'Cover Crop Data'!S38,IF(AND(NOT(B65=\"\"),$G$51=\"Scavenge N\"),'Cover Crop Data'!T38,IF(AND(NOT(B65=\"\"),$G$51=\"Scavenge P and K\"),'Cover Crop Data'!U38,IF(AND(NOT(B65=\"\"),$G$51=\"attract beneficials\"),'Cover Crop Data'!R38,IF(AND(NOT(B65=\"\"),$G$51=\"high forage quality\"),'Cover Crop Data'!X38,\"\")))))","v":"Good/Very Good"},{"$f":"IF(B65=\"\",\"\",'Cover Crop Data'!Y38)","v":"$$$"},{"$f":"IF(AND(NOT($B65=\"\"),$F$32=\"yes\"),'Cover Crop Data'!$V38,\"\")","v":""},{"$f":"IF(B65=\"\",\"\",HYPERLINK('Reference Links'!J44,'Reference Links'!G44))","v":"SARE"}]
[null,{"$f":"IF('Cover Crop Data'!$K15=\"\",\"\",IF(OR($D$46=\"No cover crop recommended\",$D$46=\"Cover crop not recommended with no-till/strip till planting of sweet potatoes\",$D$46=\"At this time, there are no CC recommended for a rice/rice rotation.\",$D$46=\"Because next cash crop is a legume and you did not specify you wanted to plant a CC mixture, a legume CC is not recommended.\"),\"\",IF(AND($D$46=\"Only information on legumes provided because you indicated Low N was an issue or you wanted the benefit of added N and did not want to plant a mixture.\",OR($F$28=\"no\",$F$28=\"\"),'Cover Crop Data'!K15>='Cover Crop Data'!$K$22),'Cover Crop Data'!L15,IF(AND($D$46=\"all types (functional groups) can be used.\",$F$28=\"yes\",'Cover Crop Data'!$K15>='Cover Crop Data'!$K$23),'Cover Crop Data'!$L15,IF(AND($D$46=\"all types (functional groups) can be used.\",OR($F$28=\"no\",$F$28=\"\"),'Cover Crop Data'!$K15>='Cover Crop Data'!$K$22),'Cover Crop Data'!$L15,\"\")))))","v":"Red Clover*"},{"$f":"IF(AND(NOT(B66=\"\"),$C$52=\"Reduce Compaction\"),'Cover Crop Data'!M39,IF(AND(NOT(B66=\"\"),$C$52=\"residue persistence\"),'Cover Crop Data'!N39,IF(AND(NOT(B66=\"\"),$C$52=\"nematode control\"),'Cover Crop Data'!Q39,IF(AND(NOT(B66=\"\"),$C$52=\"residue persistence\"),'Cover Crop Data'!N39,IF(AND(NOT(B66=\"\"),$C$52=\"Provide N\"),'Cover Crop Data'!S39,\"\")))))","v":"Good/Very Good"},{"$f":"IF(AND(NOT($B66=\"\"),$D$52=\"Reduce Compaction\"),'Cover Crop Data'!$N39,IF(AND(NOT($B66=\"\"),$D$52=\"residue persistence\"),'Cover Crop Data'!$N39,IF(AND(NOT($B66=\"\"),$D$52=\"Weed supression\"),'Cover Crop Data'!$P39,IF(AND(NOT($B66=\"\"),$D$52=\"nematode control\"),\"\",IF(AND(NOT($B66=\"\"),$D$52=\"erosion control\"),'Cover Crop Data'!$O39,\"\")))))","v":""},{"$f":"IF(AND(NOT($B66=\"\"),$E$52=\"Reduce Compaction\"),'Cover Crop Data'!$M39,IF(AND(NOT($B66=\"\"),$E$52=\"residue persistence\"),'Cover Crop Data'!$N39,IF(AND(NOT($B66=\"\"),$E$52=\"nematode control\"),'Cover Crop Data'!$Q39,IF(AND(NOT($B66=\"\"),$E$52=\"residue persistence\"),'Cover Crop Data'!$N39,IF(AND(NOT($B66=\"\"),$E$52=\"Provide N\"),'Cover Crop Data'!$S39,\"\")))))","v":"Very Good"},{"$f":"IF(AND(NOT($B66=\"\"),$F$52=\"Reduce Compaction\"),'Cover Crop Data'!$M39,IF(AND(NOT($B66=\"\"),$F$52=\"residue persistence\"),'Cover Crop Data'!$N39,IF(AND(NOT($B66=\"\"),$F$52=\"Weed supression\"),'Cover Crop Data'!$P39,IF(AND(NOT($B66=\"\"),$F$52=\"nematode control\"),\"\",IF(AND(NOT($B66=\"\"),$F$52=\"erosion control\"),'Cover Crop Data'!$O39,\"\")))))","v":"Fair"},{"$f":"IF(AND(NOT(B66=\"\"),$G$51=\"Provide N\",OR(F$28=\"yes\",F$28=\"no\",F$28=\"\")),'Cover Crop Data'!S39,IF(AND(NOT(B66=\"\"),$G$51=\"Scavenge N\"),'Cover Crop Data'!T39,IF(AND(NOT(B66=\"\"),$G$51=\"Scavenge P and K\"),'Cover Crop Data'!U39,IF(AND(NOT(B66=\"\"),$G$51=\"attract beneficials\"),'Cover Crop Data'!R39,IF(AND(NOT(B66=\"\"),$G$51=\"high forage quality\"),'Cover Crop Data'!X39,\"\")))))","v":"Good/Very Good"},{"$f":"IF(B66=\"\",\"\",'Cover Crop Data'!Y39)","v":"$$"},{"$f":"IF(AND(NOT($B66=\"\"),$F$32=\"yes\"),'Cover Crop Data'!$V39,\"\")","v":""},{"$f":"IF(B66=\"\",\"\",HYPERLINK('Reference Links'!J46,'Reference Links'!G46))","v":"SARE"}]
[null,{"$f":"IF('Cover Crop Data'!$K16=\"\",\"\",IF(OR($D$46=\"No cover crop recommended\",$D$46=\"Cover crop not recommended with no-till/strip till planting of sweet potatoes\",$D$46=\"At this time, there are no CC recommended for a rice/rice rotation.\",$D$46=\"Because next cash crop is a legume and you did not specify you wanted to plant a CC mixture, a legume CC is not recommended.\"),\"\",IF(AND($D$46=\"Only information on legumes provided because you indicated Low N was an issue or you wanted the benefit of added N and did not want to plant a mixture.\",OR($F$28=\"no\",$F$28=\"\"),'Cover Crop Data'!K16>='Cover Crop Data'!$K$22),'Cover Crop Data'!L16,IF(AND($D$46=\"all types (functional groups) can be used.\",$F$28=\"yes\",'Cover Crop Data'!$K16>='Cover Crop Data'!$K$23),'Cover Crop Data'!$L16,IF(AND($D$46=\"all types (functional groups) can be used.\",OR($F$28=\"no\",$F$28=\"\"),'Cover Crop Data'!$K16>='Cover Crop Data'!$K$22),'Cover Crop Data'!$L16,\"\")))))","v":"White Clover*"},{"$f":"IF(AND(NOT(B67=\"\"),$C$52=\"Reduce Compaction\"),'Cover Crop Data'!M40,IF(AND(NOT(B67=\"\"),$C$52=\"residue persistence\"),'Cover Crop Data'!N40,IF(AND(NOT(B67=\"\"),$C$52=\"nematode control\"),'Cover Crop Data'!Q40,IF(AND(NOT(B67=\"\"),$C$52=\"residue persistence\"),'Cover Crop Data'!N40,IF(AND(NOT(B67=\"\"),$C$52=\"Provide N\"),'Cover Crop Data'!S40,\"\")))))","v":"Good/Very Good"},{"$f":"IF(AND(NOT($B67=\"\"),$D$52=\"Reduce Compaction\"),'Cover Crop Data'!$N40,IF(AND(NOT($B67=\"\"),$D$52=\"residue persistence\"),'Cover Crop Data'!$N40,IF(AND(NOT($B67=\"\"),$D$52=\"Weed supression\"),'Cover Crop Data'!$P40,IF(AND(NOT($B67=\"\"),$D$52=\"nematode control\"),\"\",IF(AND(NOT($B67=\"\"),$D$52=\"erosion control\"),'Cover Crop Data'!$O40,\"\")))))","v":""},{"$f":"IF(AND(NOT($B67=\"\"),$E$52=\"Reduce Compaction\"),'Cover Crop Data'!$M40,IF(AND(NOT($B67=\"\"),$E$52=\"residue persistence\"),'Cover Crop Data'!$N40,IF(AND(NOT($B67=\"\"),$E$52=\"nematode control\"),'Cover Crop Data'!$Q40,IF(AND(NOT($B67=\"\"),$E$52=\"residue persistence\"),'Cover Crop Data'!$N40,IF(AND(NOT($B67=\"\"),$E$52=\"Provide N\"),'Cover Crop Data'!$S40,\"\")))))","v":"Fair"},{"$f":"IF(AND(NOT($B67=\"\"),$F$52=\"Reduce Compaction\"),'Cover Crop Data'!$M40,IF(AND(NOT($B67=\"\"),$F$52=\"residue persistence\"),'Cover Crop Data'!$N40,IF(AND(NOT($B67=\"\"),$F$52=\"Weed supression\"),'Cover Crop Data'!$P40,IF(AND(NOT($B67=\"\"),$F$52=\"nematode control\"),\"\",IF(AND(NOT($B67=\"\"),$F$52=\"erosion control\"),'Cover Crop Data'!$O40,\"\")))))","v":"Fair"},{"$f":"IF(AND(NOT(B67=\"\"),$G$51=\"Provide N\",OR(F$28=\"yes\",F$28=\"no\",F$28=\"\")),'Cover Crop Data'!S40,IF(AND(NOT(B67=\"\"),$G$51=\"Scavenge N\"),'Cover Crop Data'!T40,IF(AND(NOT(B67=\"\"),$G$51=\"Scavenge P and K\"),'Cover Crop Data'!U40,IF(AND(NOT(B67=\"\"),$G$51=\"attract beneficials\"),'Cover Crop Data'!R40,IF(AND(NOT(B67=\"\"),$G$51=\"high forage quality\"),'Cover Crop Data'!X40,\"\")))))","v":"Good/Very Good"},{"$f":"IF(B67=\"\",\"\",'Cover Crop Data'!Y40)","v":"$"},{"$f":"IF(AND(NOT($B67=\"\"),$F$32=\"yes\"),'Cover Crop Data'!$V40,\"\")","v":""},{"$f":"IF(B67=\"\",\"\",HYPERLINK('Reference Links'!J48,'Reference Links'!G48))","v":"SARE"}]
[null,{"$f":"IF('Cover Crop Data'!$K17=\"\",\"\",IF(OR($D$46=\"No cover crop recommended\",$D$46=\"Cover crop not recommended with no-till/strip till planting of sweet potatoes\",$D$46=\"At this time, there are no CC recommended for a rice/rice rotation.\",$D$46=\"Because next cash crop is a legume and you did not specify you wanted to plant a CC mixture, a legume CC is not recommended.\"),\"\",IF(AND($D$46=\"Only information on legumes provided because you indicated Low N was an issue or you wanted the benefit of added N and did not want to plant a mixture.\",OR($F$28=\"no\",$F$28=\"\"),'Cover Crop Data'!K17>='Cover Crop Data'!$K$22),'Cover Crop Data'!L17,IF(AND($D$46=\"all types (functional groups) can be used.\",$F$28=\"yes\",'Cover Crop Data'!$K17>='Cover Crop Data'!$K$23),'Cover Crop Data'!$L17,IF(AND($D$46=\"all types (functional groups) can be used.\",OR($F$28=\"no\",$F$28=\"\"),'Cover Crop Data'!$K17>='Cover Crop Data'!$K$22),'Cover Crop Data'!$L17,\"\")))))","v":"Winter Peas"},{"$f":"IF(AND(NOT(B68=\"\"),$C$52=\"Reduce Compaction\"),'Cover Crop Data'!M41,IF(AND(NOT(B68=\"\"),$C$52=\"residue persistence\"),'Cover Crop Data'!N41,IF(AND(NOT(B68=\"\"),$C$52=\"nematode control\"),'Cover Crop Data'!Q41,IF(AND(NOT(B68=\"\"),$C$52=\"residue persistence\"),'Cover Crop Data'!N41,IF(AND(NOT(B68=\"\"),$C$52=\"Provide N\"),'Cover Crop Data'!S41,\"\")))))","v":"Good/Very Good"},{"$f":"IF(AND(NOT($B68=\"\"),$D$52=\"Reduce Compaction\"),'Cover Crop Data'!$N41,IF(AND(NOT($B68=\"\"),$D$52=\"residue persistence\"),'Cover Crop Data'!$N41,IF(AND(NOT($B68=\"\"),$D$52=\"Weed supression\"),'Cover Crop Data'!$P41,IF(AND(NOT($B68=\"\"),$D$52=\"nematode control\"),\"\",IF(AND(NOT($B68=\"\"),$D$52=\"erosion control\"),'Cover Crop Data'!$O41,\"\")))))","v":""},{"$f":"IF(AND(NOT($B68=\"\"),$E$52=\"Reduce Compaction\"),'Cover Crop Data'!$M41,IF(AND(NOT($B68=\"\"),$E$52=\"residue persistence\"),'Cover Crop Data'!$N41,IF(AND(NOT($B68=\"\"),$E$52=\"nematode control\"),'Cover Crop Data'!$Q41,IF(AND(NOT($B68=\"\"),$E$52=\"residue persistence\"),'Cover Crop Data'!$N41,IF(AND(NOT($B68=\"\"),$E$52=\"Provide N\"),'Cover Crop Data'!$S41,\"\")))))","v":"Fair"},{"$f":"IF(AND(NOT($B68=\"\"),$F$52=\"Reduce Compaction\"),'Cover Crop Data'!$M41,IF(AND(NOT($B68=\"\"),$F$52=\"residue persistence\"),'Cover Crop Data'!$N41,IF(AND(NOT($B68=\"\"),$F$52=\"Weed supression\"),'Cover Crop Data'!$P41,IF(AND(NOT($B68=\"\"),$F$52=\"nematode control\"),\"\",IF(AND(NOT($B68=\"\"),$F$52=\"erosion control\"),'Cover Crop Data'!$O41,\"\")))))","v":"Fair"},{"$f":"IF(AND(NOT(B68=\"\"),$G$51=\"Provide N\",OR(F$28=\"yes\",F$28=\"no\",F$28=\"\")),'Cover Crop Data'!S41,IF(AND(NOT(B68=\"\"),$G$51=\"Scavenge N\"),'Cover Crop Data'!T41,IF(AND(NOT(B68=\"\"),$G$51=\"Scavenge P and K\"),'Cover Crop Data'!U41,IF(AND(NOT(B68=\"\"),$G$51=\"attract beneficials\"),'Cover Crop Data'!R41,IF(AND(NOT(B68=\"\"),$G$51=\"high forage quality\"),'Cover Crop Data'!X41,\"\")))))","v":"Good/Very Good"},{"$f":"IF(B68=\"\",\"\",'Cover Crop Data'!Y41)","v":"$$$"},{"$f":"IF(AND(NOT($B68=\"\"),$F$32=\"yes\"),'Cover Crop Data'!$V41,\"\")","v":""},{"$f":"IF(B68=\"\",\"\",HYPERLINK('Reference Links'!J50,'Reference Links'!G50))","v":"SARE"},{"$f":"IF(B68=\"\",\"\",HYPERLINK('Reference Links'!J51,'Reference Links'!G51))","v":"Plant Materials"}]
[null,{"$f":"IF('Cover Crop Data'!$K18=\"\",\"\",IF(OR($D$46=\"No cover crop recommended\",$D$46=\"Cover crop not recommended with no-till/strip till planting of sweet potatoes\",$D$46=\"At this time, there are no CC recommended for a rice/rice rotation.\",$D$46=\"Because next cash crop is a legume and you did not specify you wanted to plant a CC mixture, a legume CC is not recommended.\"),\"\",IF(AND($D$46=\"Only information on legumes provided because you indicated Low N was an issue or you wanted the benefit of added N and did not want to plant a mixture.\",OR($F$28=\"no\",$F$28=\"\"),'Cover Crop Data'!K18>='Cover Crop Data'!$K$22),'Cover Crop Data'!L18,IF(AND($D$46=\"all types (functional groups) can be used.\",$F$28=\"yes\",'Cover Crop Data'!$K18>='Cover Crop Data'!$K$23),'Cover Crop Data'!$L18,IF(AND($D$46=\"all types (functional groups) can be used.\",OR($F$28=\"no\",$F$28=\"\"),'Cover Crop Data'!$K18>='Cover Crop Data'!$K$22),'Cover Crop Data'!$L18,\"\")))))","v":""},{"$f":"IF(AND(NOT(B69=\"\"),$C$52=\"Reduce Compaction\"),'Cover Crop Data'!M42,IF(AND(NOT(B69=\"\"),$C$52=\"residue persistence\"),'Cover Crop Data'!N42,IF(AND(NOT(B69=\"\"),$C$52=\"nematode control\"),'Cover Crop Data'!Q42,IF(AND(NOT(B69=\"\"),$C$52=\"residue persistence\"),'Cover Crop Data'!N42,IF(AND(NOT(B69=\"\"),$C$52=\"Provide N\"),'Cover Crop Data'!S42,\"\")))))","v":""},{"$f":"IF(AND(NOT($B69=\"\"),$D$52=\"Reduce Compaction\"),'Cover Crop Data'!$N42,IF(AND(NOT($B69=\"\"),$D$52=\"residue persistence\"),'Cover Crop Data'!$N42,IF(AND(NOT($B69=\"\"),$D$52=\"Weed supression\"),'Cover Crop Data'!$P42,IF(AND(NOT($B69=\"\"),$D$52=\"nematode control\"),\"\",IF(AND(NOT($B69=\"\"),$D$52=\"erosion control\"),'Cover Crop Data'!$O42,\"\")))))","v":""},{"$f":"IF(AND(NOT($B69=\"\"),$E$52=\"Reduce Compaction\"),'Cover Crop Data'!$M42,IF(AND(NOT($B69=\"\"),$E$52=\"residue persistence\"),'Cover Crop Data'!$N42,IF(AND(NOT($B69=\"\"),$E$52=\"nematode control\"),'Cover Crop Data'!$Q42,IF(AND(NOT($B69=\"\"),$E$52=\"residue persistence\"),'Cover Crop Data'!$N42,IF(AND(NOT($B69=\"\"),$E$52=\"Provide N\"),'Cover Crop Data'!$S42,\"\")))))","v":""},{"$f":"IF(AND(NOT($B69=\"\"),$F$52=\"Reduce Compaction\"),'Cover Crop Data'!$M42,IF(AND(NOT($B69=\"\"),$F$52=\"residue persistence\"),'Cover Crop Data'!$N42,IF(AND(NOT($B69=\"\"),$F$52=\"Weed supression\"),'Cover Crop Data'!$P42,IF(AND(NOT($B69=\"\"),$F$52=\"nematode control\"),\"\",IF(AND(NOT($B69=\"\"),$F$52=\"erosion control\"),'Cover Crop Data'!$O42,\"\")))))","v":""},{"$f":"IF(AND(NOT(B69=\"\"),$G$51=\"Provide N\",OR(F$28=\"yes\",F$28=\"no\",F$28=\"\")),'Cover Crop Data'!S42,IF(AND(NOT(B69=\"\"),$G$51=\"Scavenge N\"),'Cover Crop Data'!T42,IF(AND(NOT(B69=\"\"),$G$51=\"Scavenge P and K\"),'Cover Crop Data'!U42,IF(AND(NOT(B69=\"\"),$G$51=\"attract beneficials\"),'Cover Crop Data'!R42,IF(AND(NOT(B69=\"\"),$G$51=\"high forage quality\"),'Cover Crop Data'!X42,\"\")))))","v":""},{"$f":"IF(B69=\"\",\"\",'Cover Crop Data'!Y42)","v":""},{"$f":"IF(AND(NOT($B69=\"\"),$F$32=\"yes\"),'Cover Crop Data'!$V42,\"\")","v":""},{"$f":"IF(B69=\"\",\"\",HYPERLINK('Reference Links'!J52,'Reference Links'!G52))","v":""},{"$f":"IF(B69=\"\",\"\",HYPERLINK('Reference Links'!J53,'Reference Links'!G53))","v":""}]
[null,{"$f":"IF('Cover Crop Data'!$K19=\"\",\"\",IF(OR($D$46=\"No cover crop recommended\",$D$46=\"Cover crop not recommended with no-till/strip till planting of sweet potatoes\",$D$46=\"At this time, there are no CC recommended for a rice/rice rotation.\",$D$46=\"Because next cash crop is a legume and you did not specify you wanted to plant a CC mixture, a legume CC is not recommended.\"),\"\",IF(AND($D$46=\"Only information on legumes provided because you indicated Low N was an issue or you wanted the benefit of added N and did not want to plant a mixture.\",OR($F$28=\"no\",$F$28=\"\"),'Cover Crop Data'!K19>='Cover Crop Data'!$K$22),'Cover Crop Data'!L19,IF(AND($D$46=\"all types (functional groups) can be used.\",$F$28=\"yes\",'Cover Crop Data'!$K19>='Cover Crop Data'!$K$23),'Cover Crop Data'!$L19,IF(AND($D$46=\"all types (functional groups) can be used.\",OR($F$28=\"no\",$F$28=\"\"),'Cover Crop Data'!$K19>='Cover Crop Data'!$K$22),'Cover Crop Data'!$L19,\"\")))))","v":""},{"$f":"IF(AND(NOT(B70=\"\"),$C$52=\"Reduce Compaction\"),'Cover Crop Data'!M43,IF(AND(NOT(B70=\"\"),$C$52=\"residue persistence\"),'Cover Crop Data'!N43,IF(AND(NOT(B70=\"\"),$C$52=\"nematode control\"),'Cover Crop Data'!Q43,IF(AND(NOT(B70=\"\"),$C$52=\"residue persistence\"),'Cover Crop Data'!N43,IF(AND(NOT(B70=\"\"),$C$52=\"Provide N\"),'Cover Crop Data'!S43,\"\")))))","v":""},{"$f":"IF(AND(NOT($B70=\"\"),$D$52=\"Reduce Compaction\"),'Cover Crop Data'!$N43,IF(AND(NOT($B70=\"\"),$D$52=\"residue persistence\"),'Cover Crop Data'!$N43,IF(AND(NOT($B70=\"\"),$D$52=\"Weed supression\"),'Cover Crop Data'!$P43,IF(AND(NOT($B70=\"\"),$D$52=\"nematode control\"),\"\",IF(AND(NOT($B70=\"\"),$D$52=\"erosion control\"),'Cover Crop Data'!$O43,\"\")))))","v":""},{"$f":"IF(AND(NOT($B70=\"\"),$E$52=\"Reduce Compaction\"),'Cover Crop Data'!$M43,IF(AND(NOT($B70=\"\"),$E$52=\"residue persistence\"),'Cover Crop Data'!$N43,IF(AND(NOT($B70=\"\"),$E$52=\"nematode control\"),'Cover Crop Data'!$Q43,IF(AND(NOT($B70=\"\"),$E$52=\"residue persistence\"),'Cover Crop Data'!$N43,IF(AND(NOT($B70=\"\"),$E$52=\"Provide N\"),'Cover Crop Data'!$S43,\"\")))))","v":""},{"$f":"IF(AND(NOT($B70=\"\"),$F$52=\"Reduce Compaction\"),'Cover Crop Data'!$M43,IF(AND(NOT($B70=\"\"),$F$52=\"residue persistence\"),'Cover Crop Data'!$N43,IF(AND(NOT($B70=\"\"),$F$52=\"Weed supression\"),'Cover Crop Data'!$P43,IF(AND(NOT($B70=\"\"),$F$52=\"nematode control\"),\"\",IF(AND(NOT($B70=\"\"),$F$52=\"erosion control\"),'Cover Crop Data'!$O43,\"\")))))","v":""},{"$f":"IF(AND(NOT(B70=\"\"),$G$51=\"Provide N\",OR(F$28=\"yes\",F$28=\"no\",F$28=\"\")),'Cover Crop Data'!S43,IF(AND(NOT(B70=\"\"),$G$51=\"Scavenge N\"),'Cover Crop Data'!T43,IF(AND(NOT(B70=\"\"),$G$51=\"Scavenge P and K\"),'Cover Crop Data'!U43,IF(AND(NOT(B70=\"\"),$G$51=\"attract beneficials\"),'Cover Crop Data'!R43,IF(AND(NOT(B70=\"\"),$G$51=\"high forage quality\"),'Cover Crop Data'!X43,\"\")))))","v":""},{"$f":"IF(B70=\"\",\"\",'Cover Crop Data'!Y43)","v":""},{"$f":"IF(AND(NOT($B70=\"\"),$F$32=\"yes\"),'Cover Crop Data'!$V43,\"\")","v":""},{"$f":"IF(B70=\"\",\"\",HYPERLINK('Reference Links'!J54,'Reference Links'!G54))","v":""},{"$f":"IF(B70=\"\",\"\",HYPERLINK('Reference Links'!J55,'Reference Links'!G55))","v":""}]
[null,{"$f":"IF(AND(B66=\"\",B67=\"\"),\"\",\"*This is a perennial species that may not be suited to certain cropping situations.  Consult local extension recommendations.\")","v":"*This is a perennial species that may not be suited to certain cropping situations.  Consult local extension recommendations."}]

{"sheet":"Cover Crop Data","index":1,"n_rows":71,"n_cols":32,"rows_kept":71,"cut":false,"hidden":false,"merged":[[47,14,47,17],[19,6,19,7],[54,0,54,1],[47,0,47,1],[70,0,70,11],[53,0,53,1],[20,6,20,7],[21,6,21,7],[22,6,22,7]]}
["Growing Period","Use before Legume","Tolerant of Poor Drainage","Rice","Min pH","Max pH","1st Problem","2nd Problem","1st Benefit","2nd Benefit","Total","Species/Rating","Compaction reduction","Residue Persistence","Erosion Control","Weed Control","Nematode Control","Attract Beneficials","Provide N","Nitrogen Scavenger","P&K scavenger","Tolerant of Poor Drainage (0-4 scale)","Recommended for rice","Forage Quality","Perennial","Seed Size","pH range low","pH range high","Funtional Group","Growing Period","Drill seeding Rate","Broadcast seeding rate"]
[{"$f":"IF(AND('Finding the Right Cover Crop'!$D$45=\"cool season\",AD2=\"cool season\"),1,IF(AND('Finding the Right Cover Crop'!$D$45=\"warm season\",AD2=\"warm season\"),1,IF(AND('Finding the Right Cover Crop'!$D$45=\"No full season cover crop possible with this combination.  It may be possible to use a warm season cover crop species or variety with a short maturity window.\",AD2=\"warm season\"),1,\"\")))","v":""},{"$f":"IF(AND('Finding the Right Cover Crop'!$D$46=\"Because next cash crop is a legume and you did not specify you wanted to plant a CC mixture, a legume CC is not recommended.\",'Cover Crop Data'!AC3=\"L\"),\"\",1)","v":1},{"$f":"IF(AND('Finding the Right Cover Crop'!$F$32=\"Yes\",'Cover Crop Data'!V2>0),V2,IF(OR('Finding the Right Cover Crop'!$F$32=\"no\",'Finding the Right Cover Crop'!$F$32=\"\",'Cover Crop Data'!D2>0),0,\"\"))","v":0},{"$f":"IF(AND('Finding the Right Cover Crop'!$F$14=\"rice\",'Cover Crop Data'!W2>0),W2,IF(OR('Finding the Right Cover Crop'!$F$14=\"corn\",'Finding the Right Cover Crop'!$F$14=\"cotton\",'Finding the Right Cover Crop'!$F$14=\"soybeans\",'Finding the Right Cover Crop'!$F$14=\"peanuts\",'Finding the Right Cover Crop'!$F$14=\"sweet corn\",'Finding the Right Cover Crop'!$F$14=\"sweet potatoes\",'Finding the Right Cover Crop'!$F$14=\"small grains (wheat, oats, rye)\"),0,\"\"))","v":0},null,null,{"$f":"IF('Finding the Right Cover Crop'!$F$22='Cover Crop Data'!$A$49,$M2+$N2,IF('Finding the Right Cover Crop'!$F$22='Cover Crop Data'!$A$50,$M2+$N2,IF('Finding the Right Cover Crop'!$F$22='Cover Crop Data'!$A$51,$N2+$P2,IF('Finding the Right Cover Crop'!$F$22='Cover Crop Data'!$A$52,$Q2,IF('Finding the Right Cover Crop'!$F$22='Cover Crop Data'!$A$53,$N2+$O2,IF('Finding the Right Cover Crop'!$F$22=\"Low N\",$S2,IF(AND('Finding the Right Cover Crop'!$F$22=\"Low N\",'Finding the Right Cover Crop'!$F$28=\"yes\"),$S2,\"\")))))))","v":0},{"$f":"IF('Finding the Right Cover Crop'!$F$24='Cover Crop Data'!$A$49,$M2+$N2,IF('Finding the Right Cover Crop'!$F$24='Cover Crop Data'!$A$50,$M2+$N2,IF('Finding the Right Cover Crop'!$F$24='Cover Crop Data'!$A$51,$N2+$P2,IF('Finding the Right Cover Crop'!$F$24='Cover Crop Data'!$A$52,$Q2,IF('Finding the Right Cover Crop'!$F$24='Cover Crop Data'!$A$53,$N2+$O2,IF(AND('Finding the Right Cover Crop'!$F$24=\"Low N\",'Finding the Right Cover Crop'!$F$28=\"no\",$S2=0),\"\",IF(AND('Finding the Right Cover Crop'!$F$24=\"low N\",'Finding the Right Cover Crop'!$F$28=\"no\",'Cover Crop Data'!$S2>0),'Cover Crop Data'!$S2,IF(AND('Finding the Right Cover Crop'!$F$24=\"Low N\",'Finding the Right Cover Crop'!$F$28=\"yes\"),$S2,0))))))))","v":1},{"$f":"IF(AND('Finding the Right Cover Crop'!$F$26=\"provide N\",OR('Finding the Right Cover Crop'!$F$28=\"no\",'Finding the Right Cover Crop'!$F$28=\"\"),'Cover Crop Data'!AC2=\"L\"),1,IF(AND('Finding the Right Cover Crop'!$F$26=\"provide N\",'Finding the Right Cover Crop'!$F$28=\"yes\",OR('Cover Crop Data'!AC2=\"F\",'Cover Crop Data'!AC2=\"L\",'Cover Crop Data'!AC2=\"G\")),1,IF(AND('Finding the Right Cover Crop'!$F$26=\"scavenge N\"),'Cover Crop Data'!T2,IF('Finding the Right Cover Crop'!$F$26=\"scavenge P and K\",'Cover Crop Data'!U2,IF('Finding the Right Cover Crop'!$F$26=\"attract beneficials\",'Cover Crop Data'!R2,IF('Finding the Right Cover Crop'!$F$26=\"high forage quality\",'Cover Crop Data'!X2,0))))))","v":1},null,{"$f":"IF(OR(A2=\"\",B2=\"\",C2=\"\",D2=\"\",G2=\"\",H2=\"\",I2=\"\"),\"\",SUM(G2:J2))","v":""},"Buckwheat",1,0,1,4,1,4,0,0,4,1,3,0,"N",null,5,7,"F","Warm Season"]
[{"$f":"IF(AND('Finding the Right Cover Crop'!$D$45=\"cool season\",AD3=\"cool season\"),1,IF(AND('Finding the Right Cover Crop'!$D$45=\"warm season\",AD3=\"warm season\"),1,IF(AND('Finding the Right Cover Crop'!$D$45=\"No full season cover crop possible with this combination.  It may be possible to use a warm season cover crop species or variety with a short maturity window.\",AD3=\"warm season\"),1,\"\")))","v":1},{"$f":"IF(AND('Finding the Right Cover Crop'!$D$46=\"Because next cash crop is a legume and you did not specify you wanted to plant a CC mixture, a legume CC is not recommended.\",'Cover Crop Data'!AC4=\"L\"),\"\",1)","v":1},{"$f":"IF(AND('Finding the Right Cover Crop'!$F$32=\"Yes\",'Cover Crop Data'!V3>0),V3,IF(OR('Finding the Right Cover Crop'!$F$32=\"no\",'Finding the Right Cover Crop'!$F$32=\"\",'Cover Crop Data'!D3>0),0,\"\"))","v":0},{"$f":"IF(AND('Finding the Right Cover Crop'!$F$14=\"rice\",'Cover Crop Data'!W3>0),W3,IF(OR('Finding the Right Cover Crop'!$F$14=\"corn\",'Finding the Right Cover Crop'!$F$14=\"cotton\",'Finding the Right Cover Crop'!$F$14=\"soybeans\",'Finding the Right Cover Crop'!$F$14=\"peanuts\",'Finding the Right Cover Crop'!$F$14=\"sweet corn\",'Finding the Right Cover Crop'!$F$14=\"sweet potatoes\",'Finding the Right Cover Crop'!$F$14=\"small grains (wheat, oats, rye)\"),0,\"\"))","v":0},null,null,{"$f":"IF('Finding the Right Cover Crop'!$F$22='Cover Crop Data'!$A$49,$M3+$N3,IF('Finding the Right Cover Crop'!$F$22='Cover Crop Data'!$A$50,$M3+$N3,IF('Finding the Right Cover Crop'!$F$22='Cover Crop Data'!$A$51,$N3+$P3,IF('Finding the Right Cover Crop'!$F$22='Cover Crop Data'!$A$52,$Q3,IF('Finding the Right Cover Crop'!$F$22='Cover Crop Data'!$A$53,$N3+$O3,IF('Finding the Right Cover Crop'!$F$22=\"Low N\",$S3,IF(AND('Finding the Right Cover Crop'!$F$22=\"Low N\",'Finding the Right Cover Crop'!$F$28=\"yes\"),$S3,\"\")))))))","v":0},{"$f":"IF('Finding the Right Cover Crop'!$F$24='Cover Crop Data'!$A$49,$M3+$N3,IF('Finding the Right Cover Crop'!$F$24='Cover Crop Data'!$A$50,$M3+$N3,IF('Finding the Right Cover Crop'!$F$24='Cover Crop Data'!$A$51,$N3+$P3,IF('Finding the Right Cover Crop'!$F$24='Cover Crop Data'!$A$52,$Q3,IF('Finding the Right Cover Crop'!$F$24='Cover Crop Data'!$A$53,$N3+$O3,IF(AND('Finding the Right Cover Crop'!$F$24=\"Low N\",'Finding the Right Cover Crop'!$F$28=\"no\",$S3=0),\"\",IF(AND('Finding the Right Cover Crop'!$F$24=\"low N\",'Finding the Right Cover Crop'!$F$28=\"no\",'Cover Crop Data'!$S3>0),'Cover Crop Data'!$S3,IF(AND('Finding the Right Cover Crop'!$F$24=\"Low N\",'Finding the Right Cover Crop'!$F$28=\"yes\"),$S3,0))))))))","v":3},{"$f":"IF(AND('Finding the Right Cover Crop'!$F$26=\"provide N\",OR('Finding the Right Cover Crop'!$F$28=\"no\",'Finding the Right Cover Crop'!$F$28=\"\"),'Cover Crop Data'!AC3=\"L\"),1,IF(AND('Finding the Right Cover Crop'!$F$26=\"provide N\",'Finding the Right Cover Crop'!$F$28=\"yes\",OR('Cover Crop Data'!AC3=\"F\",'Cover Crop Data'!AC3=\"L\",'Cover Crop Data'!AC3=\"G\")),1,IF(AND('Finding the Right Cover Crop'!$F$26=\"scavenge N\"),'Cover Crop Data'!T3,IF('Finding the Right Cover Crop'!$F$26=\"scavenge P and K\",'Cover Crop Data'!U3,IF('Finding the Right Cover Crop'!$F$26=\"attract beneficials\",'Cover Crop Data'!R3,IF('Finding the Right Cover Crop'!$F$26=\"high forage quality\",'Cover Crop Data'!X3,0))))))","v":1},null,{"$f":"IF(OR(A3=\"\",B3=\"\",C3=\"\",D3=\"\",G3=\"\",H3=\"\",I3=\"\"),\"\",SUM(G3:J3))","v":4},"Mustards",2,1,3,3,3,2,0,2,3,1,null,2,"N","s",5.5,6.8,"F","Cool Season"]
[{"$f":"IF(AND('Finding the Right Cover Crop'!$D$45=\"cool season\",AD4=\"cool season\"),1,IF(AND('Finding the Right Cover Crop'!$D$45=\"warm season\",AD4=\"warm season\"),1,IF(AND('Finding the Right Cover Crop'!$D$45=\"No full season cover crop possible with this combination.  It may be possible to use a warm season cover crop species or variety with a short maturity window.\",AD4=\"warm season\"),1,\"\")))","v":1},{"$f":"IF(AND('Finding the Right Cover Crop'!$D$46=\"Because next cash crop is a legume and you did not specify you wanted to plant a CC mixture, a legume CC is not recommended.\",'Cover Crop Data'!AC5=\"L\"),\"\",1)","v":1},{"$f":"IF(AND('Finding the Right Cover Crop'!$F$32=\"Yes\",'Cover Crop Data'!V4>0),V4,IF(OR('Finding the Right Cover Crop'!$F$32=\"no\",'Finding the Right Cover Crop'!$F$32=\"\",'Cover Crop Data'!D4>0),0,\"\"))","v":0},{"$f":"IF(AND('Finding the Right Cover Crop'!$F$14=\"rice\",'Cover Crop Data'!W4>0),W4,IF(OR('Finding the Right Cover Crop'!$F$14=\"corn\",'Finding the Right Cover Crop'!$F$14=\"cotton\",'Finding the Right Cover Crop'!$F$14=\"soybeans\",'Finding the Right Cover Crop'!$F$14=\"peanuts\",'Finding the Right Cover Crop'!$F$14=\"sweet corn\",'Finding the Right Cover Crop'!$F$14=\"sweet potatoes\",'Finding the Right Cover Crop'!$F$14=\"small grains (wheat, oats, rye)\"),0,\"\"))","v":0},null,null,{"$f":"IF('Finding the Right Cover Crop'!$F$22='Cover Crop Data'!$A$49,$M4+$N4,IF('Finding the Right Cover Crop'!$F$22='Cover Crop Data'!$A$50,$M4+$N4,IF('Finding the Right Cover Crop'!$F$22='Cover Crop Data'!$A$51,$N4+$P4,IF('Finding the Right Cover Crop'!$F$22='Cover Crop Data'!$A$52,$Q4,IF('Finding the Right Cover Crop'!$F$22='Cover Crop Data'!$A$53,$N4+$O4,IF('Finding the Right Cover Crop'!$F$22=\"Low N\",$S4,IF(AND('Finding the Right Cover Crop'!$F$22=\"Low N\",'Finding the Right Cover Crop'!$F$28=\"yes\"),$S4,\"\")))))))","v":0},{"$f":"IF('Finding the Right Cover Crop'!$F$24='Cover Crop Data'!$A$49,$M4+$N4,IF('Finding the Right Cover Crop'!$F$24='Cover Crop Data'!$A$50,$M4+$N4,IF('Finding the Right Cover Crop'!$F$24='Cover Crop Data'!$A$51,$N4+$P4,IF('Finding the Right Cover Crop'!$F$24='Cover Crop Data'!$A$52,$Q4,IF('Finding the Right Cover Crop'!$F$24='Cover Crop Data'!$A$53,$N4+$O4,IF(AND('Finding the Right Cover Crop'!$F$24=\"Low N\",'Finding the Right Cover Crop'!$F$28=\"no\",$S4=0),\"\",IF(AND('Finding the Right Cover Crop'!$F$24=\"low N\",'Finding the Right Cover Crop'!$F$28=\"no\",'Cover Crop Data'!$S4>0),'Cover Crop Data'!$S4,IF(AND('Finding the Right Cover Crop'!$F$24=\"Low N\",'Finding the Right Cover Crop'!$F$28=\"yes\"),$S4,0))))))))","v":4},{"$f":"IF(AND('Finding the Right Cover Crop'!$F$26=\"provide N\",OR('Finding the Right Cover Crop'!$F$28=\"no\",'Finding the Right Cover Crop'!$F$28=\"\"),'Cover Crop Data'!AC4=\"L\"),1,IF(AND('Finding the Right Cover Crop'!$F$26=\"provide N\",'Finding the Right Cover Crop'!$F$28=\"yes\",OR('Cover Crop Data'!AC4=\"F\",'Cover Crop Data'!AC4=\"L\",'Cover Crop Data'!AC4=\"G\")),1,IF(AND('Finding the Right Cover Crop'!$F$26=\"scavenge N\"),'Cover Crop Data'!T4,IF('Finding the Right Cover Crop'!$F$26=\"scavenge P and K\",'Cover Crop Data'!U4,IF('Finding the Right Cover Crop'!$F$26=\"attract beneficials\",'Cover Crop Data'!R4,IF('Finding the Right Cover Crop'!$F$26=\"high forage quality\",'Cover Crop Data'!X4,0))))))","v":1},null,5,"Radish",3,1,3,4,3,1,0,4,3,1,2,2,"N","s",5.8,6.8,"F","Cool Season"]
[{"$f":"IF(AND('Finding the Right Cover Crop'!$D$45=\"cool season\",AD5=\"cool season\"),1,IF(AND('Finding the Right Cover Crop'!$D$45=\"warm season\",AD5=\"warm season\"),1,IF(AND('Finding the Right Cover Crop'!$D$45=\"No full season cover crop possible with this combination.  It may be possible to use a warm season cover crop species or variety with a short maturity window.\",AD5=\"warm season\"),1,\"\")))","v":1},{"$f":"IF(AND('Finding the Right Cover Crop'!$D$46=\"Because next cash crop is a legume and you did not specify you wanted to plant a CC mixture, a legume CC is not recommended.\",'Cover Crop Data'!AC6=\"L\"),\"\",1)","v":1},{"$f":"IF(AND('Finding the Right Cover Crop'!$F$32=\"Yes\",'Cover Crop Data'!V5>0),V5,IF(OR('Finding the Right Cover Crop'!$F$32=\"no\",'Finding the Right Cover Crop'!$F$32=\"\",'Cover Crop Data'!D5>0),0,\"\"))","v":0},{"$f":"IF(AND('Finding the Right Cover Crop'!$F$14=\"rice\",'Cover Crop Data'!W5>0),W5,IF(OR('Finding the Right Cover Crop'!$F$14=\"corn\",'Finding the Right Cover Crop'!$F$14=\"cotton\",'Finding the Right Cover Crop'!$F$14=\"soybeans\",'Finding the Right Cover Crop'!$F$14=\"peanuts\",'Finding the Right Cover Crop'!$F$14=\"sweet corn\",'Finding the Right Cover Crop'!$F$14=\"sweet potatoes\",'Finding the Right Cover Crop'!$F$14=\"small grains (wheat, oats, rye)\"),0,\"\"))","v":0},null,null,{"$f":"IF('Finding the Right Cover Crop'!$F$22='Cover Crop Data'!$A$49,$M5+$N5,IF('Finding the Right Cover Crop'!$F$22='Cover Crop Data'!$A$50,$M5+$N5,IF('Finding the Right Cover Crop'!$F$22='Cover Crop Data'!$A$51,$N5+$P5,IF('Finding the Right Cover Crop'!$F$22='Cover Crop Data'!$A$52,$Q5,IF('Finding the Right Cover Crop'!$F$22='Cover Crop Data'!$A$53,$N5+$O5,IF('Finding the Right Cover Crop'!$F$22=\"Low N\",$S5,IF(AND('Finding the Right Cover Crop'!$F$22=\"Low N\",'Finding the Right Cover Crop'!$F$28=\"yes\"),$S5,\"\")))))))","v":0},{"$f":"IF('Finding the Right Cover Crop'!$F$24='Cover Crop Data'!$A$49,$M5+$N5,IF('Finding the Right Cover Crop'!$F$24='Cover Crop Data'!$A$50,$M5+$N5,IF('Finding the Right Cover Crop'!$F$24='Cover Crop Data'!$A$51,$N5+$P5,IF('Finding the Right Cover Crop'!$F$24='Cover Crop Data'!$A$52,$Q5,IF('Finding the Right Cover Crop'!$F$24='Cover Crop Data'!$A$53,$N5+$O5,IF(AND('Finding the Right Cover Crop'!$F$24=\"Low N\",'Finding the Right Cover Crop'!$F$28=\"no\",$S5=0),\"\",IF(AND('Finding the Right Cover Crop'!$F$24=\"low N\",'Finding the Right Cover Crop'!$F$28=\"no\",'Cover Crop Data'!$S5>0),'Cover Crop Data'!$S5,IF(AND('Finding the Right Cover Crop'!$F$24=\"Low N\",'Finding the Right Cover Crop'!$F$28=\"yes\"),$S5,0))))))))","v":4},{"$f":"IF(AND('Finding the Right Cover Crop'!$F$26=\"provide N\",OR('Finding the Right Cover Crop'!$F$28=\"no\",'Finding the Right Cover Crop'!$F$28=\"\"),'Cover Crop Data'!AC5=\"L\"),1,IF(AND('Finding the Right Cover Crop'!$F$26=\"provide N\",'Finding the Right Cover Crop'!$F$28=\"yes\",OR('Cover Crop Data'!AC5=\"F\",'Cover Crop Data'!AC5=\"L\",'Cover Crop Data'!AC5=\"G\")),1,IF(AND('Finding the Right Cover Crop'!$F$26=\"scavenge N\"),'Cover Crop Data'!T5,IF('Finding the Right Cover Crop'!$F$26=\"scavenge P and K\",'Cover Crop Data'!U5,IF('Finding the Right Cover Crop'!$F$26=\"attract beneficials\",'Cover Crop Data'!R5,IF('Finding the Right Cover Crop'!$F$26=\"high forage quality\",'Cover Crop Data'!X5,0))))))","v":1},null,5,"Rapeseed",2,2,3,3,3,2,0,3,1,1,null,2,"N","s",5.5,7,"F","Cool Season"]
[{"$f":"IF(AND('Finding the Right Cover Crop'!$D$45=\"cool season\",AD6=\"cool season\"),1,IF(AND('Finding the Right Cover Crop'!$D$45=\"warm season\",AD6=\"warm season\"),1,IF(AND('Finding the Right Cover Crop'!$D$45=\"No full season cover crop possible with this combination.  It may be possible to use a warm season cover crop species or variety with a short maturity window.\",AD6=\"warm season\"),1,\"\")))","v":1},{"$f":"IF(AND('Finding the Right Cover Crop'!$D$46=\"Because next cash crop is a legume and you did not specify you wanted to plant a CC mixture, a legume CC is not recommended.\",'Cover Crop Data'!AC7=\"L\"),\"\",1)","v":1},{"$f":"IF(AND('Finding the Right Cover Crop'!$F$32=\"Yes\",'Cover Crop Data'!V6>0),V6,IF(OR('Finding the Right Cover Crop'!$F$32=\"no\",'Finding the Right Cover Crop'!$F$32=\"\",'Cover Crop Data'!D6>0),0,\"\"))","v":0},{"$f":"IF(AND('Finding the Right Cover Crop'!$F$14=\"rice\",'Cover Crop Data'!W6>0),W6,IF(OR('Finding the Right Cover Crop'!$F$14=\"corn\",'Finding the Right Cover Crop'!$F$14=\"cotton\",'Finding the Right Cover Crop'!$F$14=\"soybeans\",'Finding the Right Cover Crop'!$F$14=\"peanuts\",'Finding the Right Cover Crop'!$F$14=\"sweet corn\",'Finding the Right Cover Crop'!$F$14=\"sweet potatoes\",'Finding the Right Cover Crop'!$F$14=\"small grains (wheat, oats, rye)\"),0,\"\"))","v":0},null,null,{"$f":"IF('Finding the Right Cover Crop'!$F$22='Cover Crop Data'!$A$49,$M6+$N6,IF('Finding the Right Cover Crop'!$F$22='Cover Crop Data'!$A$50,$M6+$N6,IF('Finding the Right Cover Crop'!$F$22='Cover Crop Data'!$A$51,$N6+$P6,IF('Finding the Right Cover Crop'!$F$22='Cover Crop Data'!$A$52,$Q6,IF('Finding the Right Cover Crop'!$F$22='Cover Crop Data'!$A$53,$N6+$O6,IF('Finding the Right Cover Crop'!$F$22=\"Low N\",$S6,IF(AND('Finding the Right Cover Crop'!$F$22=\"Low N\",'Finding the Right Cover Crop'!$F$28=\"yes\"),$S6,\"\")))))))","v":0},{"$f":"IF('Finding the Right Cover Crop'!$F$24='Cover Crop Data'!$A$49,$M6+$N6,IF('Finding the Right Cover Crop'!$F$24='Cover Crop Data'!$A$50,$M6+$N6,IF('Finding the Right Cover Crop'!$F$24='Cover Crop Data'!$A$51,$N6+$P6,IF('Finding the Right Cover Crop'!$F$24='Cover Crop Data'!$A$52,$Q6,IF('Finding the Right Cover Crop'!$F$24='Cover Crop Data'!$A$53,$N6+$O6,IF(AND('Finding the Right Cover Crop'!$F$24=\"Low N\",'Finding the Right Cover Crop'!$F$28=\"no\",$S6=0),\"\",IF(AND('Finding the Right Cover Crop'!$F$24=\"low N\",'Finding the Right Cover Crop'!$F$28=\"no\",'Cover Crop Data'!$S6>0),'Cover Crop Data'!$S6,IF(AND('Finding the Right Cover Crop'!$F$24=\"Low N\",'Finding the Right Cover Crop'!$F$28=\"yes\"),$S6,0))))))))","v":3},{"$f":"IF(AND('Finding the Right Cover Crop'!$F$26=\"provide N\",OR('Finding the Right Cover Crop'!$F$28=\"no\",'Finding the Right Cover Crop'!$F$28=\"\"),'Cover Crop Data'!AC6=\"L\"),1,IF(AND('Finding the Right Cover Crop'!$F$26=\"provide N\",'Finding the Right Cover Crop'!$F$28=\"yes\",OR('Cover Crop Data'!AC6=\"F\",'Cover Crop Data'!AC6=\"L\",'Cover Crop Data'!AC6=\"G\")),1,IF(AND('Finding the Right Cover Crop'!$F$26=\"scavenge N\"),'Cover Crop Data'!T6,IF('Finding the Right Cover Crop'!$F$26=\"scavenge P and K\",'Cover Crop Data'!U6,IF('Finding the Right Cover Crop'!$F$26=\"attract beneficials\",'Cover Crop Data'!R6,IF('Finding the Right Cover Crop'!$F$26=\"high forage quality\",'Cover Crop Data'!X6,0))))))","v":1},null,4,"Black Oats",1,2,3,4,4,0,0,3,1,2,null,2,"N",null,4.5,6.5,"G","Cool Season"]
[{"$f":"IF(AND('Finding the Right Cover Crop'!$D$45=\"cool season\",AD7=\"cool season\"),1,IF(AND('Finding the Right Cover Crop'!$D$45=\"warm season\",AD7=\"warm season\"),1,IF(AND('Finding the Right Cover Crop'!$D$45=\"No full season cover crop possible with this combination.  It may be possible to use a warm season cover crop species or variety with a short maturity window.\",AD7=\"warm season\"),1,\"\")))","v":1},{"$f":"IF(AND('Finding the Right Cover Crop'!$D$46=\"Because next cash crop is a legume and you did not specify you wanted to plant a CC mixture, a legume CC is not recommended.\",'Cover Crop Data'!AC8=\"L\"),\"\",1)","v":1},{"$f":"IF(AND('Finding the Right Cover Crop'!$F$32=\"Yes\",'Cover Crop Data'!V7>0),V7,IF(OR('Finding the Right Cover Crop'!$F$32=\"no\",'Finding the Right Cover Crop'!$F$32=\"\",'Cover Crop Data'!D7>0),0,\"\"))","v":0},{"$f":"IF(AND('Finding the Right Cover Crop'!$F$14=\"rice\",'Cover Crop Data'!W7>0),W7,IF(OR('Finding the Right Cover Crop'!$F$14=\"corn\",'Finding the Right Cover Crop'!$F$14=\"cotton\",'Finding the Right Cover Crop'!$F$14=\"soybeans\",'Finding the Right Cover Crop'!$F$14=\"peanuts\",'Finding the Right Cover Crop'!$F$14=\"sweet corn\",'Finding the Right Cover Crop'!$F$14=\"sweet potatoes\",'Finding the Right Cover Crop'!$F$14=\"small grains (wheat, oats, rye)\"),0,\"\"))","v":0},null,null,{"$f":"IF('Finding the Right Cover Crop'!$F$22='Cover Crop Data'!$A$49,$M7+$N7,IF('Finding the Right Cover Crop'!$F$22='Cover Crop Data'!$A$50,$M7+$N7,IF('Finding the Right Cover Crop'!$F$22='Cover Crop Data'!$A$51,$N7+$P7,IF('Finding the Right Cover Crop'!$F$22='Cover Crop Data'!$A$52,$Q7,IF('Finding the Right Cover Crop'!$F$22='Cover Crop Data'!$A$53,$N7+$O7,IF('Finding the Right Cover Crop'!$F$22=\"Low N\",$S7,IF(AND('Finding the Right Cover Crop'!$F$22=\"Low N\",'Finding the Right Cover Crop'!$F$28=\"yes\"),$S7,\"\")))))))","v":0},{"$f":"IF('Finding the Right Cover Crop'!$F$24='Cover Crop Data'!$A$49,$M7+$N7,IF('Finding the Right Cover Crop'!$F$24='Cover Crop Data'!$A$50,$M7+$N7,IF('Finding the Right Cover Crop'!$F$24='Cover Crop Data'!$A$51,$N7+$P7,IF('Finding the Right Cover Crop'!$F$24='Cover Crop Data'!$A$52,$Q7,IF('Finding the Right Cover Crop'!$F$24='Cover Crop Data'!$A$53,$N7+$O7,IF(AND('Finding the Right Cover Crop'!$F$24=\"Low N\",'Finding the Right Cover Crop'!$F$28=\"no\",$S7=0),\"\",IF(AND('Finding the Right Cover Crop'!$F$24=\"low N\",'Finding the Right Cover Crop'!$F$28=\"no\",'Cover Crop Data'!$S7>0),'Cover Crop Data'!$S7,IF(AND('Finding the Right Cover Crop'!$F$24=\"Low N\",'Finding the Right Cover Crop'!$F$28=\"yes\"),$S7,0))))))))","v":3},{"$f":"IF(AND('Finding the Right Cover Crop'!$F$26=\"provide N\",OR('Finding the Right Cover Crop'!$F$28=\"no\",'Finding the Right Cover Crop'!$F$28=\"\"),'Cover Crop Data'!AC7=\"L\"),1,IF(AND('Finding the Right Cover Crop'!$F$26=\"provide N\",'Finding the Right Cover Crop'!$F$28=\"yes\",OR('Cover Crop Data'!AC7=\"F\",'Cover Crop Data'!AC7=\"L\",'Cover Crop Data'!AC7=\"G\")),1,IF(AND('Finding the Right Cover Crop'!$F$26=\"scavenge N\"),'Cover Crop Data'!T7,IF('Finding the Right Cover Crop'!$F$26=\"scavenge P and K\",'Cover Crop Data'!U7,IF('Finding the Right Cover Crop'!$F$26=\"attract beneficials\",'Cover Crop Data'!R7,IF('Finding the Right Cover Crop'!$F$26=\"high forage quality\",'Cover Crop Data'!X7,0))))))","v":1},null,4,"Oats",1,2,3,4,3,0,0,3,1,2,null,3,"N",null,4.5,6.5,"G","Cool Season"]
[{"$f":"IF(AND('Finding the Right Cover Crop'!$D$45=\"cool season\",AD8=\"cool season\"),1,IF(AND('Finding the Right Cover Crop'!$D$45=\"warm season\",AD8=\"warm season\"),1,IF(AND('Finding the Right Cover Crop'!$D$45=\"No full season cover crop possible with this combination.  It may be possible to use a warm season cover crop species or variety with a short maturity window.\",AD8=\"warm season\"),1,\"\")))","v":1},{"$f":"IF(AND('Finding the Right Cover Crop'!$D$46=\"Because next cash crop is a legume and you did not specify you wanted to plant a CC mixture, a legume CC is not recommended.\",'Cover Crop Data'!AC9=\"L\"),\"\",1)","v":1},{"$f":"IF(AND('Finding the Right Cover Crop'!$F$32=\"Yes\",'Cover Crop Data'!V8>0),V8,IF(OR('Finding the Right Cover Crop'!$F$32=\"no\",'Finding the Right Cover Crop'!$F$32=\"\",'Cover Crop Data'!D8>0),0,\"\"))","v":0},{"$f":"IF(AND('Finding the Right Cover Crop'!$F$14=\"rice\",'Cover Crop Data'!W8>0),W8,IF(OR('Finding the Right Cover Crop'!$F$14=\"corn\",'Finding the Right Cover Crop'!$F$14=\"cotton\",'Finding the Right Cover Crop'!$F$14=\"soybeans\",'Finding the Right Cover Crop'!$F$14=\"peanuts\",'Finding the Right Cover Crop'!$F$14=\"sweet corn\",'Finding the Right Cover Crop'!$F$14=\"sweet potatoes\",'Finding the Right Cover Crop'!$F$14=\"small grains (wheat, oats, rye)\"),0,\"\"))","v":0},null,null,{"$f":"IF('Finding the Right Cover Crop'!$F$22='Cover Crop Data'!$A$49,$M8+$N8,IF('Finding the Right Cover Crop'!$F$22='Cover Crop Data'!$A$50,$M8+$N8,IF('Finding the Right Cover Crop'!$F$22='Cover Crop Data'!$A$51,$N8+$P8,IF('Finding the Right Cover Crop'!$F$22='Cover Crop Data'!$A$52,$Q8,IF('Finding the Right Cover Crop'!$F$22='Cover Crop Data'!$A$53,$N8+$O8,IF('Finding the Right Cover Crop'!$F$22=\"Low N\",$S8,IF(AND('Finding the Right Cover Crop'!$F$22=\"Low N\",'Finding the Right Cover Crop'!$F$28=\"yes\"),$S8,\"\")))))))","v":0},{"$f":"IF('Finding the Right Cover Crop'!$F$24='Cover Crop Data'!$A$49,$M8+$N8,IF('Finding the Right Cover Crop'!$F$24='Cover Crop Data'!$A$50,$M8+$N8,IF('Finding the Right Cover Crop'!$F$24='Cover Crop Data'!$A$51,$N8+$P8,IF('Finding the Right Cover Crop'!$F$24='Cover Crop Data'!$A$52,$Q8,IF('Finding the Right Cover Crop'!$F$24='Cover Crop Data'!$A$53,$N8+$O8,IF(AND('Finding the Right Cover Crop'!$F$24=\"Low N\",'Finding the Right Cover Crop'!$F$28=\"no\",$S8=0),\"\",IF(AND('Finding the Right Cover Crop'!$F$24=\"low N\",'Finding the Right Cover Crop'!$F$28=\"no\",'Cover Crop Data'!$S8>0),'Cover Crop Data'!$S8,IF(AND('Finding the Right Cover Crop'!$F$24=\"Low N\",'Finding the Right Cover Crop'!$F$28=\"yes\"),$S8,0))))))))","v":6},{"$f":"IF(AND('Finding the Right Cover Crop'!$F$26=\"provide N\",OR('Finding the Right Cover Crop'!$F$28=\"no\",'Finding the Right Cover Crop'!$F$28=\"\"),'Cover Crop Data'!AC8=\"L\"),1,IF(AND('Finding the Right Cover Crop'!$F$26=\"provide N\",'Finding the Right Cover Crop'!$F$28=\"yes\",OR('Cover Crop Data'!AC8=\"F\",'Cover Crop Data'!AC8=\"L\",'Cover Crop Data'!AC8=\"G\")),1,IF(AND('Finding the Right Cover Crop'!$F$26=\"scavenge N\"),'Cover Crop Data'!T8,IF('Finding the Right Cover Crop'!$F$26=\"scavenge P and K\",'Cover Crop Data'!U8,IF('Finding the Right Cover Crop'!$F$26=\"attract beneficials\",'Cover Crop Data'!R8,IF('Finding the Right Cover Crop'!$F$26=\"high forage quality\",'Cover Crop Data'!X8,0))))))","v":1},null,7,"Rye/Triticale",2,4,4,4,2,1,0,4,3,2,3,2,"N",null,5,7,"G","Cool Season"]
[{"$f":"IF(AND('Finding the Right Cover Crop'!$D$45=\"cool season\",AD9=\"cool season\"),1,IF(AND('Finding the Right Cover Crop'!$D$45=\"warm season\",AD9=\"warm season\"),1,IF(AND('Finding the Right Cover Crop'!$D$45=\"No full season cover crop possible with this combination.  It may be possible to use a warm season cover crop species or variety with a short maturity window.\",AD9=\"warm season\"),1,\"\")))","v":1},{"$f":"IF(AND('Finding the Right Cover Crop'!$D$46=\"Because next cash crop is a legume and you did not specify you wanted to plant a CC mixture, a legume CC is not recommended.\",'Cover Crop Data'!AC10=\"L\"),\"\",1)","v":1},{"$f":"IF(AND('Finding the Right Cover Crop'!$F$32=\"Yes\",'Cover Crop Data'!V9>0),V9,IF(OR('Finding the Right Cover Crop'!$F$32=\"no\",'Finding the Right Cover Crop'!$F$32=\"\",'Cover Crop Data'!D9>0),0,\"\"))","v":0},{"$f":"IF(AND('Finding the Right Cover Crop'!$F$14=\"rice\",'Cover Crop Data'!W9>0),W9,IF(OR('Finding the Right Cover Crop'!$F$14=\"corn\",'Finding the Right Cover Crop'!$F$14=\"cotton\",'Finding the Right Cover Crop'!$F$14=\"soybeans\",'Finding the Right Cover Crop'!$F$14=\"peanuts\",'Finding the Right Cover Crop'!$F$14=\"sweet corn\",'Finding the Right Cover Crop'!$F$14=\"sweet potatoes\",'Finding the Right Cover Crop'!$F$14=\"small grains (wheat, oats, rye)\"),0,\"\"))","v":0},null,null,{"$f":"IF('Finding the Right Cover Crop'!$F$22='Cover Crop Data'!$A$49,$M9+$N9,IF('Finding the Right Cover Crop'!$F$22='Cover Crop Data'!$A$50,$M9+$N9,IF('Finding the Right Cover Crop'!$F$22='Cover Crop Data'!$A$51,$N9+$P9,IF('Finding the Right Cover Crop'!$F$22='Cover Crop Data'!$A$52,$Q9,IF('Finding the Right Cover Crop'!$F$22='Cover Crop Data'!$A$53,$N9+$O9,IF('Finding the Right Cover Crop'!$F$22=\"Low N\",$S9,IF(AND('Finding the Right Cover Crop'!$F$22=\"Low N\",'Finding the Right Cover Crop'!$F$28=\"yes\"),$S9,\"\")))))))","v":0},{"$f":"IF('Finding the Right Cover Crop'!$F$24='Cover Crop Data'!$A$49,$M9+$N9,IF('Finding the Right Cover Crop'!$F$24='Cover Crop Data'!$A$50,$M9+$N9,IF('Finding the Right Cover Crop'!$F$24='Cover Crop Data'!$A$51,$N9+$P9,IF('Finding the Right Cover Crop'!$F$24='Cover Crop Data'!$A$52,$Q9,IF('Finding the Right Cover Crop'!$F$24='Cover Crop Data'!$A$53,$N9+$O9,IF(AND('Finding the Right Cover Crop'!$F$24=\"Low N\",'Finding the Right Cover Crop'!$F$28=\"no\",$S9=0),\"\",IF(AND('Finding the Right Cover Crop'!$F$24=\"low N\",'Finding the Right Cover Crop'!$F$28=\"no\",'Cover Crop Data'!$S9>0),'Cover Crop Data'!$S9,IF(AND('Finding the Right Cover Crop'!$F$24=\"Low N\",'Finding the Right Cover Crop'!$F$28=\"yes\"),$S9,0))))))))","v":5},{"$f":"IF(AND('Finding the Right Cover Crop'!$F$26=\"provide N\",OR('Finding the Right Cover Crop'!$F$28=\"no\",'Finding the Right Cover Crop'!$F$28=\"\"),'Cover Crop Data'!AC9=\"L\"),1,IF(AND('Finding the Right Cover Crop'!$F$26=\"provide N\",'Finding the Right Cover Crop'!$F$28=\"yes\",OR('Cover Crop Data'!AC9=\"F\",'Cover Crop Data'!AC9=\"L\",'Cover Crop Data'!AC9=\"G\")),1,IF(AND('Finding the Right Cover Crop'!$F$26=\"scavenge N\"),'Cover Crop Data'!T9,IF('Finding the Right Cover Crop'!$F$26=\"scavenge P and K\",'Cover Crop Data'!U9,IF('Finding the Right Cover Crop'!$F$26=\"attract beneficials\",'Cover Crop Data'!R9,IF('Finding the Right Cover Crop'!$F$26=\"high forage quality\",'Cover Crop Data'!X9,0))))))","v":1},null,6,"Wheat",2,3,3,3,1,1,0,3,3,null,null,3,"N",null,6,7.5,"G","Cool Season"]
[{"$f":"IF(AND('Finding the Right Cover Crop'!$D$45=\"cool season\",AD10=\"cool season\"),1,IF(AND('Finding the Right Cover Crop'!$D$45=\"warm season\",AD10=\"warm season\"),1,IF(AND('Finding the Right Cover Crop'!$D$45=\"No full season cover crop possible with this combination.  It may be possible to use a warm season cover crop species or variety with a short maturity window.\",AD10=\"warm season\"),1,\"\")))","v":""},{"$f":"IF(AND('Finding the Right Cover Crop'!$D$46=\"Because next cash crop is a legume and you did not specify you wanted to plant a CC mixture, a legume CC is not recommended.\",'Cover Crop Data'!AC11=\"L\"),\"\",1)","v":1},{"$f":"IF(AND('Finding the Right Cover Crop'!$F$32=\"Yes\",'Cover Crop Data'!V10>0),V10,IF(OR('Finding the Right Cover Crop'!$F$32=\"no\",'Finding the Right Cover Crop'!$F$32=\"\",'Cover Crop Data'!D10>0),0,\"\"))","v":0},{"$f":"IF(AND('Finding the Right Cover Crop'!$F$14=\"rice\",'Cover Crop Data'!W10>0),W10,IF(OR('Finding the Right Cover Crop'!$F$14=\"corn\",'Finding the Right Cover Crop'!$F$14=\"cotton\",'Finding the Right Cover Crop'!$F$14=\"soybeans\",'Finding the Right Cover Crop'!$F$14=\"peanuts\",'Finding the Right Cover Crop'!$F$14=\"sweet corn\",'Finding the Right Cover Crop'!$F$14=\"sweet potatoes\",'Finding the Right Cover Crop'!$F$14=\"small grains (wheat, oats, rye)\"),0,\"\"))","v":0},null,null,{"$f":"IF('Finding the Right Cover Crop'!$F$22='Cover Crop Data'!$A$49,$M10+$N10,IF('Finding the Right Cover Crop'!$F$22='Cover Crop Data'!$A$50,$M10+$N10,IF('Finding the Right Cover Crop'!$F$22='Cover Crop Data'!$A$51,$N10+$P10,IF('Finding the Right Cover Crop'!$F$22='Cover Crop Data'!$A$52,$Q10,IF('Finding the Right Cover Crop'!$F$22='Cover Crop Data'!$A$53,$N10+$O10,IF('Finding the Right Cover Crop'!$F$22=\"Low N\",$S10,IF(AND('Finding the Right Cover Crop'!$F$22=\"Low N\",'Finding the Right Cover Crop'!$F$28=\"yes\"),$S10,\"\")))))))","v":0},{"$f":"IF('Finding the Right Cover Crop'!$F$24='Cover Crop Data'!$A$49,$M10+$N10,IF('Finding the Right Cover Crop'!$F$24='Cover Crop Data'!$A$50,$M10+$N10,IF('Finding the Right Cover Crop'!$F$24='Cover Crop Data'!$A$51,$N10+$P10,IF('Finding the Right Cover Crop'!$F$24='Cover Crop Data'!$A$52,$Q10,IF('Finding the Right Cover Crop'!$F$24='Cover Crop Data'!$A$53,$N10+$O10,IF(AND('Finding the Right Cover Crop'!$F$24=\"Low N\",'Finding the Right Cover Crop'!$F$28=\"no\",$S10=0),\"\",IF(AND('Finding the Right Cover Crop'!$F$24=\"low N\",'Finding the Right Cover Crop'!$F$28=\"no\",'Cover Crop Data'!$S10>0),'Cover Crop Data'!$S10,IF(AND('Finding the Right Cover Crop'!$F$24=\"Low N\",'Finding the Right Cover Crop'!$F$28=\"yes\"),$S10,0))))))))","v":4},{"$f":"IF(AND('Finding the Right Cover Crop'!$F$26=\"provide N\",OR('Finding the Right Cover Crop'!$F$28=\"no\",'Finding the Right Cover Crop'!$F$28=\"\"),'Cover Crop Data'!AC10=\"L\"),1,IF(AND('Finding the Right Cover Crop'!$F$26=\"provide N\",'Finding the Right Cover Crop'!$F$28=\"yes\",OR('Cover Crop Data'!AC10=\"F\",'Cover Crop Data'!AC10=\"L\",'Cover Crop Data'!AC10=\"G\")),1,IF(AND('Finding the Right Cover Crop'!$F$26=\"scavenge N\"),'Cover Crop Data'!T10,IF('Finding the Right Cover Crop'!$F$26=\"scavenge P and K\",'Cover Crop Data'!U10,IF('Finding the Right Cover Crop'!$F$26=\"attract beneficials\",'Cover Crop Data'!R10,IF('Finding the Right Cover Crop'!$F$26=\"high forage quality\",'Cover Crop Data'!X10,0))))))","v":1},null,"","Millet, Browntop",1,3,3,3,3,1,0,2,1,null,2,3,"N","s",5,6.5,"G","Warm Season"]
[{"$f":"IF(AND('Finding the Right Cover Crop'!$D$45=\"cool season\",AD11=\"cool season\"),1,IF(AND('Finding the Right Cover Crop'!$D$45=\"warm season\",AD11=\"warm season\"),1,IF(AND('Finding the Right Cover Crop'!$D$45=\"No full season cover crop possible with this combination.  It may be possible to use a warm season cover crop species or variety with a short maturity window.\",AD11=\"warm season\"),1,\"\")))","v":""},{"$f":"IF(AND('Finding the Right Cover Crop'!$D$46=\"Because next cash crop is a legume and you did not specify you wanted to plant a CC mixture, a legume CC is not recommended.\",'Cover Crop Data'!AC12=\"L\"),\"\",1)","v":1},{"$f":"IF(AND('Finding the Right Cover Crop'!$F$32=\"Yes\",'Cover Crop Data'!V11>0),V11,IF(OR('Finding the Right Cover Crop'!$F$32=\"no\",'Finding the Right Cover Crop'!$F$32=\"\",'Cover Crop Data'!D11>0),0,\"\"))","v":0},{"$f":"IF(AND('Finding the Right Cover Crop'!$F$14=\"rice\",'Cover Crop Data'!W11>0),W11,IF(OR('Finding the Right Cover Crop'!$F$14=\"corn\",'Finding the Right Cover Crop'!$F$14=\"cotton\",'Finding the Right Cover Crop'!$F$14=\"soybeans\",'Finding the Right Cover Crop'!$F$14=\"peanuts\",'Finding the Right Cover Crop'!$F$14=\"sweet corn\",'Finding the Right Cover Crop'!$F$14=\"sweet potatoes\",'Finding the Right Cover Crop'!$F$14=\"small grains (wheat, oats, rye)\"),0,\"\"))","v":0},null,null,{"$f":"IF('Finding the Right Cover Crop'!$F$22='Cover Crop Data'!$A$49,$M11+$N11,IF('Finding the Right Cover Crop'!$F$22='Cover Crop Data'!$A$50,$M11+$N11,IF('Finding the Right Cover Crop'!$F$22='Cover Crop Data'!$A$51,$N11+$P11,IF('Finding the Right Cover Crop'!$F$22='Cover Crop Data'!$A$52,$Q11,IF('Finding the Right Cover Crop'!$F$22='Cover Crop Data'!$A$53,$N11+$O11,IF('Finding the Right Cover Crop'!$F$22=\"Low N\",$S11,IF(AND('Finding the Right Cover Crop'!$F$22=\"Low N\",'Finding the Right Cover Crop'!$F$28=\"yes\"),$S11,\"\")))))))","v":0},{"$f":"IF('Finding the Right Cover Crop'!$F$24='Cover Crop Data'!$A$49,$M11+$N11,IF('Finding the Right Cover Crop'!$F$24='Cover Crop Data'!$A$50,$M11+$N11,IF('Finding the Right Cover Crop'!$F$24='Cover Crop Data'!$A$51,$N11+$P11,IF('Finding the Right Cover Crop'!$F$24='Cover Crop Data'!$A$52,$Q11,IF('Finding the Right Cover Crop'!$F$24='Cover Crop Data'!$A$53,$N11+$O11,IF(AND('Finding the Right Cover Crop'!$F$24=\"Low N\",'Finding the Right Cover Crop'!$F$28=\"no\",$S11=0),\"\",IF(AND('Finding the Right Cover Crop'!$F$24=\"low N\",'Finding the Right Cover Crop'!$F$28=\"no\",'Cover Crop Data'!$S11>0),'Cover Crop Data'!$S11,IF(AND('Finding the Right Cover Crop'!$F$24=\"Low N\",'Finding the Right Cover Crop'!$F$28=\"yes\"),$S11,0))))))))","v":7},{"$f":"IF(AND('Finding the Right Cover Crop'!$F$26=\"provide N\",OR('Finding the Right Cover Crop'!$F$28=\"no\",'Finding the Right Cover Crop'!$F$28=\"\"),'Cover Crop Data'!AC11=\"L\"),1,IF(AND('Finding the Right Cover Crop'!$F$26=\"provide N\",'Finding the Right Cover Crop'!$F$28=\"yes\",OR('Cover Crop Data'!AC11=\"F\",'Cover Crop Data'!AC11=\"L\",'Cover Crop Data'!AC11=\"G\")),1,IF(AND('Finding the Right Cover Crop'!$F$26=\"scavenge N\"),'Cover Crop Data'!T11,IF('Finding the Right Cover Crop'!$F$26=\"scavenge P and K\",'Cover Crop Data'!U11,IF('Finding the Right Cover Crop'!$F$26=\"attract beneficials\",'Cover Crop Data'!R11,IF('Finding the Right Cover Crop'!$F$26=\"high forage quality\",'Cover Crop Data'!X11,0))))))","v":1},null,"","Sorghum-Sudan",4,3,4,3,3,2,0,4,2,2,2,3,"N",null,6,7,"G","Warm Season"]
[{"$f":"IF(AND('Finding the Right Cover Crop'!$D$45=\"cool season\",AD12=\"cool season\"),1,IF(AND('Finding the Right Cover Crop'!$D$45=\"warm season\",AD12=\"warm season\"),1,IF(AND('Finding the Right Cover Crop'!$D$45=\"No full season cover crop possible with this combination.  It may be possible to use a warm season cover crop species or variety with a short maturity window.\",AD12=\"warm season\"),1,\"\")))","v":1},{"$f":"IF(AND('Finding the Right Cover Crop'!$D$46=\"Because next cash crop is a legume and you did not specify you wanted to plant a CC mixture, a legume CC is not recommended.\",'Cover Crop Data'!AC13=\"L\"),\"\",1)","v":1},{"$f":"IF(AND('Finding the Right Cover Crop'!$F$32=\"Yes\",'Cover Crop Data'!V12>0),V12,IF(OR('Finding the Right Cover Crop'!$F$32=\"no\",'Finding the Right Cover Crop'!$F$32=\"\",'Cover Crop Data'!D12>0),0,\"\"))","v":0},{"$f":"IF(AND('Finding the Right Cover Crop'!$F$14=\"rice\",'Cover Crop Data'!W12>0),W12,IF(OR('Finding the Right Cover Crop'!$F$14=\"corn\",'Finding the Right Cover Crop'!$F$14=\"cotton\",'Finding the Right Cover Crop'!$F$14=\"soybeans\",'Finding the Right Cover Crop'!$F$14=\"peanuts\",'Finding the Right Cover Crop'!$F$14=\"sweet corn\",'Finding the Right Cover Crop'!$F$14=\"sweet potatoes\",'Finding the Right Cover Crop'!$F$14=\"small grains (wheat, oats, rye)\"),0,\"\"))","v":0},null,null,{"$f":"IF('Finding the Right Cover Crop'!$F$22='Cover Crop Data'!$A$49,$M12+$N12,IF('Finding the Right Cover Crop'!$F$22='Cover Crop Data'!$A$50,$M12+$N12,IF('Finding the Right Cover Crop'!$F$22='Cover Crop Data'!$A$51,$N12+$P12,IF('Finding the Right Cover Crop'!$F$22='Cover Crop Data'!$A$52,$Q12,IF('Finding the Right Cover Crop'!$F$22='Cover Crop Data'!$A$53,$N12+$O12,IF(AND('Finding the Right Cover Crop'!$F$22=\"Low N\",$S12>0),$S12,IF(AND('Finding the Right Cover Crop'!$F$22=\"Low N\",'Finding the Right Cover Crop'!$F$28=\"yes\"),$S12,\"\")))))))","v":1},{"$f":"IF('Finding the Right Cover Crop'!$F$24='Cover Crop Data'!$A$49,$M12+$N12,IF('Finding the Right Cover Crop'!$F$24='Cover Crop Data'!$A$50,$M12+$N12,IF('Finding the Right Cover Crop'!$F$24='Cover Crop Data'!$A$51,$N12+$P12,IF('Finding the Right Cover Crop'!$F$24='Cover Crop Data'!$A$52,$Q12,IF('Finding the Right Cover Crop'!$F$24='Cover Crop Data'!$A$53,$N12+$O12,IF(AND('Finding the Right Cover Crop'!$F$24=\"Low N\",'Finding the Right Cover Crop'!$F$28=\"no\",$S12=0),\"\",IF(AND('Finding the Right Cover Crop'!$F$24=\"low N\",'Finding the Right Cover Crop'!$F$28=\"no\",'Cover Crop Data'!$S12>0),'Cover Crop Data'!$S12,IF(AND('Finding the Right Cover Crop'!$F$24=\"Low N\",'Finding the Right Cover Crop'!$F$28=\"yes\"),$S12,0))))))))","v":3},{"$f":"IF(AND('Finding the Right Cover Crop'!$F$26=\"provide N\",OR('Finding the Right Cover Crop'!$F$28=\"no\",'Finding the Right Cover Crop'!$F$28=\"\"),'Cover Crop Data'!AC12=\"L\"),1,IF(AND('Finding the Right Cover Crop'!$F$26=\"provide N\",'Finding the Right Cover Crop'!$F$28=\"yes\",OR('Cover Crop Data'!AC12=\"F\",'Cover Crop Data'!AC12=\"L\",'Cover Crop Data'!AC12=\"G\")),1,IF(AND('Finding the Right Cover Crop'!$F$26=\"scavenge N\"),'Cover Crop Data'!T12,IF('Finding the Right Cover Crop'!$F$26=\"scavenge P and K\",'Cover Crop Data'!U12,IF('Finding the Right Cover Crop'!$F$26=\"attract beneficials\",'Cover Crop Data'!R12,IF('Finding the Right Cover Crop'!$F$26=\"high forage quality\",'Cover Crop Data'!X12,0))))))","v":1},null,5,"Crimson Clover",1,2,3,3,1,3,1,2,2,2,3,4,"N","s",5.5,7,"L","Cool Season"]
[{"$f":"IF(AND('Finding the Right Cover Crop'!$D$45=\"cool season\",AD13=\"cool season\"),1,IF(AND('Finding the Right Cover Crop'!$D$45=\"warm season\",AD13=\"warm season\"),1,IF(AND('Finding the Right Cover Crop'!$D$45=\"No full season cover crop possible with this combination.  It may be possible to use a warm season cover crop species or variety with a short maturity window.\",AD13=\"warm season\"),1,\"\")))","v":1},{"$f":"IF(AND('Finding the Right Cover Crop'!$D$46=\"Because next cash crop is a legume and you did not specify you wanted to plant a CC mixture, a legume CC is not recommended.\",'Cover Crop Data'!AC14=\"L\"),\"\",1)","v":1},{"$f":"IF(AND('Finding the Right Cover Crop'!$F$32=\"Yes\",'Cover Crop Data'!V13>0),V13,IF(OR('Finding the Right Cover Crop'!$F$32=\"no\",'Finding the Right Cover Crop'!$F$32=\"\",'Cover Crop Data'!D13>0),0,\"\"))","v":0},{"$f":"IF(AND('Finding the Right Cover Crop'!$F$14=\"rice\",'Cover Crop Data'!W13>0),W13,IF(OR('Finding the Right Cover Crop'!$F$14=\"corn\",'Finding the Right Cover Crop'!$F$14=\"cotton\",'Finding the Right Cover Crop'!$F$14=\"soybeans\",'Finding the Right Cover Crop'!$F$14=\"peanuts\",'Finding the Right Cover Crop'!$F$14=\"sweet corn\",'Finding the Right Cover Crop'!$F$14=\"sweet potatoes\",'Finding the Right Cover Crop'!$F$14=\"small grains (wheat, oats, rye)\"),0,\"\"))","v":0},null,null,{"$f":"IF('Finding the Right Cover Crop'!$F$22='Cover Crop Data'!$A$49,$M13+$N13,IF('Finding the Right Cover Crop'!$F$22='Cover Crop Data'!$A$50,$M13+$N13,IF('Finding the Right Cover Crop'!$F$22='Cover Crop Data'!$A$51,$N13+$P13,IF('Finding the Right Cover Crop'!$F$22='Cover Crop Data'!$A$52,$Q13,IF('Finding the Right Cover Crop'!$F$22='Cover Crop Data'!$A$53,$N13+$O13,IF(AND('Finding the Right Cover Crop'!$F$22=\"Low N\",$S13>0),$S13,IF(AND('Finding the Right Cover Crop'!$F$22=\"Low N\",'Finding the Right Cover Crop'!$F$28=\"yes\"),$S13,\"\")))))))","v":1},{"$f":"IF('Finding the Right Cover Crop'!$F$24='Cover Crop Data'!$A$49,$M13+$N13,IF('Finding the Right Cover Crop'!$F$24='Cover Crop Data'!$A$50,$M13+$N13,IF('Finding the Right Cover Crop'!$F$24='Cover Crop Data'!$A$51,$N13+$P13,IF('Finding the Right Cover Crop'!$F$24='Cover Crop Data'!$A$52,$Q13,IF('Finding the Right Cover Crop'!$F$24='Cover Crop Data'!$A$53,$N13+$O13,IF(AND('Finding the Right Cover Crop'!$F$24=\"Low N\",'Finding the Right Cover Crop'!$F$28=\"no\",$S13=0),\"\",IF(AND('Finding the Right Cover Crop'!$F$24=\"low N\",'Finding the Right Cover Crop'!$F$28=\"no\",'Cover Crop Data'!$S13>0),'Cover Crop Data'!$S13,IF(AND('Finding the Right Cover Crop'!$F$24=\"Low N\",'Finding the Right Cover Crop'!$F$28=\"yes\"),$S13,0))))))))","v":2},{"$f":"IF(AND('Finding the Right Cover Crop'!$F$26=\"provide N\",OR('Finding the Right Cover Crop'!$F$28=\"no\",'Finding the Right Cover Crop'!$F$28=\"\"),'Cover Crop Data'!AC13=\"L\"),1,IF(AND('Finding the Right Cover Crop'!$F$26=\"provide N\",'Finding the Right Cover Crop'!$F$28=\"yes\",OR('Cover Crop Data'!AC13=\"F\",'Cover Crop Data'!AC13=\"L\",'Cover Crop Data'!AC13=\"G\")),1,IF(AND('Finding the Right Cover Crop'!$F$26=\"scavenge N\"),'Cover Crop Data'!T13,IF('Finding the Right Cover Crop'!$F$26=\"scavenge P and K\",'Cover Crop Data'!U13,IF('Finding the Right Cover Crop'!$F$26=\"attract beneficials\",'Cover Crop Data'!R13,IF('Finding the Right Cover Crop'!$F$26=\"high forage quality\",'Cover Crop Data'!X13,0))))))","v":1},null,4,"Hairy Vetch",1,1,2,2,1,4,1,1,2,1,3,2,"N",null,5.5,7.5,"L","Cool Season"]
[{"$f":"IF(AND('Finding the Right Cover Crop'!$D$45=\"cool season\",AD14=\"cool season\"),1,IF(AND('Finding the Right Cover Crop'!$D$45=\"warm season\",AD14=\"warm season\"),1,IF(AND('Finding the Right Cover Crop'!$D$45=\"No full season cover crop possible with this combination.  It may be possible to use a warm season cover crop species or variety with a short maturity window.\",AD14=\"warm season\"),1,\"\")))","v":1},{"$f":"IF(AND('Finding the Right Cover Crop'!$D$46=\"Because next cash crop is a legume and you did not specify you wanted to plant a CC mixture, a legume CC is not recommended.\",'Cover Crop Data'!AC15=\"L\"),\"\",1)","v":1},{"$f":"IF(AND('Finding the Right Cover Crop'!$F$32=\"Yes\",'Cover Crop Data'!V14>0),V14,IF(OR('Finding the Right Cover Crop'!$F$32=\"no\",'Finding the Right Cover Crop'!$F$32=\"\",'Cover Crop Data'!D14>0),0,\"\"))","v":0},{"$f":"IF(AND('Finding the Right Cover Crop'!$F$14=\"rice\",'Cover Crop Data'!W14>0),W14,IF(OR('Finding the Right Cover Crop'!$F$14=\"corn\",'Finding the Right Cover Crop'!$F$14=\"cotton\",'Finding the Right Cover Crop'!$F$14=\"soybeans\",'Finding the Right Cover Crop'!$F$14=\"peanuts\",'Finding the Right Cover Crop'!$F$14=\"sweet corn\",'Finding the Right Cover Crop'!$F$14=\"sweet potatoes\",'Finding the Right Cover Crop'!$F$14=\"small grains (wheat, oats, rye)\"),0,\"\"))","v":0},null,null,{"$f":"IF('Finding the Right Cover Crop'!$F$22='Cover Crop Data'!$A$49,$M14+$N14,IF('Finding the Right Cover Crop'!$F$22='Cover Crop Data'!$A$50,$M14+$N14,IF('Finding the Right Cover Crop'!$F$22='Cover Crop Data'!$A$51,$N14+$P14,IF('Finding the Right Cover Crop'!$F$22='Cover Crop Data'!$A$52,$Q14,IF('Finding the Right Cover Crop'!$F$22='Cover Crop Data'!$A$53,$N14+$O14,IF(AND('Finding the Right Cover Crop'!$F$22=\"Low N\",$S14>0),$S14,IF(AND('Finding the Right Cover Crop'!$F$22=\"Low N\",'Finding the Right Cover Crop'!$F$28=\"yes\"),$S14,\"\")))))))","v":1},{"$f":"IF('Finding the Right Cover Crop'!$F$24='Cover Crop Data'!$A$49,$M14+$N14,IF('Finding the Right Cover Crop'!$F$24='Cover Crop Data'!$A$50,$M14+$N14,IF('Finding the Right Cover Crop'!$F$24='Cover Crop Data'!$A$51,$N14+$P14,IF('Finding the Right Cover Crop'!$F$24='Cover Crop Data'!$A$52,$Q14,IF('Finding the Right Cover Crop'!$F$24='Cover Crop Data'!$A$53,$N14+$O14,IF(AND('Finding the Right Cover Crop'!$F$24=\"Low N\",'Finding the Right Cover Crop'!$F$28=\"no\",$S14=0),\"\",IF(AND('Finding the Right Cover Crop'!$F$24=\"low N\",'Finding the Right Cover Crop'!$F$28=\"no\",'Cover Crop Data'!$S14>0),'Cover Crop Data'!$S14,IF(AND('Finding the Right Cover Crop'!$F$24=\"Low N\",'Finding the Right Cover Crop'!$F$28=\"yes\"),$S14,0))))))))","v":3},{"$f":"IF(AND('Finding the Right Cover Crop'!$F$26=\"provide N\",OR('Finding the Right Cover Crop'!$F$28=\"no\",'Finding the Right Cover Crop'!$F$28=\"\"),'Cover Crop Data'!AC14=\"L\"),1,IF(AND('Finding the Right Cover Crop'!$F$26=\"provide N\",'Finding the Right Cover Crop'!$F$28=\"yes\",OR('Cover Crop Data'!AC14=\"F\",'Cover Crop Data'!AC14=\"L\",'Cover Crop Data'!AC14=\"G\")),1,IF(AND('Finding the Right Cover Crop'!$F$26=\"scavenge N\"),'Cover Crop Data'!T14,IF('Finding the Right Cover Crop'!$F$26=\"scavenge P and K\",'Cover Crop Data'!U14,IF('Finding the Right Cover Crop'!$F$26=\"attract beneficials\",'Cover Crop Data'!R14,IF('Finding the Right Cover Crop'!$F$26=\"high forage quality\",'Cover Crop Data'!X14,0))))))","v":1},null,5,"Lupine",2,1,2,2,4,4,1,1,2,null,null,1,"N",null,5.6,7,"L","Cool Season"]
[{"$f":"IF(AND('Finding the Right Cover Crop'!$D$45=\"cool season\",AD15=\"cool season\"),1,IF(AND('Finding the Right Cover Crop'!$D$45=\"warm season\",AD15=\"warm season\"),1,IF(AND('Finding the Right Cover Crop'!$D$45=\"No full season cover crop possible with this combination.  It may be possible to use a warm season cover crop species or variety with a short maturity window.\",AD15=\"warm season\"),1,\"\")))","v":1},{"$f":"IF(AND('Finding the Right Cover Crop'!$D$46=\"Because next cash crop is a legume and you did not specify you wanted to plant a CC mixture, a legume CC is not recommended.\",'Cover Crop Data'!AC16=\"L\"),\"\",1)","v":1},{"$f":"IF(AND('Finding the Right Cover Crop'!$F$32=\"Yes\",'Cover Crop Data'!V15>0),V15,IF(OR('Finding the Right Cover Crop'!$F$32=\"no\",'Finding the Right Cover Crop'!$F$32=\"\",'Cover Crop Data'!D15>0),0,\"\"))","v":0},{"$f":"IF(AND('Finding the Right Cover Crop'!$F$14=\"rice\",'Cover Crop Data'!W15>0),W15,IF(OR('Finding the Right Cover Crop'!$F$14=\"corn\",'Finding the Right Cover Crop'!$F$14=\"cotton\",'Finding the Right Cover Crop'!$F$14=\"soybeans\",'Finding the Right Cover Crop'!$F$14=\"peanuts\",'Finding the Right Cover Crop'!$F$14=\"sweet corn\",'Finding the Right Cover Crop'!$F$14=\"sweet potatoes\",'Finding the Right Cover Crop'!$F$14=\"small grains (wheat, oats, rye)\"),0,\"\"))","v":0},null,null,{"$f":"IF('Finding the Right Cover Crop'!$F$22='Cover Crop Data'!$A$49,$M15+$N15,IF('Finding the Right Cover Crop'!$F$22='Cover Crop Data'!$A$50,$M15+$N15,IF('Finding the Right Cover Crop'!$F$22='Cover Crop Data'!$A$51,$N15+$P15,IF('Finding the Right Cover Crop'!$F$22='Cover Crop Data'!$A$52,$Q15,IF('Finding the Right Cover Crop'!$F$22='Cover Crop Data'!$A$53,$N15+$O15,IF(AND('Finding the Right Cover Crop'!$F$22=\"Low N\",$S15>0),$S15,IF(AND('Finding the Right Cover Crop'!$F$22=\"Low N\",'Finding the Right Cover Crop'!$F$28=\"yes\"),$S15,\"\")))))))","v":1},{"$f":"IF('Finding the Right Cover Crop'!$F$24='Cover Crop Data'!$A$49,$M15+$N15,IF('Finding the Right Cover Crop'!$F$24='Cover Crop Data'!$A$50,$M15+$N15,IF('Finding the Right Cover Crop'!$F$24='Cover Crop Data'!$A$51,$N15+$P15,IF('Finding the Right Cover Crop'!$F$24='Cover Crop Data'!$A$52,$Q15,IF('Finding the Right Cover Crop'!$F$24='Cover Crop Data'!$A$53,$N15+$O15,IF(AND('Finding the Right Cover Crop'!$F$24=\"Low N\",'Finding the Right Cover Crop'!$F$28=\"no\",$S15=0),\"\",IF(AND('Finding the Right Cover Crop'!$F$24=\"low N\",'Finding the Right Cover Crop'!$F$28=\"no\",'Cover Crop Data'!$S15>0),'Cover Crop Data'!$S15,IF(AND('Finding the Right Cover Crop'!$F$24=\"Low N\",'Finding the Right Cover Crop'!$F$28=\"yes\"),$S15,0))))))))","v":4},{"$f":"IF(AND('Finding the Right Cover Crop'!$F$26=\"provide N\",OR('Finding the Right Cover Crop'!$F$28=\"no\",'Finding the Right Cover Crop'!$F$28=\"\"),'Cover Crop Data'!AC15=\"L\"),1,IF(AND('Finding the Right Cover Crop'!$F$26=\"provide N\",'Finding the Right Cover Crop'!$F$28=\"yes\",OR('Cover Crop Data'!AC15=\"F\",'Cover Crop Data'!AC15=\"L\",'Cover Crop Data'!AC15=\"G\")),1,IF(AND('Finding the Right Cover Crop'!$F$26=\"scavenge N\"),'Cover Crop Data'!T15,IF('Finding the Right Cover Crop'!$F$26=\"scavenge P and K\",'Cover Crop Data'!U15,IF('Finding the Right Cover Crop'!$F$26=\"attract beneficials\",'Cover Crop Data'!R15,IF('Finding the Right Cover Crop'!$F$26=\"high forage quality\",'Cover Crop Data'!X15,0))))))","v":1},null,6,"Red Clover*",3,1,1,3,1,3,1,2,3,2,null,4,"Y","s",6.2,7,"L","Cool Season"]
[{"$f":"IF(AND('Finding the Right Cover Crop'!$D$45=\"cool season\",AD16=\"cool season\"),1,IF(AND('Finding the Right Cover Crop'!$D$45=\"warm season\",AD16=\"warm season\"),1,IF(AND('Finding the Right Cover Crop'!$D$45=\"No full season cover crop possible with this combination.  It may be possible to use a warm season cover crop species or variety with a short maturity window.\",AD16=\"warm season\"),1,\"\")))","v":1},{"$f":"IF(AND('Finding the Right Cover Crop'!$D$46=\"Because next cash crop is a legume and you did not specify you wanted to plant a CC mixture, a legume CC is not recommended.\",'Cover Crop Data'!AC17=\"L\"),\"\",1)","v":1},{"$f":"IF(AND('Finding the Right Cover Crop'!$F$32=\"Yes\",'Cover Crop Data'!V16>0),V16,IF(OR('Finding the Right Cover Crop'!$F$32=\"no\",'Finding the Right Cover Crop'!$F$32=\"\",'Cover Crop Data'!D16>0),0,\"\"))","v":0},{"$f":"IF(AND('Finding the Right Cover Crop'!$F$14=\"rice\",'Cover Crop Data'!W16>0),W16,IF(OR('Finding the Right Cover Crop'!$F$14=\"corn\",'Finding the Right Cover Crop'!$F$14=\"cotton\",'Finding the Right Cover Crop'!$F$14=\"soybeans\",'Finding the Right Cover Crop'!$F$14=\"peanuts\",'Finding the Right Cover Crop'!$F$14=\"sweet corn\",'Finding the Right Cover Crop'!$F$14=\"sweet potatoes\",'Finding the Right Cover Crop'!$F$14=\"small grains (wheat, oats, rye)\"),0,\"\"))","v":0},null,null,{"$f":"IF('Finding the Right Cover Crop'!$F$22='Cover Crop Data'!$A$49,$M16+$N16,IF('Finding the Right Cover Crop'!$F$22='Cover Crop Data'!$A$50,$M16+$N16,IF('Finding the Right Cover Crop'!$F$22='Cover Crop Data'!$A$51,$N16+$P16,IF('Finding the Right Cover Crop'!$F$22='Cover Crop Data'!$A$52,$Q16,IF('Finding the Right Cover Crop'!$F$22='Cover Crop Data'!$A$53,$N16+$O16,IF(AND('Finding the Right Cover Crop'!$F$22=\"Low N\",$S16>0),$S16,IF(AND('Finding the Right Cover Crop'!$F$22=\"Low N\",'Finding the Right Cover Crop'!$F$28=\"yes\"),$S16,\"\")))))))","v":1},{"$f":"IF('Finding the Right Cover Crop'!$F$24='Cover Crop Data'!$A$49,$M16+$N16,IF('Finding the Right Cover Crop'!$F$24='Cover Crop Data'!$A$50,$M16+$N16,IF('Finding the Right Cover Crop'!$F$24='Cover Crop Data'!$A$51,$N16+$P16,IF('Finding the Right Cover Crop'!$F$24='Cover Crop Data'!$A$52,$Q16,IF('Finding the Right Cover Crop'!$F$24='Cover Crop Data'!$A$53,$N16+$O16,IF(AND('Finding the Right Cover Crop'!$F$24=\"Low N\",'Finding the Right Cover Crop'!$F$28=\"no\",$S16=0),\"\",IF(AND('Finding the Right Cover Crop'!$F$24=\"low N\",'Finding the Right Cover Crop'!$F$28=\"no\",'Cover Crop Data'!$S16>0),'Cover Crop Data'!$S16,IF(AND('Finding the Right Cover Crop'!$F$24=\"Low N\",'Finding the Right Cover Crop'!$F$28=\"yes\"),$S16,0))))))))","v":2},{"$f":"IF(AND('Finding the Right Cover Crop'!$F$26=\"provide N\",OR('Finding the Right Cover Crop'!$F$28=\"no\",'Finding the Right Cover Crop'!$F$28=\"\"),'Cover Crop Data'!AC16=\"L\"),1,IF(AND('Finding the Right Cover Crop'!$F$26=\"provide N\",'Finding the Right Cover Crop'!$F$28=\"yes\",OR('Cover Crop Data'!AC16=\"F\",'Cover Crop Data'!AC16=\"L\",'Cover Crop Data'!AC16=\"G\")),1,IF(AND('Finding the Right Cover Crop'!$F$26=\"scavenge N\"),'Cover Crop Data'!T16,IF('Finding the Right Cover Crop'!$F$26=\"scavenge P and K\",'Cover Crop Data'!U16,IF('Finding the Right Cover Crop'!$F$26=\"attract beneficials\",'Cover Crop Data'!R16,IF('Finding the Right Cover Crop'!$F$26=\"high forage quality\",'Cover Crop Data'!X16,0))))))","v":1},null,4,"White Clover*",1,1,3,3,0,2,1,1,1,3,2,4,"Y","s",6,7,"L","Cool Season"]
[{"$f":"IF(AND('Finding the Right Cover Crop'!$D$45=\"cool season\",AD17=\"cool season\"),1,IF(AND('Finding the Right Cover Crop'!$D$45=\"warm season\",AD17=\"warm season\"),1,IF(AND('Finding the Right Cover Crop'!$D$45=\"No full season cover crop possible with this combination.  It may be possible to use a warm season cover crop species or variety with a short maturity window.\",AD17=\"warm season\"),1,\"\")))","v":1},{"$f":"IF(AND('Finding the Right Cover Crop'!$D$46=\"Because next cash crop is a legume and you did not specify you wanted to plant a CC mixture, a legume CC is not recommended.\",'Cover Crop Data'!AC19=\"L\"),\"\",1)","v":1},{"$f":"IF(AND('Finding the Right Cover Crop'!$F$32=\"Yes\",'Cover Crop Data'!V17>0),V17,IF(OR('Finding the Right Cover Crop'!$F$32=\"no\",'Finding the Right Cover Crop'!$F$32=\"\",'Cover Crop Data'!D17>0),0,\"\"))","v":0},{"$f":"IF(AND('Finding the Right Cover Crop'!$F$14=\"rice\",'Cover Crop Data'!W17>0),W17,IF(OR('Finding the Right Cover Crop'!$F$14=\"corn\",'Finding the Right Cover Crop'!$F$14=\"cotton\",'Finding the Right Cover Crop'!$F$14=\"soybeans\",'Finding the Right Cover Crop'!$F$14=\"peanuts\",'Finding the Right Cover Crop'!$F$14=\"sweet corn\",'Finding the Right Cover Crop'!$F$14=\"sweet potatoes\",'Finding the Right Cover Crop'!$F$14=\"small grains (wheat, oats, rye)\"),0,\"\"))","v":0},null,null,{"$f":"IF('Finding the Right Cover Crop'!$F$22='Cover Crop Data'!$A$49,$M17+$N17,IF('Finding the Right Cover Crop'!$F$22='Cover Crop Data'!$A$50,$M17+$N17,IF('Finding the Right Cover Crop'!$F$22='Cover Crop Data'!$A$51,$N17+$P17,IF('Finding the Right Cover Crop'!$F$22='Cover Crop Data'!$A$52,$Q17,IF('Finding the Right Cover Crop'!$F$22='Cover Crop Data'!$A$53,$N17+$O17,IF(AND('Finding the Right Cover Crop'!$F$22=\"Low N\",$S17>0),$S17,IF(AND('Finding the Right Cover Crop'!$F$22=\"Low N\",'Finding the Right Cover Crop'!$F$28=\"yes\"),$S17,\"\")))))))","v":1},{"$f":"IF('Finding the Right Cover Crop'!$F$24='Cover Crop Data'!$A$49,$M17+$N17,IF('Finding the Right Cover Crop'!$F$24='Cover Crop Data'!$A$50,$M17+$N17,IF('Finding the Right Cover Crop'!$F$24='Cover Crop Data'!$A$51,$N17+$P17,IF('Finding the Right Cover Crop'!$F$24='Cover Crop Data'!$A$52,$Q17,IF('Finding the Right Cover Crop'!$F$24='Cover Crop Data'!$A$53,$N17+$O17,IF(AND('Finding the Right Cover Crop'!$F$24=\"Low N\",'Finding the Right Cover Crop'!$F$28=\"no\",$S17=0),\"\",IF(AND('Finding the Right Cover Crop'!$F$24=\"low N\",'Finding the Right Cover Crop'!$F$28=\"no\",'Cover Crop Data'!$S17>0),'Cover Crop Data'!$S17,IF(AND('Finding the Right Cover Crop'!$F$24=\"Low N\",'Finding the Right Cover Crop'!$F$28=\"yes\"),$S17,0))))))))","v":2},{"$f":"IF(AND('Finding the Right Cover Crop'!$F$26=\"provide N\",OR('Finding the Right Cover Crop'!$F$28=\"no\",'Finding the Right Cover Crop'!$F$28=\"\"),'Cover Crop Data'!AC17=\"L\"),1,IF(AND('Finding the Right Cover Crop'!$F$26=\"provide N\",'Finding the Right Cover Crop'!$F$28=\"yes\",OR('Cover Crop Data'!AC17=\"F\",'Cover Crop Data'!AC17=\"L\",'Cover Crop Data'!AC17=\"G\")),1,IF(AND('Finding the Right Cover Crop'!$F$26=\"scavenge N\"),'Cover Crop Data'!T17,IF('Finding the Right Cover Crop'!$F$26=\"scavenge P and K\",'Cover Crop Data'!U17,IF('Finding the Right Cover Crop'!$F$26=\"attract beneficials\",'Cover Crop Data'!R17,IF('Finding the Right Cover Crop'!$F$26=\"high forage quality\",'Cover Crop Data'!X17,0))))))","v":1},null,4,"Winter Peas",1,1,3,2,2,3,1,1,1,1,3,3,"N",null,6,7,"L","Cool Season"]
[{"$f":"IF(AND('Finding the Right Cover Crop'!$D$45=\"cool season\",AD18=\"cool season\"),1,IF(AND('Finding the Right Cover Crop'!$D$45=\"warm season\",AD18=\"warm season\"),1,IF(AND('Finding the Right Cover Crop'!$D$45=\"No full season cover crop possible with this combination.  It may be possible to use a warm season cover crop species or variety with a short maturity window.\",AD18=\"warm season\"),1,\"\")))","v":""},{"$f":"IF(AND('Finding the Right Cover Crop'!$D$46=\"Because next cash crop is a legume and you did not specify you wanted to plant a CC mixture, a legume CC is not recommended.\",'Cover Crop Data'!AC20=\"L\"),\"\",1)","v":1},{"$f":"IF(AND('Finding the Right Cover Crop'!$F$32=\"Yes\",'Cover Crop Data'!V18>0),V18,IF(OR('Finding the Right Cover Crop'!$F$32=\"no\",'Finding the Right Cover Crop'!$F$32=\"\",'Cover Crop Data'!D18>0),0,\"\"))","v":0},{"$f":"IF(AND('Finding the Right Cover Crop'!$F$14=\"rice\",'Cover Crop Data'!W18>0),W18,IF(OR('Finding the Right Cover Crop'!$F$14=\"corn\",'Finding the Right Cover Crop'!$F$14=\"cotton\",'Finding the Right Cover Crop'!$F$14=\"soybeans\",'Finding the Right Cover Crop'!$F$14=\"peanuts\",'Finding the Right Cover Crop'!$F$14=\"sweet corn\",'Finding the Right Cover Crop'!$F$14=\"sweet potatoes\",'Finding the Right Cover Crop'!$F$14=\"small grains (wheat, oats, rye)\"),0,\"\"))","v":0},null,null,{"$f":"IF('Finding the Right Cover Crop'!$F$22='Cover Crop Data'!$A$49,$M18+$N18,IF('Finding the Right Cover Crop'!$F$22='Cover Crop Data'!$A$50,$M18+$N18,IF('Finding the Right Cover Crop'!$F$22='Cover Crop Data'!$A$51,$N18+$P18,IF('Finding the Right Cover Crop'!$F$22='Cover Crop Data'!$A$52,$Q18,IF('Finding the Right Cover Crop'!$F$22='Cover Crop Data'!$A$53,$N18+$O18,IF(AND('Finding the Right Cover Crop'!$F$22=\"Low N\",$S18>0),$S18,IF(AND('Finding the Right Cover Crop'!$F$22=\"Low N\",'Finding the Right Cover Crop'!$F$28=\"yes\"),$S18,\"\")))))))","v":1},{"$f":"IF('Finding the Right Cover Crop'!$F$24='Cover Crop Data'!$A$49,$M18+$N18,IF('Finding the Right Cover Crop'!$F$24='Cover Crop Data'!$A$50,$M18+$N18,IF('Finding the Right Cover Crop'!$F$24='Cover Crop Data'!$A$51,$N18+$P18,IF('Finding the Right Cover Crop'!$F$24='Cover Crop Data'!$A$52,$Q18,IF('Finding the Right Cover Crop'!$F$24='Cover Crop Data'!$A$53,$N18+$O18,IF(AND('Finding the Right Cover Crop'!$F$24=\"Low N\",'Finding the Right Cover Crop'!$F$28=\"no\",$S18=0),\"\",IF(AND('Finding the Right Cover Crop'!$F$24=\"low N\",'Finding the Right Cover Crop'!$F$28=\"no\",'Cover Crop Data'!$S18>0),'Cover Crop Data'!$S18,IF(AND('Finding the Right Cover Crop'!$F$24=\"Low N\",'Finding the Right Cover Crop'!$F$28=\"yes\"),$S18,0))))))))","v":3},{"$f":"IF(AND('Finding the Right Cover Crop'!$F$26=\"provide N\",OR('Finding the Right Cover Crop'!$F$28=\"no\",'Finding the Right Cover Crop'!$F$28=\"\"),'Cover Crop Data'!AC18=\"L\"),1,IF(AND('Finding the Right Cover Crop'!$F$26=\"provide N\",'Finding the Right Cover Crop'!$F$28=\"yes\",OR('Cover Crop Data'!AC18=\"F\",'Cover Crop Data'!AC18=\"L\",'Cover Crop Data'!AC18=\"G\")),1,IF(AND('Finding the Right Cover Crop'!$F$26=\"scavenge N\"),'Cover Crop Data'!T18,IF('Finding the Right Cover Crop'!$F$26=\"scavenge P and K\",'Cover Crop Data'!U18,IF('Finding the Right Cover Crop'!$F$26=\"attract beneficials\",'Cover Crop Data'!R18,IF('Finding the Right Cover Crop'!$F$26=\"high forage quality\",'Cover Crop Data'!X18,0))))))","v":1},null,"","Cowpea",2,1,4,4,1,3,1,0,2,1,null,4,"N",null,5.5,6.5,"L","Warm Season"]
[{"$f":"IF(AND('Finding the Right Cover Crop'!$D$45=\"cool season\",AD19=\"cool season\"),1,IF(AND('Finding the Right Cover Crop'!$D$45=\"warm season\",AD19=\"warm season\"),1,IF(AND('Finding the Right Cover Crop'!$D$45=\"No full season cover crop possible with this combination.  It may be possible to use a warm season cover crop species or variety with a short maturity window.\",AD19=\"warm season\"),1,\"\")))","v":""},{"$f":"IF(AND('Finding the Right Cover Crop'!$D$46=\"Because next cash crop is a legume and you did not specify you wanted to plant a CC mixture, a legume CC is not recommended.\",'Cover Crop Data'!AC20=\"L\"),\"\",1)","v":1},{"$f":"IF(AND('Finding the Right Cover Crop'!$F$32=\"Yes\",'Cover Crop Data'!V19>0),V19,IF(OR('Finding the Right Cover Crop'!$F$32=\"no\",'Finding the Right Cover Crop'!$F$32=\"\",'Cover Crop Data'!D19>0),0,\"\"))","v":0},{"$f":"IF(AND('Finding the Right Cover Crop'!$F$14=\"rice\",'Cover Crop Data'!W19>0),W19,IF(OR('Finding the Right Cover Crop'!$F$14=\"corn\",'Finding the Right Cover Crop'!$F$14=\"cotton\",'Finding the Right Cover Crop'!$F$14=\"soybeans\",'Finding the Right Cover Crop'!$F$14=\"peanuts\",'Finding the Right Cover Crop'!$F$14=\"sweet corn\",'Finding the Right Cover Crop'!$F$14=\"sweet potatoes\",'Finding the Right Cover Crop'!$F$14=\"small grains (wheat, oats, rye)\"),0,\"\"))","v":0},null,null,{"$f":"IF('Finding the Right Cover Crop'!$F$22='Cover Crop Data'!$A$49,$M19+$N19,IF('Finding the Right Cover Crop'!$F$22='Cover Crop Data'!$A$50,$M19+$N19,IF('Finding the Right Cover Crop'!$F$22='Cover Crop Data'!$A$51,$N19+$P19,IF('Finding the Right Cover Crop'!$F$22='Cover Crop Data'!$A$52,$Q19,IF('Finding the Right Cover Crop'!$F$22='Cover Crop Data'!$A$53,$N19+$O19,IF(AND('Finding the Right Cover Crop'!$F$22=\"Low N\",$S19>0),$S19,IF(AND('Finding the Right Cover Crop'!$F$22=\"Low N\",'Finding the Right Cover Crop'!$F$28=\"yes\"),$S19,\"\")))))))","v":1},{"$f":"IF('Finding the Right Cover Crop'!$F$24='Cover Crop Data'!$A$49,$M19+$N19,IF('Finding the Right Cover Crop'!$F$24='Cover Crop Data'!$A$50,$M19+$N19,IF('Finding the Right Cover Crop'!$F$24='Cover Crop Data'!$A$51,$N19+$P19,IF('Finding the Right Cover Crop'!$F$24='Cover Crop Data'!$A$52,$Q19,IF('Finding the Right Cover Crop'!$F$24='Cover Crop Data'!$A$53,$N19+$O19,IF(AND('Finding the Right Cover Crop'!$F$24=\"Low N\",'Finding the Right Cover Crop'!$F$28=\"no\",$S19=0),\"\",IF(AND('Finding the Right Cover Crop'!$F$24=\"low N\",'Finding the Right Cover Crop'!$F$28=\"no\",'Cover Crop Data'!$S19>0),'Cover Crop Data'!$S19,IF(AND('Finding the Right Cover Crop'!$F$24=\"Low N\",'Finding the Right Cover Crop'!$F$28=\"yes\"),$S19,0))))))))","v":6},{"$f":"IF(AND('Finding the Right Cover Crop'!$F$26=\"provide N\",OR('Finding the Right Cover Crop'!$F$28=\"no\",'Finding the Right Cover Crop'!$F$28=\"\"),'Cover Crop Data'!AC19=\"L\"),1,IF(AND('Finding the Right Cover Crop'!$F$26=\"provide N\",'Finding the Right Cover Crop'!$F$28=\"yes\",OR('Cover Crop Data'!AC19=\"F\",'Cover Crop Data'!AC19=\"L\",'Cover Crop Data'!AC19=\"G\")),1,IF(AND('Finding the Right Cover Crop'!$F$26=\"scavenge N\"),'Cover Crop Data'!T19,IF('Finding the Right Cover Crop'!$F$26=\"scavenge P and K\",'Cover Crop Data'!U19,IF('Finding the Right Cover Crop'!$F$26=\"attract beneficials\",'Cover Crop Data'!R19,IF('Finding the Right Cover Crop'!$F$26=\"high forage quality\",'Cover Crop Data'!X19,0))))))","v":1},null,"","Sunn Hemp",4,2,3,4,4,1,1,1,1,null,3,2,"N",null,5,7.5,"L","Warm Season"]
[null,null,null,null,null,null,"Avg forb",null,null,null,{"$f":"IF(AND(K2=\"\",K3=\"\",K4=\"\",K5=\"\"),\"\",ROUNDDOWN(AVERAGE(K2:K5),0))","v":4}]
[null,null,null,null,null,null,"Avg grass",null,null,null,{"$f":"IF(AND(K6=\"\",K7=\"\",K8=\"\",K9=\"\",K10=\"\",K11=\"\"),\"\",ROUNDDOWN(AVERAGE(K6:K11),0))","v":5},null,null,null,null,null,null,null,null,null,null,null,null,null,null,null,null,null,"G=grass","C=cool"]
[null,null,null,null,null,null,"avg legume",null,null,null,{"$f":"IF(AND(K12=\"\",K13=\"\",K14=\"\",K15=\"\",K16=\"\",K17=\"\",K18=\"\",K19=\"\"),\"\",ROUNDDOWN(AVERAGE(K12:K19),0))","v":4},null,"E=excellent","VG=very good",null,"G=good","F=fair","P=poor/none",null,null,null,null,null,null,null,"s=small",null,null,"L=legume","W=warm"]
[null,null,null,null,null,null,"Average",null,null,null,{"$f":"IF(AND(K2=\"\",K3=\"\",K4=\"\",K5=\"\",K6=\"\",K7=\"\",K8=\"\",K10=\"\",K11=\"\",K12=\"\",K13=\"\",K14=\"\",K15=\"\",K16=\"\",K17=\"\",K18=\"\",K19=\"\"),\"\",ROUNDDOWN(AVERAGE(K2:K19),0))","v":4},null,4,3,null,2,1,0,null,null,null,null,null,null,null,null,null,null,"F=forb"]
[]
[null,null,null,null,null,null,null,null,null,null,null,null,"Reduce Compaction","Residue Persistence","Erosion Control","Weed Supression","Nematode Control","Attract Beneficials","Provide N","Nitrogen Scavenger","P&K scavenger","Tolerant of Poor Drainage (0-4 scale)","Recommended for rice","Forage Quality","Cost"]
[null,null,null,null,null,null,null,null,null,null,null,"Buckwheat",{"$f":"IF(M2=0,\"Poor\",IF(M2=1,\"Fair\",IF(M2=2,\"Good\",IF(M2=3,\"Very Good\",IF(M2=4,\"Excellent\",\"error\")))))","v":"Fair"},{"$f":"IF(N2=0,\"Poor\",IF(N2=1,\"Fair\",IF(N2=2,\"Good\",IF(N2=3,\"Very Good\",IF(N2=4,\"Excellent\",\"error\")))))","v":"Poor"},"Fair","Excellent","Fair","Excellent",{"$f":"IF(S2=0,\"\",\"Good to Very Good\")","v":""},"Poor","Excellent",{"$f":"IF(V2=0,\"\",IF(V2=1,\"Fair\",IF(V2=2,\"Good\",IF(V2=3,\"Very Good\",IF(V2=4,\"Excellent\",\"error\")))))","v":"Fair"},"Very Good","Poor","$$"]
[null,null,null,null,null,null,null,null,null,null,null,"Mustards",{"$f":"IF(M3=0,\"Poor\",IF(M3=1,\"Fair\",IF(M3=2,\"Good\",IF(M3=3,\"Very Good\",IF(M3=4,\"Excellent\",\"error\")))))","v":"Good"},"Fair","Very Good","Very Good","Very Good","Good","","Good","Very Good","Fair","","Good","$"]
[null,null,null,null,null,null,null,null,null,null,null,"Radish",{"$f":"IF(M4=0,\"Poor\",IF(M4=1,\"Fair\",IF(M4=2,\"Good\",IF(M4=3,\"Very Good\",IF(M4=4,\"Excellent\",\"error\")))))","v":"Very Good"},"Fair","Very Good","Excellent","Very Good","Fair","","Excellent","Very Good","Fair","Good","Good","$$"]
[null,null,null,null,null,null,null,null,null,null,null,"Rapeseed",{"$f":"IF(M5=0,\"Poor\",IF(M5=1,\"Fair\",IF(M5=2,\"Good\",IF(M5=3,\"Very Good\",IF(M5=4,\"Excellent\",\"error\")))))","v":"Good"},"Good","Very Good","Very Good","Very Good","Good","","Very Good","Fair","Fair","","Good","$"]
[null,null,null,null,null,null,null,null,null,null,null,"Black Oats",{"$f":"IF(M6=0,\"Poor\",IF(M6=1,\"Fair\",IF(M6=2,\"Good\",IF(M6=3,\"Very Good\",IF(M6=4,\"Excellent\",\"error\")))))","v":"Fair"},"Good","Very Good","Excellent","Excellent","Poor","","Very Good","Fair","Good","","Good","$$"]
[null,null,null,null,null,null,null,null,null,null,null,"Oats",{"$f":"IF(M7=0,\"Poor\",IF(M7=1,\"Fair\",IF(M7=2,\"Good\",IF(M7=3,\"Very Good\",IF(M7=4,\"Excellent\",\"error\")))))","v":"Fair"},"Good","Very Good","Excellent","Very Good","Poor","","Very Good","Fair","Good","","Very Good","$$"]
[null,null,null,null,null,null,null,null,null,null,null,"Rye/Triticale",{"$f":"IF(M8=0,\"Poor\",IF(M8=1,\"Fair\",IF(M8=2,\"Good\",IF(M8=3,\"Very Good\",IF(M8=4,\"Excellent\",\"error\")))))","v":"Good"},"Excellent","Excellent","Excellent","Good","Fair","","Excellent","Very Good","Good","Very Good","Good","$$"]
[null,null,null,null,null,null,null,null,null,null,null,"Wheat",{"$f":"IF(M9=0,\"Poor\",IF(M9=1,\"Fair\",IF(M9=2,\"Good\",IF(M9=3,\"Very Good\",IF(M9=4,\"Excellent\",\"error\")))))","v":"Good"},"Very Good","Very Good","Very Good","Fair","Fair","","Very Good","Very Good","","","Very Good","$"]
[null,null,null,null,null,null,null,null,null,null,null,"Millet, Browntop",{"$f":"IF(M10=0,\"Poor\",IF(M10=1,\"Fair\",IF(M10=2,\"Good\",IF(M10=3,\"Very Good\",IF(M10=4,\"Excellent\",\"error\")))))","v":"Fair"},"Very Good","Very Good","Very Good","Very Good","Fair","","Good","Fair","","Good","Very Good","$"]
[null,null,null,null,null,null,null,null,null,null,null,"Sorghum-Sudan",{"$f":"IF(M11=0,\"Poor\",IF(M11=1,\"Fair\",IF(M11=2,\"Good\",IF(M11=3,\"Very Good\",IF(M11=4,\"Excellent\",\"error\")))))","v":"Excellent"},"Very Good","Excellent","Very Good","Very Good","Good","","Excellent","Good","Good","Good","Very Good","$$"]
[null,null,null,null,null,null,null,null,null,null,null,"Crimson Clover",{"$f":"IF(M12=0,\"Poor\",IF(M12=1,\"Fair\",IF(M12=2,\"Good\",IF(M12=3,\"Very Good\",IF(M12=4,\"Excellent\",\"error\")))))","v":"Fair"},"Good","Very Good","Very Good","Fair","Very Good",{"$f":"IF(S12=0,\"\",\"Good/Very Good\")","v":"Good/Very Good"},"Good","Good","Good","Very Good","Excellent","$$"]
[null,null,null,null,null,null,null,null,null,null,null,"Hairy Vetch",{"$f":"IF(M13=0,\"Poor\",IF(M13=1,\"Fair\",IF(M13=2,\"Good\",IF(M13=3,\"Very Good\",IF(M13=4,\"Excellent\",\"error\")))))","v":"Fair"},"Fair","Good","Good","Fair","Excellent","Good/Very Good","Fair","Good","Fair","Very Good","Good","$$"]
[null,null,null,null,null,null,null,null,null,null,null,"Lupine",{"$f":"IF(M14=0,\"Poor\",IF(M14=1,\"Fair\",IF(M14=2,\"Good\",IF(M14=3,\"Very Good\",IF(M14=4,\"Excellent\",\"error\")))))","v":"Good"},"Fair","Good","Good","Excellent","Excellent","Good/Very Good","Fair","Good","","","Fair","$$$"]
[null,null,null,null,null,null,null,null,null,null,null,"Red Clover",{"$f":"IF(M15=0,\"Poor\",IF(M15=1,\"Fair\",IF(M15=2,\"Good\",IF(M15=3,\"Very Good\",IF(M15=4,\"Excellent\",\"error\")))))","v":"Very Good"},"Fair","Fair","Very Good","Fair","Very Good","Good/Very Good","Good","Very Good","Good","","Excellent","$$"]
[null,null,null,null,null,null,null,null,null,null,null,"White Clover",{"$f":"IF(M16=0,\"Poor\",IF(M16=1,\"Fair\",IF(M16=2,\"Good\",IF(M16=3,\"Very Good\",IF(M16=4,\"Excellent\",\"error\")))))","v":"Fair"},"Fair","Very Good","Very Good","Poor","Good","Good/Very Good","Fair","Fair","Very Good","Good","Excellent","$"]
[null,null,null,null,null,null,null,null,null,null,null,"Winter Peas",{"$f":"IF(M17=0,\"Poor\",IF(M17=1,\"Fair\",IF(M17=2,\"Good\",IF(M17=3,\"Very Good\",IF(M17=4,\"Excellent\",\"error\")))))","v":"Fair"},"Fair","Very Good","Good","Good","Very Good","Good/Very Good","Fair","Fair","Fair","Very Good","Very Good","$$$"]
[null,null,null,null,null,null,null,null,null,null,null,"Cowpea","Good","Fair","Excellent","Excellent","Fair","Very Good","Good/Very Good","Poor","Good","Fair","","Excellent","$$$"]
[null,null,null,null,null,null,null,null,null,null,null,"Sunn Hemp",{"$f":"IF(M19=0,\"Poor\",IF(M19=1,\"Fair\",IF(M19=2,\"Good\",IF(M19=3,\"Very Good\",IF(M19=4,\"Excellent\",\"error\")))))","v":"Excellent"},"Good","Very Good","Excellent","Excellent","Fair",{"$f":"IF(S19=0,\"\",\"Good/Very Good\")","v":"Good/Very Good"},"Fair","Fair",{"$f":"IF(V19=0,\"\",IF(V19=1,\"Fair\",IF(V19=2,\"Good\",IF(V19=3,\"Very Good\",IF(V19=4,\"Excellent\",\"error\")))))","v":""},"Very Good","Good","$$$"]
[]
[]
[]
[]
["PROBLEMS",null,null,null,null,null,null,null,null,null,null,null,null,null,"Factors that affect problem"]
["Soil compaction/lack of quick water infiltration",null,null,null,null,null,null,null,null,null,null,null,null,null,"Compaction reduction","Residue Persistence"]
["Low soil organic matter/moisture and nutrient retention/herbicide efficacy",null,null,null,null,null,null,null,null,null,null,null,null,null,"Residue Persistence","Compaction reduction"]
["Weeds",null,null,null,null,null,null,null,null,null,null,null,null,null,"Residue Persistence","Weed Control"]
["Nematodes",null,null,null,null,null,null,null,null,null,null,null,null,null,"Nematode Control"]
["Runoff/erosion",null,null,null,null,null,null,null,null,null,null,null,null,null,"Residue Persistence","Erosion Control"]
["Low N",null,null,null,null,null,null,null,null,null,null,null,null,null,"Provide N"]
["BENEFITS"]
["Provide N",null,null,null,null,null,null,null,null,null,null,null,null,null,"Provide N"]
["Scavenge N",null,null,null,null,null,null,null,null,null,null,null,null,null,"Nitrogen Scavenger"]
["Scavenge P and K",null,null,null,null,null,null,null,null,null,null,null,null,null,"P&K scavenger"]
["Attract beneficials",null,null,null,null,null,null,null,null,null,null,null,null,null,"Attract Beneficials"]
["High forage quality",null,null,null,null,null,null,null,null,null,null,null,null,null,"Forage Quality"]
[]
[]
[]
["References"]
["Clark, Andy, ed. Managing Cover Crops Profitably. 3rd ed. College Park, MD: Sustainable Agriculture Research & Education (SARE), 2007. Print. Rice information adaprted from drainage tolerance"]
[]
["\"Sunn Hemp.\" Cover Crop Database. University of California Extension. Web. <http://ucanr.org/sites/asi/db/covercrops.cfm?crop_id=40>."]
[]
["Mississippi Planting Guide, June 1999. Coffeeville, MS: USDA-Natural Resource Conservation Service, 1999. "]
[]
["University of Arkansas Dr. Trenton Roberts, Crop, Soil and Environmental Science 5/4/2016, email communication"]

{"sheet":"Reference Links","index":2,"n_rows":55,"n_cols":18,"rows_kept":55,"cut":false,"hidden":false,"merged":[]}
[]
["Drop Down Lists"]
[null,"DRILL","CROP","Month","TILLAGE","PROBLEMS",null,null,null,null,null,null,null,null,"BENEFITS",null,null,"pH"]
[null,"Yes","corn","Jan","no-till/strip till","Soil compaction/lack of quick water infiltration",null,null,null,null,null,null,null,null,"Provide N",null,null,"<5"]
[null,"No","cotton","Feb","conventional","Low soil organic matter/moisture and nutrient retention/herbicide efficacy",null,null,null,null,null,null,null,null,"Scavenge N",null,null,"5 to 6"]
[null,null,"grain sorghum","Mar",null,"Weeds",null,null,null,null,null,null,null,null,"Scavenge P and K",null,null,"6 to 7"]
[null,null,"peanuts","Apr",null,"Nematodes",null,null,null,null,null,null,null,null,"Attract beneficials",null,null,"7 to 8"]
[null,null,"rice","May",null,"Runoff/erosion",null,null,null,null,null,null,null,null,"High forage quality",null,null,">8"]
[null,null,"soybeans","Jun",null,"Low N",null,null,null,null,null,null,null,null,"None"]
[null,null,"small grains (wheat, oats, rye)","Jul",null,"None"]
[null,null,"sweet corn","Aug"]
[null,null,"sweet potatoes","Sep"]
[null,null,null,"Oct"]
[null,null,null,"Nov"]
[null,null,null,"Dec"]
[]
[]
[]
[null,null,null,null,"References "]
[null,null,null,null,"Buckwheat",null,"SARE",null,null,"http://www.sare.org/Learning-Center/Books/Managing-Cover-Crops-Profitably-3rd-Edition/Text-Version/Nonlegume-Cover-Crops/Buckwheat"]
[]
[null,null,null,null,"Mustards",null,"SARE",null,null,"http://www.sare.org/Learning-Center/Books/Managing-Cover-Crops-Profitably-3rd-Edition/Text-Version/Nonlegume-Cover-Crops/Brassicas-and-Mustards"]
[null,null,null,null,null,null,"Plant Materials",null,null,"http://www.nrcs.usda.gov/Internet/FSE_PLANTMATERIALS/publications/orpmcpg11337.pdf"]
[null,null,null,null,"Radish",null,"SARE",null,null,"http://www.sare.org/Learning-Center/Books/Managing-Cover-Crops-Profitably-3rd-Edition/Text-Version/Nonlegume-Cover-Crops/Brassicas-and-Mustards"]
[null,null,null,null,null,null,"Plant Materials",null,null,"http://www.nrcs.usda.gov/Internet/FSE_PLANTMATERIALS/publications/arpmcpg11828.pdf"]
[null,null,null,null,"Rapeseed",null,"SARE",null,null,"http://www.sare.org/Learning-Center/Books/Managing-Cover-Crops-Profitably-3rd-Edition/Text-Version/Nonlegume-Cover-Crops/Brassicas-and-Mustards"]
[]
[null,null,null,null,"Black Oats",null,"SARE",null,null,"http://www.sare.org/Learning-Center/Books/Managing-Cover-Crops-Profitably-3rd-Edition/Text-Version/Appendix-B "]
[null,null,null,null,null,null,"Plant Materials",null,null,"http://www.nrcs.usda.gov/wps/PA_NRCSConsumption/download?cid=stelprdb1255314&ext=pdf"]
[null,null,null,null,"Oats",null,"SARE",null,null,"http://www.sare.org/Learning-Center/Books/Managing-Cover-Crops-Profitably-3rd-Edition/Text-Version/Nonlegume-Cover-Crops/Oats"]
[]
[null,null,null,null,"Rye/Triticale",null,"SARE",null,null,"http://www.sare.org/Learning-Center/Books/Managing-Cover-Crops-Profitably-3rd-Edition/Text-Version/Nonlegume-Cover-Crops/Cereal-Rye "]
[null,null,null,null,null,null,"Plant Materials",null,null,"http://www.nrcs.usda.gov/Internet/FSE_PLANTMATERIALS/publications/mopmcpg11784.pdf"]
[null,null,null,null,"Wheat",null,"SARE",null,null,"http://www.sare.org/Learning-Center/Books/Managing-Cover-Crops-Profitably-3rd-Edition/Text-Version/Nonlegume-Cover-Crops/Winter-Wheat "]
[]
[null,null,null,null,"Millet, Browntop",null,"UGA",null,null,"http://www.caes.uga.edu/commodities/fieldcrops/forages/species/BrowntopMillet.html "]
[null,null,null,null,null,null,"Plant Materials",null,null,"http://plants.usda.gov/plantguide/pdf/pg_urra.pdf "]
[null,null,null,null,"Sorghum-Sudan",null,"SARE",null,null,"http://www.sare.org/Learning-Center/Books/Managing-Cover-Crops-Profitably-3rd-Edition/Text-Version/Nonlegume-Cover-Crops/Sorghum-Sudangrass "]
[]
[null,null,null,null,"Crimson Clover",null,"SARE",null,null,"http://www.sare.org/Learning-Center/Books/Managing-Cover-Crops-Profitably-3rd-Edition/Text-Version/Legume-Cover-Crops/Crimson-Clover "]
[null,null,null,null,null,null,"Plant Materials",null,null,"http://www.nrcs.usda.gov/Internet/FSE_PLANTMATERIALS/publications/orpmcpg11726.pdf"]
[null,null,null,null,"Hairy Vetch",null,"SARE",null,null,"http://www.sare.org/Learning-Center/Books/Managing-Cover-Crops-Profitably-3rd-Edition/Text-Version/Legume-Cover-Crops/Hairy-Vetch "]
[]
[null,null,null,null,"Lupine",null,"SARE",null,null,"http://www.sare.org/Learning-Center/Books/Managing-Cover-Crops-Profitably-3rd-Edition/Text-Version/Appendix-B "]
[]
[null,null,null,null,"Red Clover",null,"SARE",null,null,"http://www.sare.org/Learning-Center/Books/Managing-Cover-Crops-Profitably-3rd-Edition/Text-Version/Legume-Cover-Crops/Red-Clover "]
[]
[null,null,null,null,"White Clover",null,"SARE",null,null,"http://www.sare.org/Learning-Center/Books/Managing-Cover-Crops-Profitably-3rd-Edition/Text-Version/Legume-Cover-Crops/White-Clover "]
[]
[null,null,null,null,"Winter Peas",null,"SARE",null,null,"http://www.sare.org/Learning-Center/Books/Managing-Cover-Crops-Profitably-3rd-Edition/Text-Version/Legume-Cover-Crops/Field-Peas "]
[null,null,null,null,null,null,"Plant Materials",null,null,"http://www.nrcs.usda.gov/Internet/FSE_PLANTMATERIALS/publications/wapmcpg11190.pdf "]
[null,null,null,null,"cowpea",null,"SARE",null,null,"http://www.sare.org/Learning-Center/Books/Managing-Cover-Crops-Profitably-3rd-Edition/Text-Version/Legume-Cover-Crops/Cowpeas"]
[null,null,null,null,null,null,"Plant Materials",null,null,"http://www.nrcs.usda.gov/Internet/FSE_PLANTMATERIALS/publications/njpmcpg11930.pdf"]
[null,null,null,null,"Sunn Hemp",null,"SARE",null,null,"http://www.sare.org/Learning-Center/Books/Managing-Cover-Crops-Profitably-3rd-Edition/Text-Version/Appendix-B "]
[null,null,null,null,null,null,"NRCS",null,null,"http://www.nrcs.usda.gov/Internet/FSE_DOCUMENTS/nrcs142p2_053283.pdf "]

{"sheet":"Sheet3","index":3,"n_rows":17,"n_cols":8,"rows_kept":17,"cut":false,"hidden":false,"merged":[]}
[]
[]
[]
[]
[]
[]
[null,null,null,null,"rice",null,{"$f":"E7<>\"rice\"","v":false}]
[null,null,null,null,"corn ",null,{"$f":"E8<>\"rice\"","v":true}]
[null,null,null,null,"soybean",null,true]
[]
[]
[null,null,null,null,{"$f":"IF(E7<>\"rice\",\"boo\",\"yeah\")","v":"yeah"}]
[null,null,null,null,{"$f":"40*0.4","v":16}]
[null,null,null,null,{"$f":"E13/4","v":4},null,null,0.4]
[]
[null,null,null,null,{"$f":"4/32","v":0.125}]
[null,null,null,null,null,null,null,{"$f":"16/0.25","v":64}]